{"text_format":"3","workbook":"xlsx","n_sheets":5,"sheets":["KEZDÉS","TERVEZETT KÖLTSÉGEK","TÉNYLEGES KÖLTSÉGEK","KÖLTSÉGEK ELTÉRÉSEI","KÖLTSÉGEK ELEMZÉSE"],"not_rendered":{"charts":3,"images":2,"defined_names":1},"read":"whole","date_system":"1900"}

{"sheet":"KEZDÉS","index":0,"n_rows":8,"n_cols":2,"rows_kept":8}
[null,"A SABLON ISMERTETÉSE"]
[null,"Ezzel az üzleti költségvetéssel nyilvántarthatja a tervezett és a tényleges költségeket, illetve különbségüket."]
[null,"Adja meg cég neve, és szúrja be a cég emblémáját."]
[null,"Írja be a részletes adatokat a Tervezett költségek és a Tényleges költségek munkalap táblázataiba."]
[null,"A Költségek eltérései munkalap táblázatai, illetve a Költségek elemzése munkalap diagramjai automatikusan frissülnek."]
[null,"Megjegyzés: "]
[null,"Mindegyik munkalap A oszlopában további útmutatást olvashat. Ez a szöveg szándékosan van elrejtve. Ha törölni szeretné a szöveget, jelölje ki az A oszlopot, majd nyomja le a DELETE billentyűt. Ha láthatóvá szeretné tenni a szöveget, jelölje ki az A oszlopot, majd módosítsa a betűszínt."]
[null,"Ha többet szeretne megtudni a táblázatokról, nyomja le a SHIFT+F10 billentyűkombinációt egy táblázaton belül, válassza a TÁBLÁZAT parancsot, majd a HELYETTESÍTŐ SZÖVEG elemet."]

{"sheet":"TERVEZETT KÖLTSÉGEK","index":1,"n_rows":37,"n_cols":18,"rows_kept":37,"merged":[[1,1,2,3],[1,10,1,12],[1,13,2,14],[2,10,2,12],[3,17,12,19],[8,1,8,2],[19,1,19,2],[28,1,28,2],[33,1,33,2]]}
["Ennek a munkalapnak a megfelelő táblázataiban adhatja meg a tervezett alkalmazotti költségek, irodaköltségek, marketingköltségek, valamint a képzés és utazás költségeket. Az összesen automatikusan kiszámítja a sablon. Ennek az oszlopnak a celláiban a munkalap használatát megkönnyítő útmutatás olvasható. Első lépésként nyomja le a lefelé nyilat.",{"$nulls":14}," "]
["Írja be a cég neve a jobbra lévő cellába, és szúrja be az emblémáját az N2 cellába. A munkalap címe a K2 cellában található.","Cég neve",{"$nulls":8},"Részletes költségbecslés",null,null,"Ebben a cellában az embléma helyőrzője található."]
["A K3 cellában egy hasznos tanács szerepel.",{"$nulls":9},"Az árnyékolt cellák számítások."]
["A jobbra lévő cellában a Tervezett költségek felirat olvasható, a C4 és az N4 cella között a hónapok vannak felsorolva, az O4 cella az Év oszlopfejlécet tartalmazza, az R4 cellában pedig a sablon használatát bemutató szöveg található.","TERVEZETT KÖLTSÉGEK","JAN.","FEBR.","MÁRC.","ÁPR.","MÁJ.","JÚN.","JÚL.","AUG.","SZEPT.","OKT.","NOV.","DEC.","ÉV",null,null,"Tipp: A SABLON HASZNÁLATA\nÍrja be az adatokat a TERVEZETT KÖLTSÉGEK és a TÉNYLEGES KÖLTSÉGEK munkalap fehér celláiba, a sablon pedig kiszámítja a KÖLTSÉGEK ELTÉRÉSEI és a KÖLTSÉGEK ELEMZÉSE munkalap tartalmát. Ha hozzáad egy sort egy munkalaphoz, a többi munkalapot is hozzá kell igazítania."]
["Írja be az alkalmazotti költségek a jobbra lévő cellában kezdődő táblázatba Alkalmazotti tervezett táblázatba. A következő utasítás az A10 cellában található.","Alkalmazotti költségek","Jan.","Febr.","Márc.","Ápr.","Máj.","Jún.","Júl.","Aug.","Szept.","Okt.","Nov.","Dec.","ÉV"]
[null,"Bérek",{"v":85000,"d":"85,000.00 Ft"},{"v":85000,"d":"85,000.00 Ft"},{"v":85000,"d":"85,000.00 Ft"},{"v":87500,"d":"87,500.00 Ft"},{"v":87500,"d":"87,500.00 Ft"},{"v":87500,"d":"87,500.00 Ft"},{"v":87500,"d":"87,500.00 Ft"},{"v":92400,"d":"92,400.00 Ft"},{"v":92400,"d":"92,400.00 Ft"},{"v":92400,"d":"92,400.00 Ft"},{"v":92400,"d":"92,400.00 Ft"},{"v":92400,"d":"92,400.00 Ft"},{"$f":"SUM(C6:N6)","v":{"v":1067000,"d":"1,067,000.00 Ft"}}]
[null,"Juttatások",{"$f":"C6*0.27","v":{"v":22950,"d":"22,950.00 Ft"}},{"v":22950,"d":"22,950.00 Ft"},{"v":22950,"d":"22,950.00 Ft"},{"v":23625,"d":"23,625.00 Ft"},{"v":23625,"d":"23,625.00 Ft"},{"v":23625,"d":"23,625.00 Ft"},{"v":23625,"d":"23,625.00 Ft"},{"v":24948,"d":"24,948.00 Ft"},{"v":24948,"d":"24,948.00 Ft"},{"v":24948,"d":"24,948.00 Ft"},{"v":24948,"d":"24,948.00 Ft"},{"v":24948,"d":"24,948.00 Ft"},{"$f":"SUM(C7:N7)","v":{"v":288090,"d":"288,090.00 Ft"}}]
[null,"Részösszeg",{"$f":"SUBTOTAL(109,AlkalmazottiTervezett[Jan.])","v":{"v":107950,"d":"107,950.00 Ft"}},{"$f":"SUBTOTAL(109,AlkalmazottiTervezett[Febr.])","v":{"v":107950,"d":"107,950.00 Ft"}},{"$f":"SUBTOTAL(109,AlkalmazottiTervezett[Márc.])","v":{"v":107950,"d":"107,950.00 Ft"}},{"$f":"SUBTOTAL(109,AlkalmazottiTervezett[Ápr.])","v":{"v":111125,"d":"111,125.00 Ft"}},{"$f":"SUBTOTAL(109,AlkalmazottiTervezett[Máj.])","v":{"v":111125,"d":"111,125.00 Ft"}},{"$f":"SUBTOTAL(109,AlkalmazottiTervezett[Jún.])","v":{"v":111125,"d":"111,125.00 Ft"}},{"$f":"SUBTOTAL(109,AlkalmazottiTervezett[Júl.])","v":{"v":111125,"d":"111,125.00 Ft"}},{"$f":"SUBTOTAL(109,AlkalmazottiTervezett[Aug.])","v":{"v":117348,"d":"117,348.00 Ft"}},{"$f":"SUBTOTAL(109,AlkalmazottiTervezett[Szept.])","v":{"v":117348,"d":"117,348.00 Ft"}},{"$f":"SUBTOTAL(109,AlkalmazottiTervezett[Okt.])","v":{"v":117348,"d":"117,348.00 Ft"}},{"$f":"SUBTOTAL(109,AlkalmazottiTervezett[Nov.])","v":{"v":117348,"d":"117,348.00 Ft"}},{"$f":"SUBTOTAL(109,AlkalmazottiTervezett[Dec.])","v":{"v":117348,"d":"117,348.00 Ft"}},{"$f":"SUBTOTAL(109,AlkalmazottiTervezett[ÉV])","v":{"v":1355090,"d":"1,355,090.00 Ft"}}]
[]
["Írja be az irodaköltségek jobbra lévő cellában kezdődő Irodai tervezett táblázatba. A következő utasítás az A21 cellában található.","Irodaköltségek","Jan.","Febr.","Márc.","Ápr.","Máj.","Jún.","Júl.","Aug.","Szept.","Okt.","Nov.","Dec.","ÉV"]
[null,"Irodabérlési díj",{"v":9800,"d":"9,800.00 Ft"},{"v":9800,"d":"9,800.00 Ft"},{"v":9800,"d":"9,800.00 Ft"},{"v":9800,"d":"9,800.00 Ft"},{"v":9800,"d":"9,800.00 Ft"},{"v":9800,"d":"9,800.00 Ft"},{"v":9800,"d":"9,800.00 Ft"},{"v":9800,"d":"9,800.00 Ft"},{"v":9800,"d":"9,800.00 Ft"},{"v":9800,"d":"9,800.00 Ft"},{"v":9800,"d":"9,800.00 Ft"},{"v":9800,"d":"9,800.00 Ft"},{"$f":"SUM(C11:N11)","v":{"v":117600,"d":"117,600.00 Ft"}}]
[null,"Gáz",null,{"v":400,"d":"400.00 Ft"},{"v":400,"d":"400.00 Ft"},{"v":100,"d":"100.00 Ft"},{"v":100,"d":"100.00 Ft"},{"v":100,"d":"100.00 Ft"},{"v":100,"d":"100.00 Ft"},{"v":100,"d":"100.00 Ft"},{"v":100,"d":"100.00 Ft"},{"v":100,"d":"100.00 Ft"},{"v":400,"d":"400.00 Ft"},{"v":400,"d":"400.00 Ft"},{"v":2300,"d":"2,300.00 Ft"}]
[null,"Áram",{"v":300,"d":"300.00 Ft"},{"v":300,"d":"300.00 Ft"},{"v":300,"d":"300.00 Ft"},{"v":300,"d":"300.00 Ft"},{"v":300,"d":"300.00 Ft"},{"v":300,"d":"300.00 Ft"},{"v":300,"d":"300.00 Ft"},{"v":300,"d":"300.00 Ft"},{"v":300,"d":"300.00 Ft"},{"v":300,"d":"300.00 Ft"},{"v":300,"d":"300.00 Ft"},{"v":300,"d":"300.00 Ft"},{"v":3600,"d":"3,600.00 Ft"}]
[null,"Víz",{"v":40,"d":"40.00 Ft"},{"v":40,"d":"40.00 Ft"},{"v":40,"d":"40.00 Ft"},{"v":40,"d":"40.00 Ft"},{"v":40,"d":"40.00 Ft"},{"v":40,"d":"40.00 Ft"},{"v":40,"d":"40.00 Ft"},{"v":40,"d":"40.00 Ft"},{"v":40,"d":"40.00 Ft"},{"v":40,"d":"40.00 Ft"},{"v":40,"d":"40.00 Ft"},{"v":40,"d":"40.00 Ft"},{"v":480,"d":"480.00 Ft"}]
[null,"Telefon",{"v":250,"d":"250.00 Ft"},{"v":250,"d":"250.00 Ft"},{"v":250,"d":"250.00 Ft"},{"v":250,"d":"250.00 Ft"},{"v":250,"d":"250.00 Ft"},{"v":250,"d":"250.00 Ft"},{"v":250,"d":"250.00 Ft"},{"v":250,"d":"250.00 Ft"},{"v":250,"d":"250.00 Ft"},{"v":250,"d":"250.00 Ft"},{"v":250,"d":"250.00 Ft"},{"v":250,"d":"250.00 Ft"},{"v":3000,"d":"3,000.00 Ft"}]
[null,"Internetkapcsolat",{"v":180,"d":"180.00 Ft"},{"v":180,"d":"180.00 Ft"},{"v":180,"d":"180.00 Ft"},{"v":180,"d":"180.00 Ft"},{"v":180,"d":"180.00 Ft"},{"v":180,"d":"180.00 Ft"},{"v":180,"d":"180.00 Ft"},{"v":180,"d":"180.00 Ft"},{"v":180,"d":"180.00 Ft"},{"v":180,"d":"180.00 Ft"},{"v":180,"d":"180.00 Ft"},{"v":180,"d":"180.00 Ft"},{"v":2160,"d":"2,160.00 Ft"}]
[null,"Irodai kellékek",{"v":200,"d":"200.00 Ft"},{"v":200,"d":"200.00 Ft"},{"v":200,"d":"200.00 Ft"},{"v":200,"d":"200.00 Ft"},{"v":200,"d":"200.00 Ft"},{"v":200,"d":"200.00 Ft"},{"v":200,"d":"200.00 Ft"},{"v":200,"d":"200.00 Ft"},{"v":200,"d":"200.00 Ft"},{"v":200,"d":"200.00 Ft"},{"v":200,"d":"200.00 Ft"},{"v":200,"d":"200.00 Ft"},{"v":2400,"d":"2,400.00 Ft"}]
[null,"Biztonság",{"v":600,"d":"600.00 Ft"},{"v":600,"d":"600.00 Ft"},{"v":600,"d":"600.00 Ft"},{"v":600,"d":"600.00 Ft"},{"v":600,"d":"600.00 Ft"},{"v":600,"d":"600.00 Ft"},{"v":600,"d":"600.00 Ft"},{"v":600,"d":"600.00 Ft"},{"v":600,"d":"600.00 Ft"},{"v":600,"d":"600.00 Ft"},{"v":600,"d":"600.00 Ft"},{"v":600,"d":"600.00 Ft"},{"v":7200,"d":"7,200.00 Ft"}]
[null,"Részösszeg",{"$f":"SUBTOTAL(109,IrodaiTervezett[Jan.])","v":{"v":11370,"d":"11,370.00 Ft"}},{"$f":"SUBTOTAL(109,IrodaiTervezett[Febr.])","v":{"v":11770,"d":"11,770.00 Ft"}},{"$f":"SUBTOTAL(109,IrodaiTervezett[Márc.])","v":{"v":11770,"d":"11,770.00 Ft"}},{"$f":"SUBTOTAL(109,IrodaiTervezett[Ápr.])","v":{"v":11470,"d":"11,470.00 Ft"}},{"$f":"SUBTOTAL(109,IrodaiTervezett[Máj.])","v":{"v":11470,"d":"11,470.00 Ft"}},{"$f":"SUBTOTAL(109,IrodaiTervezett[Jún.])","v":{"v":11470,"d":"11,470.00 Ft"}},{"$f":"SUBTOTAL(109,IrodaiTervezett[Júl.])","v":{"v":11470,"d":"11,470.00 Ft"}},{"$f":"SUBTOTAL(109,IrodaiTervezett[Aug.])","v":{"v":11470,"d":"11,470.00 Ft"}},{"$f":"SUBTOTAL(109,IrodaiTervezett[Szept.])","v":{"v":11470,"d":"11,470.00 Ft"}},{"$f":"SUBTOTAL(109,IrodaiTervezett[Okt.])","v":{"v":11470,"d":"11,470.00 Ft"}},{"$f":"SUBTOTAL(109,IrodaiTervezett[Nov.])","v":{"v":11770,"d":"11,770.00 Ft"}},{"$f":"SUBTOTAL(109,IrodaiTervezett[Dec.])","v":{"v":11770,"d":"11,770.00 Ft"}},{"$f":"SUBTOTAL(109,IrodaiTervezett[ÉV])","v":{"v":138740,"d":"138,740.00 Ft"}}]
[]
["Írja be a marketingköltségek jobbra lévő cellában kezdődő Marketing tervezett táblázatba. A következő utasítás az A30 cellában található.","Marketingköltségek","Jan.","Febr.","Márc.","Ápr.","Máj.","Jún.","Júl.","Aug.","Szept.","Okt.","Nov.","Dec.","ÉV"]
[null,"Webhely-üzemeltetés",{"v":500,"d":"500.00 Ft"},{"v":500,"d":"500.00 Ft"},{"v":500,"d":"500.00 Ft"},{"v":500,"d":"500.00 Ft"},{"v":500,"d":"500.00 Ft"},{"v":500,"d":"500.00 Ft"},{"v":500,"d":"500.00 Ft"},{"v":500,"d":"500.00 Ft"},{"v":500,"d":"500.00 Ft"},{"v":500,"d":"500.00 Ft"},{"v":500,"d":"500.00 Ft"},{"v":500,"d":"500.00 Ft"},{"$f":"SUM(C22:N22)","v":{"v":6000,"d":"6,000.00 Ft"}}]
[null,"A webhely frissítései",{"v":200,"d":"200.00 Ft"},{"v":200,"d":"200.00 Ft"},{"v":200,"d":"200.00 Ft"},{"v":200,"d":"200.00 Ft"},{"v":200,"d":"200.00 Ft"},{"v":1000,"d":"1,000.00 Ft"},{"v":200,"d":"200.00 Ft"},{"v":200,"d":"200.00 Ft"},{"v":200,"d":"200.00 Ft"},{"v":200,"d":"200.00 Ft"},{"v":200,"d":"200.00 Ft"},{"v":1000,"d":"1,000.00 Ft"},{"v":4000,"d":"4,000.00 Ft"}]
[null,"Segédanyagok előkészítése",{"v":5000,"d":"5,000.00 Ft"},{"v":0,"d":"0.00 Ft"},{"v":0,"d":"0.00 Ft"},{"v":5000,"d":"5,000.00 Ft"},{"v":0,"d":"0.00 Ft"},{"v":0,"d":"0.00 Ft"},{"v":5000,"d":"5,000.00 Ft"},{"v":0,"d":"0.00 Ft"},{"v":0,"d":"0.00 Ft"},{"v":5000,"d":"5,000.00 Ft"},{"v":0,"d":"0.00 Ft"},{"v":0,"d":"0.00 Ft"},{"v":20000,"d":"20,000.00 Ft"}]
[null,"Segédanyagok nyomtatása",{"v":200,"d":"200.00 Ft"},{"v":200,"d":"200.00 Ft"},{"v":200,"d":"200.00 Ft"},{"v":200,"d":"200.00 Ft"},{"v":200,"d":"200.00 Ft"},{"v":200,"d":"200.00 Ft"},{"v":200,"d":"200.00 Ft"},{"v":200,"d":"200.00 Ft"},{"v":200,"d":"200.00 Ft"},{"v":200,"d":"200.00 Ft"},{"v":200,"d":"200.00 Ft"},{"v":200,"d":"200.00 Ft"},{"v":2400,"d":"2,400.00 Ft"}]
[null,"Marketingrendezvények",{"v":2000,"d":"2,000.00 Ft"},{"v":2000,"d":"2,000.00 Ft"},{"v":2000,"d":"2,000.00 Ft"},{"v":5000,"d":"5,000.00 Ft"},{"v":2000,"d":"2,000.00 Ft"},{"v":2000,"d":"2,000.00 Ft"},{"v":2000,"d":"2,000.00 Ft"},{"v":5000,"d":"5,000.00 Ft"},{"v":2000,"d":"2,000.00 Ft"},{"v":2000,"d":"2,000.00 Ft"},{"v":2000,"d":"2,000.00 Ft"},{"v":5000,"d":"5,000.00 Ft"},{"v":33000,"d":"33,000.00 Ft"}]
[null,"Vegyes költségek",{"v":200,"d":"200.00 Ft"},{"v":200,"d":"200.00 Ft"},{"v":200,"d":"200.00 Ft"},{"v":200,"d":"200.00 Ft"},{"v":200,"d":"200.00 Ft"},{"v":200,"d":"200.00 Ft"},{"v":200,"d":"200.00 Ft"},{"v":200,"d":"200.00 Ft"},{"v":200,"d":"200.00 Ft"},{"v":200,"d":"200.00 Ft"},{"v":200,"d":"200.00 Ft"},{"v":200,"d":"200.00 Ft"},{"v":2400,"d":"2,400.00 Ft"}]
[null,"Részösszeg",{"$f":"SUBTOTAL(109,MarketingTervezett[Jan.])","v":{"v":8100,"d":"8,100.00 Ft"}},{"$f":"SUBTOTAL(109,MarketingTervezett[Febr.])","v":{"v":3100,"d":"3,100.00 Ft"}},{"$f":"SUBTOTAL(109,MarketingTervezett[Márc.])","v":{"v":3100,"d":"3,100.00 Ft"}},{"$f":"SUBTOTAL(109,MarketingTervezett[Ápr.])","v":{"v":11100,"d":"11,100.00 Ft"}},{"$f":"SUBTOTAL(109,MarketingTervezett[Máj.])","v":{"v":3100,"d":"3,100.00 Ft"}},{"$f":"SUBTOTAL(109,MarketingTervezett[Jún.])","v":{"v":3900,"d":"3,900.00 Ft"}},{"$f":"SUBTOTAL(109,MarketingTervezett[Júl.])","v":{"v":8100,"d":"8,100.00 Ft"}},{"$f":"SUBTOTAL(109,MarketingTervezett[Aug.])","v":{"v":6100,"d":"6,100.00 Ft"}},{"$f":"SUBTOTAL(109,MarketingTervezett[Szept.])","v":{"v":3100,"d":"3,100.00 Ft"}},{"$f":"SUBTOTAL(109,MarketingTervezett[Okt.])","v":{"v":8100,"d":"8,100.00 Ft"}},{"$f":"SUBTOTAL(109,MarketingTervezett[Nov.])","v":{"v":3100,"d":"3,100.00 Ft"}},{"$f":"SUBTOTAL(109,MarketingTervezett[Dec.])","v":{"v":6900,"d":"6,900.00 Ft"}},{"$f":"SUBTOTAL(109,MarketingTervezett[ÉV])","v":{"v":67800,"d":"67,800.00 Ft"}}]
[]
["Írja be a képzési és az utazási költségeket jobbra lévő cellában kezdődő Képzési és utazási tervezett táblázatba. A következő utasítás az A35 cellában található.","Képzés/utazás","Jan.","Febr.","Márc.","Ápr.","Máj.","Jún.","Júl.","Aug.","Szept.","Okt.","Nov.","Dec.","ÉV"]
[null,"Tanfolyamok",{"v":2000,"d":"2,000.00 Ft"},{"v":2000,"d":"2,000.00 Ft"},{"v":2000,"d":"2,000.00 Ft"},{"v":2000,"d":"2,000.00 Ft"},{"v":2000,"d":"2,000.00 Ft"},{"v":2000,"d":"2,000.00 Ft"},{"v":2000,"d":"2,000.00 Ft"},{"v":2000,"d":"2,000.00 Ft"},{"v":2000,"d":"2,000.00 Ft"},{"v":2000,"d":"2,000.00 Ft"},{"v":2000,"d":"2,000.00 Ft"},{"v":2000,"d":"2,000.00 Ft"},{"$f":"SUM(C31:N31)","v":{"v":24000,"d":"24,000.00 Ft"}}]
[null,"Képzéshez kapcsolódó utazási költségek",{"v":2000,"d":"2,000.00 Ft"},{"v":2000,"d":"2,000.00 Ft"},{"v":2000,"d":"2,000.00 Ft"},{"v":2000,"d":"2,000.00 Ft"},{"v":2000,"d":"2,000.00 Ft"},{"v":2000,"d":"2,000.00 Ft"},{"v":2000,"d":"2,000.00 Ft"},{"v":2000,"d":"2,000.00 Ft"},{"v":2000,"d":"2,000.00 Ft"},{"v":2000,"d":"2,000.00 Ft"},{"v":2000,"d":"2,000.00 Ft"},{"v":2000,"d":"2,000.00 Ft"},{"$f":"SUM(C32:N32)","v":{"v":24000,"d":"24,000.00 Ft"}}]
[null,"Részösszeg",{"$f":"SUBTOTAL(109,KépzésiÉsUtazásiTervezett[Jan.])","v":{"v":4000,"d":"4,000.00 Ft"}},{"$f":"SUBTOTAL(109,KépzésiÉsUtazásiTervezett[Febr.])","v":{"v":4000,"d":"4,000.00 Ft"}},{"$f":"SUBTOTAL(109,KépzésiÉsUtazásiTervezett[Márc.])","v":{"v":4000,"d":"4,000.00 Ft"}},{"$f":"SUBTOTAL(109,KépzésiÉsUtazásiTervezett[Ápr.])","v":{"v":4000,"d":"4,000.00 Ft"}},{"$f":"SUBTOTAL(109,KépzésiÉsUtazásiTervezett[Máj.])","v":{"v":4000,"d":"4,000.00 Ft"}},{"$f":"SUBTOTAL(109,KépzésiÉsUtazásiTervezett[Jún.])","v":{"v":4000,"d":"4,000.00 Ft"}},{"$f":"SUBTOTAL(109,KépzésiÉsUtazásiTervezett[Júl.])","v":{"v":4000,"d":"4,000.00 Ft"}},{"$f":"SUBTOTAL(109,KépzésiÉsUtazásiTervezett[Aug.])","v":{"v":4000,"d":"4,000.00 Ft"}},{"$f":"SUBTOTAL(109,KépzésiÉsUtazásiTervezett[Szept.])","v":{"v":4000,"d":"4,000.00 Ft"}},{"$f":"SUBTOTAL(109,KépzésiÉsUtazásiTervezett[Okt.])","v":{"v":4000,"d":"4,000.00 Ft"}},{"$f":"SUBTOTAL(109,KépzésiÉsUtazásiTervezett[Nov.])","v":{"v":4000,"d":"4,000.00 Ft"}},{"$f":"SUBTOTAL(109,KépzésiÉsUtazásiTervezett[Dec.])","v":{"v":4000,"d":"4,000.00 Ft"}},{"$f":"SUBTOTAL(109,KépzésiÉsUtazásiTervezett[ÉV])","v":{"v":48000,"d":"48,000.00 Ft"}}]
[]
["A jobbra lévő cellában kezdődő Tervezett összesen táblázatban a sablon automatikusan összesíti az adatokat.","ÖSSZESEN","Jan.","Febr.","Márc.","Ápr.","Máj.","Jún.","Júl.","Aug.","Szept.","Okt.","Nov.","Dec.","Év"]
[null,"TERVEZETT HAVI KÖLTSÉG",{"$f":"KépzésiÉsUtazásiTervezett[[#Totals],[Jan.]]+MarketingTervezett[[#Totals],[Jan.]]+IrodaiTervezett[[#Totals],[Jan.]]+AlkalmazottiTervezett[[#Totals],[Jan.]]","v":{"v":131420,"d":"131,420.00 Ft"}},{"$f":"KépzésiÉsUtazásiTervezett[[#Totals],[Febr.]]+MarketingTervezett[[#Totals],[Febr.]]+IrodaiTervezett[[#Totals],[Febr.]]+AlkalmazottiTervezett[[#Totals],[Febr.]]","v":{"v":126820,"d":"126,820.00 Ft"}},{"$f":"KépzésiÉsUtazásiTervezett[[#Totals],[Márc.]]+MarketingTervezett[[#Totals],[Márc.]]+IrodaiTervezett[[#Totals],[Márc.]]+AlkalmazottiTervezett[[#Totals],[Márc.]]","v":{"v":126820,"d":"126,820.00 Ft"}},{"$f":"KépzésiÉsUtazásiTervezett[[#Totals],[Ápr.]]+MarketingTervezett[[#Totals],[Ápr.]]+IrodaiTervezett[[#Totals],[Ápr.]]+AlkalmazottiTervezett[[#Totals],[Ápr.]]","v":{"v":137695,"d":"137,695.00 Ft"}},{"$f":"KépzésiÉsUtazásiTervezett[[#Totals],[Máj.]]+MarketingTervezett[[#Totals],[Máj.]]+IrodaiTervezett[[#Totals],[Máj.]]+AlkalmazottiTervezett[[#Totals],[Máj.]]","v":{"v":129695,"d":"129,695.00 Ft"}},{"$f":"KépzésiÉsUtazásiTervezett[[#Totals],[Jún.]]+MarketingTervezett[[#Totals],[Jún.]]+IrodaiTervezett[[#Totals],[Jún.]]+AlkalmazottiTervezett[[#Totals],[Jún.]]","v":{"v":130495,"d":"130,495.00 Ft"}},{"$f":"KépzésiÉsUtazásiTervezett[[#Totals],[Júl.]]+MarketingTervezett[[#Totals],[Júl.]]+IrodaiTervezett[[#Totals],[Júl.]]+AlkalmazottiTervezett[[#Totals],[Júl.]]","v":{"v":134695,"d":"134,695.00 Ft"}},{"$f":"KépzésiÉsUtazásiTervezett[[#Totals],[Aug.]]+MarketingTervezett[[#Totals],[Aug.]]+IrodaiTervezett[[#Totals],[Aug.]]+AlkalmazottiTervezett[[#Totals],[Aug.]]","v":{"v":138918,"d":"138,918.00 Ft"}},{"$f":"KépzésiÉsUtazásiTervezett[[#Totals],[Szept.]]+MarketingTervezett[[#Totals],[Szept.]]+IrodaiTervezett[[#Totals],[Szept.]]+AlkalmazottiTervezett[[#Totals],[Szept.]]","v":{"v":135918,"d":"135,918.00 Ft"}},{"$f":"KépzésiÉsUtazásiTervezett[[#Totals],[Okt.]]+MarketingTervezett[[#Totals],[Okt.]]+IrodaiTervezett[[#Totals],[Okt.]]+AlkalmazottiTervezett[[#Totals],[Okt.]]","v":{"v":140918,"d":"140,918.00 Ft"}},{"$f":"KépzésiÉsUtazásiTervezett[[#Totals],[Nov.]]+MarketingTervezett[[#Totals],[Nov.]]+IrodaiTervezett[[#Totals],[Nov.]]+AlkalmazottiTervezett[[#Totals],[Nov.]]","v":{"v":136218,"d":"136,218.00 Ft"}},{"$f":"KépzésiÉsUtazásiTervezett[[#Totals],[Dec.]]+MarketingTervezett[[#Totals],[Dec.]]+IrodaiTervezett[[#Totals],[Dec.]]+AlkalmazottiTervezett[[#Totals],[Dec.]]","v":{"v":140018,"d":"140,018.00 Ft"}},{"$f":"KépzésiÉsUtazásiTervezett[[#Totals],[ÉV]]+MarketingTervezett[[#Totals],[ÉV]]+IrodaiTervezett[[#Totals],[ÉV]]+AlkalmazottiTervezett[[#Totals],[ÉV]]","v":{"v":1609630,"d":"1,609,630.00 Ft"}}]
[null,"ÖSSZES TERVEZETT KÖLTSÉG",{"$f":"SUM($C$36:C36)","v":{"v":131420,"d":"131,420.00 Ft"}},{"$f":"SUM($C$36:D36)","v":{"v":258240,"d":"258,240.00 Ft"}},{"$f":"SUM($C$36:E36)","v":{"v":385060,"d":"385,060.00 Ft"}},{"$f":"SUM($C$36:F36)","v":{"v":522755,"d":"522,755.00 Ft"}},{"$f":"SUM($C$36:G36)","v":{"v":652450,"d":"652,450.00 Ft"}},{"$f":"SUM($C$36:H36)","v":{"v":782945,"d":"782,945.00 Ft"}},{"$f":"SUM($C$36:I36)","v":{"v":917640,"d":"917,640.00 Ft"}},{"$f":"SUM($C$36:J36)","v":{"v":1056558,"d":"1,056,558.00 Ft"}},{"$f":"SUM($C$36:K36)","v":{"v":1192476,"d":"1,192,476.00 Ft"}},{"$f":"SUM($C$36:L36)","v":{"v":1333394,"d":"1,333,394.00 Ft"}},{"$f":"SUM($C$36:M36)","v":{"v":1469612,"d":"1,469,612.00 Ft"}},{"$f":"SUM($C$36:N36)","v":{"v":1609630,"d":"1,609,630.00 Ft"}}]

{"sheet":"TÉNYLEGES KÖLTSÉGEK","index":2,"n_rows":37,"n_cols":16,"rows_kept":37,"merged":[[1,1,2,3],[1,10,1,12],[1,13,2,14],[2,10,2,12],[8,1,8,2],[19,1,19,2],[28,1,28,2],[33,1,33,2]]}
["Ennek a munkalapnak a megfelelő táblázataiban adhatja meg a tényleges alkalmazotti költségek, irodaköltségek, marketingköltségeket, valamint a képzési és utazási költségeket. Az összegeket automatikusan kiszámítja a sablon. Ennek az oszlopnak a celláiban a munkalap használatát megkönnyítő útmutatás olvasható. Első lépésként nyomja le a lefelé nyilat.",{"$nulls":14}," "]
["A jobbra lévő cellában automatikusan frissül a cég neve. A munkalap címe a K2 cellában található. Szúrja be az emblémát az N2 cellába.",{"$f":"'TERVEZETT KÖLTSÉGEK'!B2:D3","v":"Cég neve"},{"$nulls":8},{"$f":"munkalap_címe","v":"Részletes költségbecslés"},null,null,"Ebben a cellában az embléma helyőrzője található."]
["A K3 cellában egy hasznos tanács szerepel.",{"$nulls":9},"Az árnyékolt cellák számítások."]
["A jobbra lévő cellában a Tényleges költségek felirat olvasható, a C4 és az N4 cella között a hónapok vannak felsorolva, az O4 cella az Év oszlopfejlécet tartalmazza.","TÉNYLEGES KÖLTSÉGEK","JAN.","FEBR.","MÁRC.","ÁPR.","MÁJ.","JÚN.","JÚL.","AUG.","SZEPT.","OKT.","NOV.","DEC.","ÉV"]
["Írja be az alkalmazotti költségek jobbra lévő cellában kezdődő Alkalmazotti tényleges táblázatba. A következő utasítás az A10 cellában található.","Alkalmazotti költségek","Jan.","Febr.","Márc.","Ápr.","Máj.","Jún.","Júl.","Aug.","Szept.","Okt.","Nov.","Dec.","ÉV"]
[null,"Bérek",{"v":85000,"d":"85,000.00 Ft"},{"v":85000,"d":"85,000.00 Ft"},{"v":85000,"d":"85,000.00 Ft"},{"v":88000,"d":"88,000.00 Ft"},{"v":88000,"d":"88,000.00 Ft"},{"v":88000,"d":"88,000.00 Ft"},{"$nulls":6},{"$f":"SUM(C6:N6)","v":{"v":519000,"d":"519,000.00 Ft"}}]
[null,"Juttatások",{"$f":"C6*0.27","v":{"v":22950,"d":"22,950.00 Ft"}},{"v":22950,"d":"22,950.00 Ft"},{"v":22950,"d":"22,950.00 Ft"},{"v":23760,"d":"23,760.00 Ft"},{"v":23760,"d":"23,760.00 Ft"},{"v":23760,"d":"23,760.00 Ft"},{"v":0,"d":"0.00 Ft"},{"v":0,"d":"0.00 Ft"},{"v":0,"d":"0.00 Ft"},{"v":0,"d":"0.00 Ft"},{"v":0,"d":"0.00 Ft"},{"v":0,"d":"0.00 Ft"},{"$f":"SUM(C7:N7)","v":{"v":140130,"d":"140,130.00 Ft"}}]
[null,"Részösszeg",{"$f":"SUBTOTAL(109,AlkalmazottiTényleges[Jan.])","v":{"v":107950,"d":"107,950.00 Ft"}},{"$f":"SUBTOTAL(109,AlkalmazottiTényleges[Febr.])","v":{"v":107950,"d":"107,950.00 Ft"}},{"$f":"SUBTOTAL(109,AlkalmazottiTényleges[Márc.])","v":{"v":107950,"d":"107,950.00 Ft"}},{"$f":"SUBTOTAL(109,AlkalmazottiTényleges[Ápr.])","v":{"v":111760,"d":"111,760.00 Ft"}},{"$f":"SUBTOTAL(109,AlkalmazottiTényleges[Máj.])","v":{"v":111760,"d":"111,760.00 Ft"}},{"$f":"SUBTOTAL(109,AlkalmazottiTényleges[Jún.])","v":{"v":111760,"d":"111,760.00 Ft"}},{"$f":"SUBTOTAL(109,AlkalmazottiTényleges[Júl.])","v":{"v":0,"d":"0.00 Ft"}},{"$f":"SUBTOTAL(109,AlkalmazottiTényleges[Aug.])","v":{"v":0,"d":"0.00 Ft"}},{"$f":"SUBTOTAL(109,AlkalmazottiTényleges[Szept.])","v":{"v":0,"d":"0.00 Ft"}},{"$f":"SUBTOTAL(109,AlkalmazottiTényleges[Okt.])","v":{"v":0,"d":"0.00 Ft"}},{"$f":"SUBTOTAL(109,AlkalmazottiTényleges[Nov.])","v":{"v":0,"d":"0.00 Ft"}},{"$f":"SUBTOTAL(109,AlkalmazottiTényleges[Dec.])","v":{"v":0,"d":"0.00 Ft"}},{"$f":"SUBTOTAL(109,AlkalmazottiTényleges[ÉV])","v":{"v":659130,"d":"659,130.00 Ft"}}]
[]
["Írja be az irodaköltségek jobbra lévő cellában kezdődő Irodai tényleges táblázatba. A következő utasítás az A21 cellában található.","Irodaköltségek","Jan.","Febr.","Márc.","Ápr.","Máj.","Jún.","Júl.","Aug.","Szept.","Okt.","Nov.","Dec.","ÉV"]
[null,"Irodabérlési díj",{"v":9800,"d":"9,800.00 Ft"},{"v":9800,"d":"9,800.00 Ft"},{"v":9800,"d":"9,800.00 Ft"},{"v":9800,"d":"9,800.00 Ft"},{"v":9800,"d":"9,800.00 Ft"},{"v":9800,"d":"9,800.00 Ft"},{"$nulls":6},{"$f":"SUM(C11:N11)","v":{"v":58800,"d":"58,800.00 Ft"}}]
[null,"Gáz",{"v":4,"d":"4.00 Ft"},{"v":430,"d":"430.00 Ft"},{"v":385,"d":"385.00 Ft"},{"v":230,"d":"230.00 Ft"},{"v":87,"d":"87.00 Ft"},{"v":88,"d":"88.00 Ft"},{"$nulls":6},{"v":1224,"d":"1,224.00 Ft"}]
[null,"Áram",{"v":288,"d":"288.00 Ft"},{"v":278,"d":"278.00 Ft"},{"v":268,"d":"268.00 Ft"},{"v":299,"d":"299.00 Ft"},{"v":306,"d":"306.00 Ft"},{"v":290,"d":"290.00 Ft"},{"$nulls":6},{"v":1729,"d":"1,729.00 Ft"}]
[null,"Víz",{"v":35,"d":"35.00 Ft"},{"v":33,"d":"33.00 Ft"},{"v":34,"d":"34.00 Ft"},{"v":36,"d":"36.00 Ft"},{"v":34,"d":"34.00 Ft"},{"v":36,"d":"36.00 Ft"},{"$nulls":6},{"v":208,"d":"208.00 Ft"}]
[null,"Telefon",{"v":224,"d":"224.00 Ft"},{"v":235,"d":"235.00 Ft"},{"v":265,"d":"265.00 Ft"},{"v":245,"d":"245.00 Ft"},{"v":245,"d":"245.00 Ft"},{"v":220,"d":"220.00 Ft"},{"$nulls":6},{"v":1434,"d":"1,434.00 Ft"}]
[null,"Internetkapcsolat",{"v":180,"d":"180.00 Ft"},{"v":180,"d":"180.00 Ft"},{"v":180,"d":"180.00 Ft"},{"v":180,"d":"180.00 Ft"},{"v":180,"d":"180.00 Ft"},{"v":180,"d":"180.00 Ft"},{"$nulls":6},{"v":1080,"d":"1,080.00 Ft"}]
[null,"Irodai kellékek",{"v":256,"d":"256.00 Ft"},{"v":142,"d":"142.00 Ft"},{"v":160,"d":"160.00 Ft"},{"v":221,"d":"221.00 Ft"},{"v":256,"d":"256.00 Ft"},{"v":240,"d":"240.00 Ft"},{"$nulls":6},{"v":1275,"d":"1,275.00 Ft"}]
[null,"Biztonság",{"v":600,"d":"600.00 Ft"},{"v":600,"d":"600.00 Ft"},{"v":600,"d":"600.00 Ft"},{"v":600,"d":"600.00 Ft"},{"v":600,"d":"600.00 Ft"},{"v":600,"d":"600.00 Ft"},{"$nulls":6},{"v":3600,"d":"3,600.00 Ft"}]
[null,"Részösszeg",{"$f":"SUBTOTAL(109,IrodaiTényleges[Jan.])","v":{"v":11387,"d":"11,387.00 Ft"}},{"$f":"SUBTOTAL(109,IrodaiTényleges[Febr.])","v":{"v":11698,"d":"11,698.00 Ft"}},{"$f":"SUBTOTAL(109,IrodaiTényleges[Márc.])","v":{"v":11692,"d":"11,692.00 Ft"}},{"$f":"SUBTOTAL(109,IrodaiTényleges[Ápr.])","v":{"v":11611,"d":"11,611.00 Ft"}},{"$f":"SUBTOTAL(109,IrodaiTényleges[Máj.])","v":{"v":11508,"d":"11,508.00 Ft"}},{"$f":"SUBTOTAL(109,IrodaiTényleges[Jún.])","v":{"v":11454,"d":"11,454.00 Ft"}},{"$f":"SUBTOTAL(109,IrodaiTényleges[Júl.])","v":{"v":0,"d":"0.00 Ft"}},{"$f":"SUBTOTAL(109,IrodaiTényleges[Aug.])","v":{"v":0,"d":"0.00 Ft"}},{"$f":"SUBTOTAL(109,IrodaiTényleges[Szept.])","v":{"v":0,"d":"0.00 Ft"}},{"$f":"SUBTOTAL(109,IrodaiTényleges[Okt.])","v":{"v":0,"d":"0.00 Ft"}},{"$f":"SUBTOTAL(109,IrodaiTényleges[Nov.])","v":{"v":0,"d":"0.00 Ft"}},{"$f":"SUBTOTAL(109,IrodaiTényleges[Dec.])","v":{"v":0,"d":"0.00 Ft"}},{"$f":"SUBTOTAL(109,IrodaiTényleges[ÉV])","v":{"v":69350,"d":"69,350.00 Ft"}}]
[]
["Írja be a marketingköltségek jobbra lévő cellában kezdődő Marketing tényleges táblázatba. A következő utasítás az A30 cellában található.","Marketingköltségek","Jan.","Febr.","Márc.","Ápr.","Máj.","Jún.","Júl.","Aug.","Szept.","Okt.","Nov.","Dec.","ÉV"]
[null,"Webhely-üzemeltetés",{"v":500,"d":"500.00 Ft"},{"v":500,"d":"500.00 Ft"},{"v":500,"d":"500.00 Ft"},{"v":500,"d":"500.00 Ft"},{"v":500,"d":"500.00 Ft"},{"v":500,"d":"500.00 Ft"},{"$nulls":6},{"$f":"SUM(C22:N22)","v":{"v":3000,"d":"3,000.00 Ft"}}]
[null,"A webhely frissítései",{"v":200,"d":"200.00 Ft"},{"v":200,"d":"200.00 Ft"},{"v":200,"d":"200.00 Ft"},{"v":200,"d":"200.00 Ft"},{"v":200,"d":"200.00 Ft"},{"v":1500,"d":"1,500.00 Ft"},{"$nulls":6},{"v":2500,"d":"2,500.00 Ft"}]
[null,"Segédanyagok előkészítése",{"v":4800,"d":"4,800.00 Ft"},{"v":0,"d":"0.00 Ft"},{"v":0,"d":"0.00 Ft"},{"v":5500,"d":"5,500.00 Ft"},{"v":0,"d":"0.00 Ft"},{"v":0,"d":"0.00 Ft"},{"$nulls":6},{"v":10300,"d":"10,300.00 Ft"}]
[null,"Segédanyagok nyomtatása",{"v":100,"d":"100.00 Ft"},{"v":500,"d":"500.00 Ft"},{"v":100,"d":"100.00 Ft"},{"v":100,"d":"100.00 Ft"},{"v":600,"d":"600.00 Ft"},{"v":180,"d":"180.00 Ft"},{"$nulls":6},{"v":1580,"d":"1,580.00 Ft"}]
[null,"Marketingrendezvények",{"v":1800,"d":"1,800.00 Ft"},{"v":2200,"d":"2,200.00 Ft"},{"v":2200,"d":"2,200.00 Ft"},{"v":4700,"d":"4,700.00 Ft"},{"v":1500,"d":"1,500.00 Ft"},{"v":2300,"d":"2,300.00 Ft"},{"$nulls":6},{"v":14700,"d":"14,700.00 Ft"}]
[null,"Vegyes költségek",{"v":145,"d":"145.00 Ft"},{"v":156,"d":"156.00 Ft"},{"v":123,"d":"123.00 Ft"},{"v":223,"d":"223.00 Ft"},{"v":187,"d":"187.00 Ft"},{"v":245,"d":"245.00 Ft"},{"$nulls":6},{"v":1079,"d":"1,079.00 Ft"}]
[null,"Részösszeg",{"$f":"SUBTOTAL(109,MarketingTényleges[Jan.])","v":{"v":7545,"d":"7,545.00 Ft"}},{"$f":"SUBTOTAL(109,MarketingTényleges[Febr.])","v":{"v":3556,"d":"3,556.00 Ft"}},{"$f":"SUBTOTAL(109,MarketingTényleges[Márc.])","v":{"v":3123,"d":"3,123.00 Ft"}},{"$f":"SUBTOTAL(109,MarketingTényleges[Ápr.])","v":{"v":11223,"d":"11,223.00 Ft"}},{"$f":"SUBTOTAL(109,MarketingTényleges[Máj.])","v":{"v":2987,"d":"2,987.00 Ft"}},{"$f":"SUBTOTAL(109,MarketingTényleges[Jún.])","v":{"v":4725,"d":"4,725.00 Ft"}},{"$f":"SUBTOTAL(109,MarketingTényleges[Júl.])","v":{"v":0,"d":"0.00 Ft"}},{"$f":"SUBTOTAL(109,MarketingTényleges[Aug.])","v":{"v":0,"d":"0.00 Ft"}},{"$f":"SUBTOTAL(109,MarketingTényleges[Szept.])","v":{"v":0,"d":"0.00 Ft"}},{"$f":"SUBTOTAL(109,MarketingTényleges[Okt.])","v":{"v":0,"d":"0.00 Ft"}},{"$f":"SUBTOTAL(109,MarketingTényleges[Nov.])","v":{"v":0,"d":"0.00 Ft"}},{"$f":"SUBTOTAL(109,MarketingTényleges[Dec.])","v":{"v":0,"d":"0.00 Ft"}},{"$f":"SUBTOTAL(109,MarketingTényleges[ÉV])","v":{"v":33159,"d":"33,159.00 Ft"}}]
[]
["Írja be a képzési és az utazási költségeket jobbra lévő cellában kezdődő Képzési és utazási tényleges táblázatba. A következő utasítás az A35 cellában található.","Képzés/utazás","Jan.","Febr.","Márc.","Ápr.","Máj.","Jún.","Júl.","Aug.","Szept.","Okt.","Nov.","Dec.","ÉV"]
[null,"Tanfolyamok",{"v":1600,"d":"1,600.00 Ft"},{"v":2400,"d":"2,400.00 Ft"},{"v":1400,"d":"1,400.00 Ft"},{"v":1600,"d":"1,600.00 Ft"},{"v":1200,"d":"1,200.00 Ft"},{"v":2800,"d":"2,800.00 Ft"},{"$nulls":6},{"$f":"SUM(C31:N31)","v":{"v":11000,"d":"11,000.00 Ft"}}]
[null,"Képzéshez kapcsolódó utazási költségek",{"v":1200,"d":"1,200.00 Ft"},{"v":2200,"d":"2,200.00 Ft"},{"v":1400,"d":"1,400.00 Ft"},{"v":1200,"d":"1,200.00 Ft"},{"v":800,"d":"800.00 Ft"},{"v":3500,"d":"3,500.00 Ft"},{"$nulls":6},{"$f":"SUM(C32:N32)","v":{"v":10300,"d":"10,300.00 Ft"}}]
[null,"Részösszeg",{"$f":"SUBTOTAL(109,KépzésiÉsUtazásiTényleges[Jan.])","v":{"v":2800,"d":"2,800.00 Ft"}},{"$f":"SUBTOTAL(109,KépzésiÉsUtazásiTényleges[Febr.])","v":{"v":4600,"d":"4,600.00 Ft"}},{"$f":"SUBTOTAL(109,KépzésiÉsUtazásiTényleges[Márc.])","v":{"v":2800,"d":"2,800.00 Ft"}},{"$f":"SUBTOTAL(109,KépzésiÉsUtazásiTényleges[Ápr.])","v":{"v":2800,"d":"2,800.00 Ft"}},{"$f":"SUBTOTAL(109,KépzésiÉsUtazásiTényleges[Máj.])","v":{"v":2000,"d":"2,000.00 Ft"}},{"$f":"SUBTOTAL(109,KépzésiÉsUtazásiTényleges[Jún.])","v":{"v":6300,"d":"6,300.00 Ft"}},{"$f":"SUBTOTAL(109,KépzésiÉsUtazásiTényleges[Júl.])","v":{"v":0,"d":"0.00 Ft"}},{"$f":"SUBTOTAL(109,KépzésiÉsUtazásiTényleges[Aug.])","v":{"v":0,"d":"0.00 Ft"}},{"$f":"SUBTOTAL(109,KépzésiÉsUtazásiTényleges[Szept.])","v":{"v":0,"d":"0.00 Ft"}},{"$f":"SUBTOTAL(109,KépzésiÉsUtazásiTényleges[Okt.])","v":{"v":0,"d":"0.00 Ft"}},{"$f":"SUBTOTAL(109,KépzésiÉsUtazásiTényleges[Nov.])","v":{"v":0,"d":"0.00 Ft"}},{"$f":"SUBTOTAL(109,KépzésiÉsUtazásiTényleges[Dec.])","v":{"v":0,"d":"0.00 Ft"}},{"$f":"SUBTOTAL(109,KépzésiÉsUtazásiTényleges[ÉV])","v":{"v":21300,"d":"21,300.00 Ft"}}]
[]
["A jobbra lévő cellában kezdődő Tényleges összes tényleges táblázatban a sablon automatikusan összes tényleges költség.","ÖSSZES TERVEZETT KÖLTSÉG","Jan.","Febr.","Márc.","Ápr.","Máj.","Jún.","Júl.","Aug.","Szept.","Okt.","Nov.","Dec.","Év"]
[null,"Tényleges havi költség",{"$f":"KépzésiÉsUtazásiTényleges[[#Totals],[Jan.]]+MarketingTényleges[[#Totals],[Jan.]]+IrodaiTényleges[[#Totals],[Jan.]]+AlkalmazottiTényleges[[#Totals],[Jan.]]","v":{"v":129682,"d":"129,682.00 Ft"}},{"$f":"KépzésiÉsUtazásiTényleges[[#Totals],[Febr.]]+MarketingTényleges[[#Totals],[Febr.]]+IrodaiTényleges[[#Totals],[Febr.]]+AlkalmazottiTényleges[[#Totals],[Febr.]]","v":{"v":127804,"d":"127,804.00 Ft"}},{"$f":"KépzésiÉsUtazásiTényleges[[#Totals],[Márc.]]+MarketingTényleges[[#Totals],[Márc.]]+IrodaiTényleges[[#Totals],[Márc.]]+AlkalmazottiTényleges[[#Totals],[Márc.]]","v":{"v":125565,"d":"125,565.00 Ft"}},{"$f":"KépzésiÉsUtazásiTényleges[[#Totals],[Ápr.]]+MarketingTényleges[[#Totals],[Ápr.]]+IrodaiTényleges[[#Totals],[Ápr.]]+AlkalmazottiTényleges[[#Totals],[Ápr.]]","v":{"v":137394,"d":"137,394.00 Ft"}},{"$f":"KépzésiÉsUtazásiTényleges[[#Totals],[Máj.]]+MarketingTényleges[[#Totals],[Máj.]]+IrodaiTényleges[[#Totals],[Máj.]]+AlkalmazottiTényleges[[#Totals],[Máj.]]","v":{"v":128255,"d":"128,255.00 Ft"}},{"$f":"KépzésiÉsUtazásiTényleges[[#Totals],[Jún.]]+MarketingTényleges[[#Totals],[Jún.]]+IrodaiTényleges[[#Totals],[Jún.]]+AlkalmazottiTényleges[[#Totals],[Jún.]]","v":{"v":134239,"d":"134,239.00 Ft"}},{"$f":"KépzésiÉsUtazásiTényleges[[#Totals],[Júl.]]+MarketingTényleges[[#Totals],[Júl.]]+IrodaiTényleges[[#Totals],[Júl.]]+AlkalmazottiTényleges[[#Totals],[Júl.]]","v":{"v":0,"d":"0.00 Ft"}},{"$f":"KépzésiÉsUtazásiTényleges[[#Totals],[Aug.]]+MarketingTényleges[[#Totals],[Aug.]]+IrodaiTényleges[[#Totals],[Aug.]]+AlkalmazottiTényleges[[#Totals],[Aug.]]","v":{"v":0,"d":"0.00 Ft"}},{"$f":"KépzésiÉsUtazásiTényleges[[#Totals],[Szept.]]+MarketingTényleges[[#Totals],[Szept.]]+IrodaiTényleges[[#Totals],[Szept.]]+AlkalmazottiTényleges[[#Totals],[Szept.]]","v":{"v":0,"d":"0.00 Ft"}},{"$f":"KépzésiÉsUtazásiTényleges[[#Totals],[Okt.]]+MarketingTényleges[[#Totals],[Okt.]]+IrodaiTényleges[[#Totals],[Okt.]]+AlkalmazottiTényleges[[#Totals],[Okt.]]","v":{"v":0,"d":"0.00 Ft"}},{"$f":"KépzésiÉsUtazásiTényleges[[#Totals],[Nov.]]+MarketingTényleges[[#Totals],[Nov.]]+IrodaiTényleges[[#Totals],[Nov.]]+AlkalmazottiTényleges[[#Totals],[Nov.]]","v":{"v":0,"d":"0.00 Ft"}},{"$f":"KépzésiÉsUtazásiTényleges[[#Totals],[Dec.]]+MarketingTényleges[[#Totals],[Dec.]]+IrodaiTényleges[[#Totals],[Dec.]]+AlkalmazottiTényleges[[#Totals],[Dec.]]","v":{"v":0,"d":"0.00 Ft"}},{"$f":"KépzésiÉsUtazásiTényleges[[#Totals],[ÉV]]+MarketingTényleges[[#Totals],[ÉV]]+IrodaiTényleges[[#Totals],[ÉV]]+AlkalmazottiTényleges[[#Totals],[ÉV]]","v":{"v":782939,"d":"782,939.00 Ft"}}]
[null,"ÖSSZES Tényleges költség",{"$f":"SUM($C$36:C36)","v":{"v":129682,"d":"129,682.00 Ft"}},{"$f":"SUM($C$36:D36)","v":{"v":257486,"d":"257,486.00 Ft"}},{"$f":"SUM($C$36:E36)","v":{"v":383051,"d":"383,051.00 Ft"}},{"$f":"SUM($C$36:F36)","v":{"v":520445,"d":"520,445.00 Ft"}},{"$f":"SUM($C$36:G36)","v":{"v":648700,"d":"648,700.00 Ft"}},{"$f":"SUM($C$36:H36)","v":{"v":782939,"d":"782,939.00 Ft"}},{"$f":"SUM($C$36:I36)","v":{"v":782939,"d":"782,939.00 Ft"}},{"$f":"SUM($C$36:J36)","v":{"v":782939,"d":"782,939.00 Ft"}},{"$f":"SUM($C$36:K36)","v":{"v":782939,"d":"782,939.00 Ft"}},{"$f":"SUM($C$36:L36)","v":{"v":782939,"d":"782,939.00 Ft"}},{"$f":"SUM($C$36:M36)","v":{"v":782939,"d":"782,939.00 Ft"}},{"$f":"SUM($C$36:N36)","v":{"v":782939,"d":"782,939.00 Ft"}}]

{"sheet":"KÖLTSÉGEK ELTÉRÉSEI","index":3,"n_rows":37,"n_cols":16,"rows_kept":37,"merged":[[1,1,2,3],[1,10,1,12],[1,13,2,14],[2,10,2,12],[8,1,8,2],[19,1,19,2],[28,1,28,2],[33,1,33,2]]}
["Ennek a munkalapnak a megfelelő táblázataiban a sablon automatikusan kiszámítja az alkalmazotti költségek, az irodaköltségek, a marketingköltségek, valamint a képzési és utazási költségek tervezett és tényleges adatai közötti eltérést. Ennek az oszlopnak a celláiban a munkalap használatát megkönnyítő útmutatás olvasható. Első lépésként nyomja le a lefelé nyilat.",{"$nulls":14}," "]
["A jobbra lévő cellában automatikusan frissül a cég neve. A munkalap címe a K2 cellában található. Szúrja be az emblémát az N2 cellába.",{"$f":"'TERVEZETT KÖLTSÉGEK'!B2:D3","v":"Cég neve"},{"$nulls":8},{"$f":"munkalap_címe","v":"Részletes költségbecslés"},null,null,"Ebben a cellában az embléma helyőrzője található."]
["A K3 cellában egy hasznos tanács szerepel.",{"$nulls":9},"Az árnyékolt cellák számítások."]
["A jobbra lévő cellában a Költségek eltérései felirat olvasható, a C4 és az N4 cella között a hónapok vannak felsorolva, az O4 cella az Év oszlopfejlécet tartalmazza.","KÖLTSÉGEK ELTÉRÉSEI","JAN.","FEBR.","MÁRC.","ÁPR.","MÁJ.","JÚN.","JÚL.","AUG.","SZEPT.","OKT.","NOV.","DEC.","ÉV"]
["A jobbra lévő cellában kezdődő Alkalmazotti eltérés táblázatban a sablon automatikusan kiszámítja az alkalmazotti költségek eltérését. A következő utasítás az A10 cellában található.","Alkalmazotti költségek","Jan.","Febr.","Márc.","Ápr.","Máj.","Jún.","Júl.","Aug.","Szept.","Okt.","Nov.","Dec.","ÉV"]
[null,"Bérek",{"$f":"INDEX(AlkalmazottiTervezett[],MATCH(INDEX(AlkalmazottiEltérés[],ROW()-ROW(AlkalmazottiEltérés[[#Headers],[Jan.]]),1),INDEX(AlkalmazottiTervezett[],,1),0),MATCH(AlkalmazottiEltérés[[#Headers],[Jan.]],AlkalmazottiTervezett[#Headers],0))-INDEX(AlkalmazottiTényleges[],MATCH(INDEX(AlkalmazottiEltérés[],ROW()-ROW(AlkalmazottiEltérés[[#Headers],[Jan.]]),1),INDEX(AlkalmazottiTervezett[],,1),0),MATCH(AlkalmazottiEltérés[[#Headers],[Jan.]],AlkalmazottiTényleges[#Headers],0))","v":{"v":0,"d":"0.00 Ft"}},{"$f":"INDEX(AlkalmazottiTervezett[],MATCH(INDEX(AlkalmazottiEltérés[],ROW()-ROW(AlkalmazottiEltérés[[#Headers],[Febr.]]),1),INDEX(AlkalmazottiTervezett[],,1),0),MATCH(AlkalmazottiEltérés[[#Headers],[Febr.]],AlkalmazottiTervezett[#Headers],0))-INDEX(AlkalmazottiTényleges[],MATCH(INDEX(AlkalmazottiEltérés[],ROW()-ROW(AlkalmazottiEltérés[[#Headers],[Febr.]]),1),INDEX(AlkalmazottiTervezett[],,1),0),MATCH(AlkalmazottiEltérés[[#Headers],[Febr.]],AlkalmazottiTényleges[#Headers],0))","v":{"v":0,"d":"0.00 Ft"}},{"$f":"INDEX(AlkalmazottiTervezett[],MATCH(INDEX(AlkalmazottiEltérés[],ROW()-ROW(AlkalmazottiEltérés[[#Headers],[Márc.]]),1),INDEX(AlkalmazottiTervezett[],,1),0),MATCH(AlkalmazottiEltérés[[#Headers],[Márc.]],AlkalmazottiTervezett[#Headers],0))-INDEX(AlkalmazottiTényleges[],MATCH(INDEX(AlkalmazottiEltérés[],ROW()-ROW(AlkalmazottiEltérés[[#Headers],[Márc.]]),1),INDEX(AlkalmazottiTervezett[],,1),0),MATCH(AlkalmazottiEltérés[[#Headers],[Márc.]],AlkalmazottiTényleges[#Headers],0))","v":{"v":0,"d":"0.00 Ft"}},{"$f":"INDEX(AlkalmazottiTervezett[],MATCH(INDEX(AlkalmazottiEltérés[],ROW()-ROW(AlkalmazottiEltérés[[#Headers],[Ápr.]]),1),INDEX(AlkalmazottiTervezett[],,1),0),MATCH(AlkalmazottiEltérés[[#Headers],[Ápr.]],AlkalmazottiTervezett[#Headers],0))-INDEX(AlkalmazottiTényleges[],MATCH(INDEX(AlkalmazottiEltérés[],ROW()-ROW(AlkalmazottiEltérés[[#Headers],[Ápr.]]),1),INDEX(AlkalmazottiTervezett[],,1),0),MATCH(AlkalmazottiEltérés[[#Headers],[Ápr.]],AlkalmazottiTényleges[#Headers],0))","v":{"v":-500,"d":"-500.00 Ft"}},{"$f":"INDEX(AlkalmazottiTervezett[],MATCH(INDEX(AlkalmazottiEltérés[],ROW()-ROW(AlkalmazottiEltérés[[#Headers],[Máj.]]),1),INDEX(AlkalmazottiTervezett[],,1),0),MATCH(AlkalmazottiEltérés[[#Headers],[Máj.]],AlkalmazottiTervezett[#Headers],0))-INDEX(AlkalmazottiTényleges[],MATCH(INDEX(AlkalmazottiEltérés[],ROW()-ROW(AlkalmazottiEltérés[[#Headers],[Máj.]]),1),INDEX(AlkalmazottiTervezett[],,1),0),MATCH(AlkalmazottiEltérés[[#Headers],[Máj.]],AlkalmazottiTényleges[#Headers],0))","v":{"v":-500,"d":"-500.00 Ft"}},{"$f":"INDEX(AlkalmazottiTervezett[],MATCH(INDEX(AlkalmazottiEltérés[],ROW()-ROW(AlkalmazottiEltérés[[#Headers],[Jún.]]),1),INDEX(AlkalmazottiTervezett[],,1),0),MATCH(AlkalmazottiEltérés[[#Headers],[Jún.]],AlkalmazottiTervezett[#Headers],0))-INDEX(AlkalmazottiTényleges[],MATCH(INDEX(AlkalmazottiEltérés[],ROW()-ROW(AlkalmazottiEltérés[[#Headers],[Jún.]]),1),INDEX(AlkalmazottiTervezett[],,1),0),MATCH(AlkalmazottiEltérés[[#Headers],[Jún.]],AlkalmazottiTényleges[#Headers],0))","v":{"v":-500,"d":"-500.00 Ft"}},{"$f":"INDEX(AlkalmazottiTervezett[],MATCH(INDEX(AlkalmazottiEltérés[],ROW()-ROW(AlkalmazottiEltérés[[#Headers],[Júl.]]),1),INDEX(AlkalmazottiTervezett[],,1),0),MATCH(AlkalmazottiEltérés[[#Headers],[Júl.]],AlkalmazottiTervezett[#Headers],0))-INDEX(AlkalmazottiTényleges[],MATCH(INDEX(AlkalmazottiEltérés[],ROW()-ROW(AlkalmazottiEltérés[[#Headers],[Júl.]]),1),INDEX(AlkalmazottiTervezett[],,1),0),MATCH(AlkalmazottiEltérés[[#Headers],[Júl.]],AlkalmazottiTényleges[#Headers],0))","v":{"v":87500,"d":"87,500.00 Ft"}},{"$f":"INDEX(AlkalmazottiTervezett[],MATCH(INDEX(AlkalmazottiEltérés[],ROW()-ROW(AlkalmazottiEltérés[[#Headers],[Aug.]]),1),INDEX(AlkalmazottiTervezett[],,1),0),MATCH(AlkalmazottiEltérés[[#Headers],[Aug.]],AlkalmazottiTervezett[#Headers],0))-INDEX(AlkalmazottiTényleges[],MATCH(INDEX(AlkalmazottiEltérés[],ROW()-ROW(AlkalmazottiEltérés[[#Headers],[Aug.]]),1),INDEX(AlkalmazottiTervezett[],,1),0),MATCH(AlkalmazottiEltérés[[#Headers],[Aug.]],AlkalmazottiTényleges[#Headers],0))","v":{"v":92400,"d":"92,400.00 Ft"}},{"$f":"INDEX(AlkalmazottiTervezett[],MATCH(INDEX(AlkalmazottiEltérés[],ROW()-ROW(AlkalmazottiEltérés[[#Headers],[Szept.]]),1),INDEX(AlkalmazottiTervezett[],,1),0),MATCH(AlkalmazottiEltérés[[#Headers],[Szept.]],AlkalmazottiTervezett[#Headers],0))-INDEX(AlkalmazottiTényleges[],MATCH(INDEX(AlkalmazottiEltérés[],ROW()-ROW(AlkalmazottiEltérés[[#Headers],[Szept.]]),1),INDEX(AlkalmazottiTervezett[],,1),0),MATCH(AlkalmazottiEltérés[[#Headers],[Szept.]],AlkalmazottiTényleges[#Headers],0))","v":{"v":92400,"d":"92,400.00 Ft"}},{"$f":"INDEX(AlkalmazottiTervezett[],MATCH(INDEX(AlkalmazottiEltérés[],ROW()-ROW(AlkalmazottiEltérés[[#Headers],[Okt.]]),1),INDEX(AlkalmazottiTervezett[],,1),0),MATCH(AlkalmazottiEltérés[[#Headers],[Okt.]],AlkalmazottiTervezett[#Headers],0))-INDEX(AlkalmazottiTényleges[],MATCH(INDEX(AlkalmazottiEltérés[],ROW()-ROW(AlkalmazottiEltérés[[#Headers],[Okt.]]),1),INDEX(AlkalmazottiTervezett[],,1),0),MATCH(AlkalmazottiEltérés[[#Headers],[Okt.]],AlkalmazottiTényleges[#Headers],0))","v":{"v":92400,"d":"92,400.00 Ft"}},{"$f":"INDEX(AlkalmazottiTervezett[],MATCH(INDEX(AlkalmazottiEltérés[],ROW()-ROW(AlkalmazottiEltérés[[#Headers],[Nov.]]),1),INDEX(AlkalmazottiTervezett[],,1),0),MATCH(AlkalmazottiEltérés[[#Headers],[Nov.]],AlkalmazottiTervezett[#Headers],0))-INDEX(AlkalmazottiTényleges[],MATCH(INDEX(AlkalmazottiEltérés[],ROW()-ROW(AlkalmazottiEltérés[[#Headers],[Nov.]]),1),INDEX(AlkalmazottiTervezett[],,1),0),MATCH(AlkalmazottiEltérés[[#Headers],[Nov.]],AlkalmazottiTényleges[#Headers],0))","v":{"v":92400,"d":"92,400.00 Ft"}},{"$f":"INDEX(AlkalmazottiTervezett[],MATCH(INDEX(AlkalmazottiEltérés[],ROW()-ROW(AlkalmazottiEltérés[[#Headers],[Dec.]]),1),INDEX(AlkalmazottiTervezett[],,1),0),MATCH(AlkalmazottiEltérés[[#Headers],[Dec.]],AlkalmazottiTervezett[#Headers],0))-INDEX(AlkalmazottiTényleges[],MATCH(INDEX(AlkalmazottiEltérés[],ROW()-ROW(AlkalmazottiEltérés[[#Headers],[Dec.]]),1),INDEX(AlkalmazottiTervezett[],,1),0),MATCH(AlkalmazottiEltérés[[#Headers],[Dec.]],AlkalmazottiTényleges[#Headers],0))","v":{"v":92400,"d":"92,400.00 Ft"}},{"$f":"SUM(AlkalmazottiEltérés[[#This Row],[Jan.]:[Dec.]])","v":{"v":548000,"d":"548,000.00 Ft"}}]
[null,"Juttatások",{"$f":"INDEX(AlkalmazottiTervezett[],MATCH(INDEX(AlkalmazottiEltérés[],ROW()-ROW(AlkalmazottiEltérés[[#Headers],[Jan.]]),1),INDEX(AlkalmazottiTervezett[],,1),0),MATCH(AlkalmazottiEltérés[[#Headers],[Jan.]],AlkalmazottiTervezett[#Headers],0))-INDEX(AlkalmazottiTényleges[],MATCH(INDEX(AlkalmazottiEltérés[],ROW()-ROW(AlkalmazottiEltérés[[#Headers],[Jan.]]),1),INDEX(AlkalmazottiTervezett[],,1),0),MATCH(AlkalmazottiEltérés[[#Headers],[Jan.]],AlkalmazottiTényleges[#Headers],0))","v":{"v":0,"d":"0.00 Ft"}},{"$f":"INDEX(AlkalmazottiTervezett[],MATCH(INDEX(AlkalmazottiEltérés[],ROW()-ROW(AlkalmazottiEltérés[[#Headers],[Febr.]]),1),INDEX(AlkalmazottiTervezett[],,1),0),MATCH(AlkalmazottiEltérés[[#Headers],[Febr.]],AlkalmazottiTervezett[#Headers],0))-INDEX(AlkalmazottiTényleges[],MATCH(INDEX(AlkalmazottiEltérés[],ROW()-ROW(AlkalmazottiEltérés[[#Headers],[Febr.]]),1),INDEX(AlkalmazottiTervezett[],,1),0),MATCH(AlkalmazottiEltérés[[#Headers],[Febr.]],AlkalmazottiTényleges[#Headers],0))","v":{"v":0,"d":"0.00 Ft"}},{"$f":"INDEX(AlkalmazottiTervezett[],MATCH(INDEX(AlkalmazottiEltérés[],ROW()-ROW(AlkalmazottiEltérés[[#Headers],[Márc.]]),1),INDEX(AlkalmazottiTervezett[],,1),0),MATCH(AlkalmazottiEltérés[[#Headers],[Márc.]],AlkalmazottiTervezett[#Headers],0))-INDEX(AlkalmazottiTényleges[],MATCH(INDEX(AlkalmazottiEltérés[],ROW()-ROW(AlkalmazottiEltérés[[#Headers],[Márc.]]),1),INDEX(AlkalmazottiTervezett[],,1),0),MATCH(AlkalmazottiEltérés[[#Headers],[Márc.]],AlkalmazottiTényleges[#Headers],0))","v":{"v":0,"d":"0.00 Ft"}},{"$f":"INDEX(AlkalmazottiTervezett[],MATCH(INDEX(AlkalmazottiEltérés[],ROW()-ROW(AlkalmazottiEltérés[[#Headers],[Ápr.]]),1),INDEX(AlkalmazottiTervezett[],,1),0),MATCH(AlkalmazottiEltérés[[#Headers],[Ápr.]],AlkalmazottiTervezett[#Headers],0))-INDEX(AlkalmazottiTényleges[],MATCH(INDEX(AlkalmazottiEltérés[],ROW()-ROW(AlkalmazottiEltérés[[#Headers],[Ápr.]]),1),INDEX(AlkalmazottiTervezett[],,1),0),MATCH(AlkalmazottiEltérés[[#Headers],[Ápr.]],AlkalmazottiTényleges[#Headers],0))","v":{"v":-135,"d":"-135.00 Ft"}},{"$f":"INDEX(AlkalmazottiTervezett[],MATCH(INDEX(AlkalmazottiEltérés[],ROW()-ROW(AlkalmazottiEltérés[[#Headers],[Máj.]]),1),INDEX(AlkalmazottiTervezett[],,1),0),MATCH(AlkalmazottiEltérés[[#Headers],[Máj.]],AlkalmazottiTervezett[#Headers],0))-INDEX(AlkalmazottiTényleges[],MATCH(INDEX(AlkalmazottiEltérés[],ROW()-ROW(AlkalmazottiEltérés[[#Headers],[Máj.]]),1),INDEX(AlkalmazottiTervezett[],,1),0),MATCH(AlkalmazottiEltérés[[#Headers],[Máj.]],AlkalmazottiTényleges[#Headers],0))","v":{"v":-135,"d":"-135.00 Ft"}},{"$f":"INDEX(AlkalmazottiTervezett[],MATCH(INDEX(AlkalmazottiEltérés[],ROW()-ROW(AlkalmazottiEltérés[[#Headers],[Jún.]]),1),INDEX(AlkalmazottiTervezett[],,1),0),MATCH(AlkalmazottiEltérés[[#Headers],[Jún.]],AlkalmazottiTervezett[#Headers],0))-INDEX(AlkalmazottiTényleges[],MATCH(INDEX(AlkalmazottiEltérés[],ROW()-ROW(AlkalmazottiEltérés[[#Headers],[Jún.]]),1),INDEX(AlkalmazottiTervezett[],,1),0),MATCH(AlkalmazottiEltérés[[#Headers],[Jún.]],AlkalmazottiTényleges[#Headers],0))","v":{"v":-135,"d":"-135.00 Ft"}},{"$f":"INDEX(AlkalmazottiTervezett[],MATCH(INDEX(AlkalmazottiEltérés[],ROW()-ROW(AlkalmazottiEltérés[[#Headers],[Júl.]]),1),INDEX(AlkalmazottiTervezett[],,1),0),MATCH(AlkalmazottiEltérés[[#Headers],[Júl.]],AlkalmazottiTervezett[#Headers],0))-INDEX(AlkalmazottiTényleges[],MATCH(INDEX(AlkalmazottiEltérés[],ROW()-ROW(AlkalmazottiEltérés[[#Headers],[Júl.]]),1),INDEX(AlkalmazottiTervezett[],,1),0),MATCH(AlkalmazottiEltérés[[#Headers],[Júl.]],AlkalmazottiTényleges[#Headers],0))","v":{"v":23625,"d":"23,625.00 Ft"}},{"$f":"INDEX(AlkalmazottiTervezett[],MATCH(INDEX(AlkalmazottiEltérés[],ROW()-ROW(AlkalmazottiEltérés[[#Headers],[Aug.]]),1),INDEX(AlkalmazottiTervezett[],,1),0),MATCH(AlkalmazottiEltérés[[#Headers],[Aug.]],AlkalmazottiTervezett[#Headers],0))-INDEX(AlkalmazottiTényleges[],MATCH(INDEX(AlkalmazottiEltérés[],ROW()-ROW(AlkalmazottiEltérés[[#Headers],[Aug.]]),1),INDEX(AlkalmazottiTervezett[],,1),0),MATCH(AlkalmazottiEltérés[[#Headers],[Aug.]],AlkalmazottiTényleges[#Headers],0))","v":{"v":24948,"d":"24,948.00 Ft"}},{"$f":"INDEX(AlkalmazottiTervezett[],MATCH(INDEX(AlkalmazottiEltérés[],ROW()-ROW(AlkalmazottiEltérés[[#Headers],[Szept.]]),1),INDEX(AlkalmazottiTervezett[],,1),0),MATCH(AlkalmazottiEltérés[[#Headers],[Szept.]],AlkalmazottiTervezett[#Headers],0))-INDEX(AlkalmazottiTényleges[],MATCH(INDEX(AlkalmazottiEltérés[],ROW()-ROW(AlkalmazottiEltérés[[#Headers],[Szept.]]),1),INDEX(AlkalmazottiTervezett[],,1),0),MATCH(AlkalmazottiEltérés[[#Headers],[Szept.]],AlkalmazottiTényleges[#Headers],0))","v":{"v":24948,"d":"24,948.00 Ft"}},{"$f":"INDEX(AlkalmazottiTervezett[],MATCH(INDEX(AlkalmazottiEltérés[],ROW()-ROW(AlkalmazottiEltérés[[#Headers],[Okt.]]),1),INDEX(AlkalmazottiTervezett[],,1),0),MATCH(AlkalmazottiEltérés[[#Headers],[Okt.]],AlkalmazottiTervezett[#Headers],0))-INDEX(AlkalmazottiTényleges[],MATCH(INDEX(AlkalmazottiEltérés[],ROW()-ROW(AlkalmazottiEltérés[[#Headers],[Okt.]]),1),INDEX(AlkalmazottiTervezett[],,1),0),MATCH(AlkalmazottiEltérés[[#Headers],[Okt.]],AlkalmazottiTényleges[#Headers],0))","v":{"v":24948,"d":"24,948.00 Ft"}},{"$f":"INDEX(AlkalmazottiTervezett[],MATCH(INDEX(AlkalmazottiEltérés[],ROW()-ROW(AlkalmazottiEltérés[[#Headers],[Nov.]]),1),INDEX(AlkalmazottiTervezett[],,1),0),MATCH(AlkalmazottiEltérés[[#Headers],[Nov.]],AlkalmazottiTervezett[#Headers],0))-INDEX(AlkalmazottiTényleges[],MATCH(INDEX(AlkalmazottiEltérés[],ROW()-ROW(AlkalmazottiEltérés[[#Headers],[Nov.]]),1),INDEX(AlkalmazottiTervezett[],,1),0),MATCH(AlkalmazottiEltérés[[#Headers],[Nov.]],AlkalmazottiTényleges[#Headers],0))","v":{"v":24948,"d":"24,948.00 Ft"}},{"$f":"INDEX(AlkalmazottiTervezett[],MATCH(INDEX(AlkalmazottiEltérés[],ROW()-ROW(AlkalmazottiEltérés[[#Headers],[Dec.]]),1),INDEX(AlkalmazottiTervezett[],,1),0),MATCH(AlkalmazottiEltérés[[#Headers],[Dec.]],AlkalmazottiTervezett[#Headers],0))-INDEX(AlkalmazottiTényleges[],MATCH(INDEX(AlkalmazottiEltérés[],ROW()-ROW(AlkalmazottiEltérés[[#Headers],[Dec.]]),1),INDEX(AlkalmazottiTervezett[],,1),0),MATCH(AlkalmazottiEltérés[[#Headers],[Dec.]],AlkalmazottiTényleges[#Headers],0))","v":{"v":24948,"d":"24,948.00 Ft"}},{"$f":"SUM(AlkalmazottiEltérés[[#This Row],[Jan.]:[Dec.]])","v":{"v":147960,"d":"147,960.00 Ft"}}]
[null,"Részösszeg",{"$f":"SUBTOTAL(109,AlkalmazottiEltérés[Jan.])","v":{"v":0,"d":"0.00 Ft"}},{"$f":"SUBTOTAL(109,AlkalmazottiEltérés[Febr.])","v":{"v":0,"d":"0.00 Ft"}},{"$f":"SUBTOTAL(109,AlkalmazottiEltérés[Márc.])","v":{"v":0,"d":"0.00 Ft"}},{"$f":"SUBTOTAL(109,AlkalmazottiEltérés[Ápr.])","v":{"v":-635,"d":"-635.00 Ft"}},{"$f":"SUBTOTAL(109,AlkalmazottiEltérés[Máj.])","v":{"v":-635,"d":"-635.00 Ft"}},{"$f":"SUBTOTAL(109,AlkalmazottiEltérés[Jún.])","v":{"v":-635,"d":"-635.00 Ft"}},{"$f":"SUBTOTAL(109,AlkalmazottiEltérés[Júl.])","v":{"v":111125,"d":"111,125.00 Ft"}},{"$f":"SUBTOTAL(109,AlkalmazottiEltérés[Aug.])","v":{"v":117348,"d":"117,348.00 Ft"}},{"$f":"SUBTOTAL(109,AlkalmazottiEltérés[Szept.])","v":{"v":117348,"d":"117,348.00 Ft"}},{"$f":"SUBTOTAL(109,AlkalmazottiEltérés[Okt.])","v":{"v":117348,"d":"117,348.00 Ft"}},{"$f":"SUBTOTAL(109,AlkalmazottiEltérés[Nov.])","v":{"v":117348,"d":"117,348.00 Ft"}},{"$f":"SUBTOTAL(109,AlkalmazottiEltérés[Dec.])","v":{"v":117348,"d":"117,348.00 Ft"}},{"$f":"SUBTOTAL(109,AlkalmazottiEltérés[ÉV])","v":{"v":695960,"d":"695,960.00 Ft"}}]
[]
["A jobbra lévő cellában kezdődő Irodai eltérések táblázatban a sablon automatikusan kiszámítja az irodaköltségek eltérését. A következő utasítás az A21 cellában található.","Irodaköltségek","Jan.","Febr.","Márc.","Ápr.","Máj.","Jún.","Júl.","Aug.","Szept.","Okt.","Nov.","Dec.","ÉV"]
[null,"Irodabérlési díj",{"$f":"INDEX(IrodaiTervezett[],MATCH(INDEX(IrodaiEltérések[],ROW()-ROW(IrodaiEltérések[[#Headers],[Jan.]]),1),INDEX(IrodaiTervezett[],,1),0),MATCH(IrodaiEltérések[[#Headers],[Jan.]],IrodaiTervezett[#Headers],0))-INDEX(IrodaiTényleges[],MATCH(INDEX(IrodaiEltérések[],ROW()-ROW(IrodaiEltérések[[#Headers],[Jan.]]),1),INDEX(IrodaiTervezett[],,1),0),MATCH(IrodaiEltérések[[#Headers],[Jan.]],IrodaiTényleges[#Headers],0))","v":{"v":0,"d":"0.00 Ft"}},{"$f":"INDEX(IrodaiTervezett[],MATCH(INDEX(IrodaiEltérések[],ROW()-ROW(IrodaiEltérések[[#Headers],[Febr.]]),1),INDEX(IrodaiTervezett[],,1),0),MATCH(IrodaiEltérések[[#Headers],[Febr.]],IrodaiTervezett[#Headers],0))-INDEX(IrodaiTényleges[],MATCH(INDEX(IrodaiEltérések[],ROW()-ROW(IrodaiEltérések[[#Headers],[Febr.]]),1),INDEX(IrodaiTervezett[],,1),0),MATCH(IrodaiEltérések[[#Headers],[Febr.]],IrodaiTényleges[#Headers],0))","v":{"v":0,"d":"0.00 Ft"}},{"$f":"INDEX(IrodaiTervezett[],MATCH(INDEX(IrodaiEltérések[],ROW()-ROW(IrodaiEltérések[[#Headers],[Márc.]]),1),INDEX(IrodaiTervezett[],,1),0),MATCH(IrodaiEltérések[[#Headers],[Márc.]],IrodaiTervezett[#Headers],0))-INDEX(IrodaiTényleges[],MATCH(INDEX(IrodaiEltérések[],ROW()-ROW(IrodaiEltérések[[#Headers],[Márc.]]),1),INDEX(IrodaiTervezett[],,1),0),MATCH(IrodaiEltérések[[#Headers],[Márc.]],IrodaiTényleges[#Headers],0))","v":{"v":0,"d":"0.00 Ft"}},{"$f":"INDEX(IrodaiTervezett[],MATCH(INDEX(IrodaiEltérések[],ROW()-ROW(IrodaiEltérések[[#Headers],[Ápr.]]),1),INDEX(IrodaiTervezett[],,1),0),MATCH(IrodaiEltérések[[#Headers],[Ápr.]],IrodaiTervezett[#Headers],0))-INDEX(IrodaiTényleges[],MATCH(INDEX(IrodaiEltérések[],ROW()-ROW(IrodaiEltérések[[#Headers],[Ápr.]]),1),INDEX(IrodaiTervezett[],,1),0),MATCH(IrodaiEltérések[[#Headers],[Ápr.]],IrodaiTényleges[#Headers],0))","v":{"v":0,"d":"0.00 Ft"}},{"$f":"INDEX(IrodaiTervezett[],MATCH(INDEX(IrodaiEltérések[],ROW()-ROW(IrodaiEltérések[[#Headers],[Máj.]]),1),INDEX(IrodaiTervezett[],,1),0),MATCH(IrodaiEltérések[[#Headers],[Máj.]],IrodaiTervezett[#Headers],0))-INDEX(IrodaiTényleges[],MATCH(INDEX(IrodaiEltérések[],ROW()-ROW(IrodaiEltérések[[#Headers],[Máj.]]),1),INDEX(IrodaiTervezett[],,1),0),MATCH(IrodaiEltérések[[#Headers],[Máj.]],IrodaiTényleges[#Headers],0))","v":{"v":0,"d":"0.00 Ft"}},{"$f":"INDEX(IrodaiTervezett[],MATCH(INDEX(IrodaiEltérések[],ROW()-ROW(IrodaiEltérések[[#Headers],[Jún.]]),1),INDEX(IrodaiTervezett[],,1),0),MATCH(IrodaiEltérések[[#Headers],[Jún.]],IrodaiTervezett[#Headers],0))-INDEX(IrodaiTényleges[],MATCH(INDEX(IrodaiEltérések[],ROW()-ROW(IrodaiEltérések[[#Headers],[Jún.]]),1),INDEX(IrodaiTervezett[],,1),0),MATCH(IrodaiEltérések[[#Headers],[Jún.]],IrodaiTényleges[#Headers],0))","v":{"v":0,"d":"0.00 Ft"}},{"$f":"INDEX(IrodaiTervezett[],MATCH(INDEX(IrodaiEltérések[],ROW()-ROW(IrodaiEltérések[[#Headers],[Júl.]]),1),INDEX(IrodaiTervezett[],,1),0),MATCH(IrodaiEltérések[[#Headers],[Júl.]],IrodaiTervezett[#Headers],0))-INDEX(IrodaiTényleges[],MATCH(INDEX(IrodaiEltérések[],ROW()-ROW(IrodaiEltérések[[#Headers],[Júl.]]),1),INDEX(IrodaiTervezett[],,1),0),MATCH(IrodaiEltérések[[#Headers],[Júl.]],IrodaiTényleges[#Headers],0))","v":{"v":9800,"d":"9,800.00 Ft"}},{"$f":"INDEX(IrodaiTervezett[],MATCH(INDEX(IrodaiEltérések[],ROW()-ROW(IrodaiEltérések[[#Headers],[Aug.]]),1),INDEX(IrodaiTervezett[],,1),0),MATCH(IrodaiEltérések[[#Headers],[Aug.]],IrodaiTervezett[#Headers],0))-INDEX(IrodaiTényleges[],MATCH(INDEX(IrodaiEltérések[],ROW()-ROW(IrodaiEltérések[[#Headers],[Aug.]]),1),INDEX(IrodaiTervezett[],,1),0),MATCH(IrodaiEltérések[[#Headers],[Aug.]],IrodaiTényleges[#Headers],0))","v":{"v":9800,"d":"9,800.00 Ft"}},{"$f":"INDEX(IrodaiTervezett[],MATCH(INDEX(IrodaiEltérések[],ROW()-ROW(IrodaiEltérések[[#Headers],[Szept.]]),1),INDEX(IrodaiTervezett[],,1),0),MATCH(IrodaiEltérések[[#Headers],[Szept.]],IrodaiTervezett[#Headers],0))-INDEX(IrodaiTényleges[],MATCH(INDEX(IrodaiEltérések[],ROW()-ROW(IrodaiEltérések[[#Headers],[Szept.]]),1),INDEX(IrodaiTervezett[],,1),0),MATCH(IrodaiEltérések[[#Headers],[Szept.]],IrodaiTényleges[#Headers],0))","v":{"v":9800,"d":"9,800.00 Ft"}},{"$f":"INDEX(IrodaiTervezett[],MATCH(INDEX(IrodaiEltérések[],ROW()-ROW(IrodaiEltérések[[#Headers],[Okt.]]),1),INDEX(IrodaiTervezett[],,1),0),MATCH(IrodaiEltérések[[#Headers],[Okt.]],IrodaiTervezett[#Headers],0))-INDEX(IrodaiTényleges[],MATCH(INDEX(IrodaiEltérések[],ROW()-ROW(IrodaiEltérések[[#Headers],[Okt.]]),1),INDEX(IrodaiTervezett[],,1),0),MATCH(IrodaiEltérések[[#Headers],[Okt.]],IrodaiTényleges[#Headers],0))","v":{"v":9800,"d":"9,800.00 Ft"}},{"$f":"INDEX(IrodaiTervezett[],MATCH(INDEX(IrodaiEltérések[],ROW()-ROW(IrodaiEltérések[[#Headers],[Nov.]]),1),INDEX(IrodaiTervezett[],,1),0),MATCH(IrodaiEltérések[[#Headers],[Nov.]],IrodaiTervezett[#Headers],0))-INDEX(IrodaiTényleges[],MATCH(INDEX(IrodaiEltérések[],ROW()-ROW(IrodaiEltérések[[#Headers],[Nov.]]),1),INDEX(IrodaiTervezett[],,1),0),MATCH(IrodaiEltérések[[#Headers],[Nov.]],IrodaiTényleges[#Headers],0))","v":{"v":9800,"d":"9,800.00 Ft"}},{"$f":"INDEX(IrodaiTervezett[],MATCH(INDEX(IrodaiEltérések[],ROW()-ROW(IrodaiEltérések[[#Headers],[Dec.]]),1),INDEX(IrodaiTervezett[],,1),0),MATCH(IrodaiEltérések[[#Headers],[Dec.]],IrodaiTervezett[#Headers],0))-INDEX(IrodaiTényleges[],MATCH(INDEX(IrodaiEltérések[],ROW()-ROW(IrodaiEltérések[[#Headers],[Dec.]]),1),INDEX(IrodaiTervezett[],,1),0),MATCH(IrodaiEltérések[[#Headers],[Dec.]],IrodaiTényleges[#Headers],0))","v":{"v":9800,"d":"9,800.00 Ft"}},{"$f":"SUM(IrodaiEltérések[[#This Row],[Jan.]:[Dec.]])","v":{"v":58800,"d":"58,800.00 Ft"}}]
[null,"Gáz",{"$f":"INDEX(IrodaiTervezett[],MATCH(INDEX(IrodaiEltérések[],ROW()-ROW(IrodaiEltérések[[#Headers],[Jan.]]),1),INDEX(IrodaiTervezett[],,1),0),MATCH(IrodaiEltérések[[#Headers],[Jan.]],IrodaiTervezett[#Headers],0))-INDEX(IrodaiTényleges[],MATCH(INDEX(IrodaiEltérések[],ROW()-ROW(IrodaiEltérések[[#Headers],[Jan.]]),1),INDEX(IrodaiTervezett[],,1),0),MATCH(IrodaiEltérések[[#Headers],[Jan.]],IrodaiTényleges[#Headers],0))","v":{"v":-4,"d":"-4.00 Ft"}},{"$f":"INDEX(IrodaiTervezett[],MATCH(INDEX(IrodaiEltérések[],ROW()-ROW(IrodaiEltérések[[#Headers],[Febr.]]),1),INDEX(IrodaiTervezett[],,1),0),MATCH(IrodaiEltérések[[#Headers],[Febr.]],IrodaiTervezett[#Headers],0))-INDEX(IrodaiTényleges[],MATCH(INDEX(IrodaiEltérések[],ROW()-ROW(IrodaiEltérések[[#Headers],[Febr.]]),1),INDEX(IrodaiTervezett[],,1),0),MATCH(IrodaiEltérések[[#Headers],[Febr.]],IrodaiTényleges[#Headers],0))","v":{"v":-30,"d":"-30.00 Ft"}},{"$f":"INDEX(IrodaiTervezett[],MATCH(INDEX(IrodaiEltérések[],ROW()-ROW(IrodaiEltérések[[#Headers],[Márc.]]),1),INDEX(IrodaiTervezett[],,1),0),MATCH(IrodaiEltérések[[#Headers],[Márc.]],IrodaiTervezett[#Headers],0))-INDEX(IrodaiTényleges[],MATCH(INDEX(IrodaiEltérések[],ROW()-ROW(IrodaiEltérések[[#Headers],[Márc.]]),1),INDEX(IrodaiTervezett[],,1),0),MATCH(IrodaiEltérések[[#Headers],[Márc.]],IrodaiTényleges[#Headers],0))","v":{"v":15,"d":"15.00 Ft"}},{"$f":"INDEX(IrodaiTervezett[],MATCH(INDEX(IrodaiEltérések[],ROW()-ROW(IrodaiEltérések[[#Headers],[Ápr.]]),1),INDEX(IrodaiTervezett[],,1),0),MATCH(IrodaiEltérések[[#Headers],[Ápr.]],IrodaiTervezett[#Headers],0))-INDEX(IrodaiTényleges[],MATCH(INDEX(IrodaiEltérések[],ROW()-ROW(IrodaiEltérések[[#Headers],[Ápr.]]),1),INDEX(IrodaiTervezett[],,1),0),MATCH(IrodaiEltérések[[#Headers],[Ápr.]],IrodaiTényleges[#Headers],0))","v":{"v":-130,"d":"-130.00 Ft"}},{"$f":"INDEX(IrodaiTervezett[],MATCH(INDEX(IrodaiEltérések[],ROW()-ROW(IrodaiEltérések[[#Headers],[Máj.]]),1),INDEX(IrodaiTervezett[],,1),0),MATCH(IrodaiEltérések[[#Headers],[Máj.]],IrodaiTervezett[#Headers],0))-INDEX(IrodaiTényleges[],MATCH(INDEX(IrodaiEltérések[],ROW()-ROW(IrodaiEltérések[[#Headers],[Máj.]]),1),INDEX(IrodaiTervezett[],,1),0),MATCH(IrodaiEltérések[[#Headers],[Máj.]],IrodaiTényleges[#Headers],0))","v":{"v":13,"d":"13.00 Ft"}},{"$f":"INDEX(IrodaiTervezett[],MATCH(INDEX(IrodaiEltérések[],ROW()-ROW(IrodaiEltérések[[#Headers],[Jún.]]),1),INDEX(IrodaiTervezett[],,1),0),MATCH(IrodaiEltérések[[#Headers],[Jún.]],IrodaiTervezett[#Headers],0))-INDEX(IrodaiTényleges[],MATCH(INDEX(IrodaiEltérések[],ROW()-ROW(IrodaiEltérések[[#Headers],[Jún.]]),1),INDEX(IrodaiTervezett[],,1),0),MATCH(IrodaiEltérések[[#Headers],[Jún.]],IrodaiTényleges[#Headers],0))","v":{"v":12,"d":"12.00 Ft"}},{"$f":"INDEX(IrodaiTervezett[],MATCH(INDEX(IrodaiEltérések[],ROW()-ROW(IrodaiEltérések[[#Headers],[Júl.]]),1),INDEX(IrodaiTervezett[],,1),0),MATCH(IrodaiEltérések[[#Headers],[Júl.]],IrodaiTervezett[#Headers],0))-INDEX(IrodaiTényleges[],MATCH(INDEX(IrodaiEltérések[],ROW()-ROW(IrodaiEltérések[[#Headers],[Júl.]]),1),INDEX(IrodaiTervezett[],,1),0),MATCH(IrodaiEltérések[[#Headers],[Júl.]],IrodaiTényleges[#Headers],0))","v":{"v":100,"d":"100.00 Ft"}},{"$f":"INDEX(IrodaiTervezett[],MATCH(INDEX(IrodaiEltérések[],ROW()-ROW(IrodaiEltérések[[#Headers],[Aug.]]),1),INDEX(IrodaiTervezett[],,1),0),MATCH(IrodaiEltérések[[#Headers],[Aug.]],IrodaiTervezett[#Headers],0))-INDEX(IrodaiTényleges[],MATCH(INDEX(IrodaiEltérések[],ROW()-ROW(IrodaiEltérések[[#Headers],[Aug.]]),1),INDEX(IrodaiTervezett[],,1),0),MATCH(IrodaiEltérések[[#Headers],[Aug.]],IrodaiTényleges[#Headers],0))","v":{"v":100,"d":"100.00 Ft"}},{"$f":"INDEX(IrodaiTervezett[],MATCH(INDEX(IrodaiEltérések[],ROW()-ROW(IrodaiEltérések[[#Headers],[Szept.]]),1),INDEX(IrodaiTervezett[],,1),0),MATCH(IrodaiEltérések[[#Headers],[Szept.]],IrodaiTervezett[#Headers],0))-INDEX(IrodaiTényleges[],MATCH(INDEX(IrodaiEltérések[],ROW()-ROW(IrodaiEltérések[[#Headers],[Szept.]]),1),INDEX(IrodaiTervezett[],,1),0),MATCH(IrodaiEltérések[[#Headers],[Szept.]],IrodaiTényleges[#Headers],0))","v":{"v":100,"d":"100.00 Ft"}},{"$f":"INDEX(IrodaiTervezett[],MATCH(INDEX(IrodaiEltérések[],ROW()-ROW(IrodaiEltérések[[#Headers],[Okt.]]),1),INDEX(IrodaiTervezett[],,1),0),MATCH(IrodaiEltérések[[#Headers],[Okt.]],IrodaiTervezett[#Headers],0))-INDEX(IrodaiTényleges[],MATCH(INDEX(IrodaiEltérések[],ROW()-ROW(IrodaiEltérések[[#Headers],[Okt.]]),1),INDEX(IrodaiTervezett[],,1),0),MATCH(IrodaiEltérések[[#Headers],[Okt.]],IrodaiTényleges[#Headers],0))","v":{"v":100,"d":"100.00 Ft"}},{"$f":"INDEX(IrodaiTervezett[],MATCH(INDEX(IrodaiEltérések[],ROW()-ROW(IrodaiEltérések[[#Headers],[Nov.]]),1),INDEX(IrodaiTervezett[],,1),0),MATCH(IrodaiEltérések[[#Headers],[Nov.]],IrodaiTervezett[#Headers],0))-INDEX(IrodaiTényleges[],MATCH(INDEX(IrodaiEltérések[],ROW()-ROW(IrodaiEltérések[[#Headers],[Nov.]]),1),INDEX(IrodaiTervezett[],,1),0),MATCH(IrodaiEltérések[[#Headers],[Nov.]],IrodaiTényleges[#Headers],0))","v":{"v":400,"d":"400.00 Ft"}},{"$f":"INDEX(IrodaiTervezett[],MATCH(INDEX(IrodaiEltérések[],ROW()-ROW(IrodaiEltérések[[#Headers],[Dec.]]),1),INDEX(IrodaiTervezett[],,1),0),MATCH(IrodaiEltérések[[#Headers],[Dec.]],IrodaiTervezett[#Headers],0))-INDEX(IrodaiTényleges[],MATCH(INDEX(IrodaiEltérések[],ROW()-ROW(IrodaiEltérések[[#Headers],[Dec.]]),1),INDEX(IrodaiTervezett[],,1),0),MATCH(IrodaiEltérések[[#Headers],[Dec.]],IrodaiTényleges[#Headers],0))","v":{"v":400,"d":"400.00 Ft"}},{"$f":"SUM(IrodaiEltérések[[#This Row],[Jan.]:[Dec.]])","v":{"v":1076,"d":"1,076.00 Ft"}}]
[null,"Áram",{"$f":"INDEX(IrodaiTervezett[],MATCH(INDEX(IrodaiEltérések[],ROW()-ROW(IrodaiEltérések[[#Headers],[Jan.]]),1),INDEX(IrodaiTervezett[],,1),0),MATCH(IrodaiEltérések[[#Headers],[Jan.]],IrodaiTervezett[#Headers],0))-INDEX(IrodaiTényleges[],MATCH(INDEX(IrodaiEltérések[],ROW()-ROW(IrodaiEltérések[[#Headers],[Jan.]]),1),INDEX(IrodaiTervezett[],,1),0),MATCH(IrodaiEltérések[[#Headers],[Jan.]],IrodaiTényleges[#Headers],0))","v":{"v":12,"d":"12.00 Ft"}},{"$f":"INDEX(IrodaiTervezett[],MATCH(INDEX(IrodaiEltérések[],ROW()-ROW(IrodaiEltérések[[#Headers],[Febr.]]),1),INDEX(IrodaiTervezett[],,1),0),MATCH(IrodaiEltérések[[#Headers],[Febr.]],IrodaiTervezett[#Headers],0))-INDEX(IrodaiTényleges[],MATCH(INDEX(IrodaiEltérések[],ROW()-ROW(IrodaiEltérések[[#Headers],[Febr.]]),1),INDEX(IrodaiTervezett[],,1),0),MATCH(IrodaiEltérések[[#Headers],[Febr.]],IrodaiTényleges[#Headers],0))","v":{"v":22,"d":"22.00 Ft"}},{"$f":"INDEX(IrodaiTervezett[],MATCH(INDEX(IrodaiEltérések[],ROW()-ROW(IrodaiEltérések[[#Headers],[Márc.]]),1),INDEX(IrodaiTervezett[],,1),0),MATCH(IrodaiEltérések[[#Headers],[Márc.]],IrodaiTervezett[#Headers],0))-INDEX(IrodaiTényleges[],MATCH(INDEX(IrodaiEltérések[],ROW()-ROW(IrodaiEltérések[[#Headers],[Márc.]]),1),INDEX(IrodaiTervezett[],,1),0),MATCH(IrodaiEltérések[[#Headers],[Márc.]],IrodaiTényleges[#Headers],0))","v":{"v":32,"d":"32.00 Ft"}},{"$f":"INDEX(IrodaiTervezett[],MATCH(INDEX(IrodaiEltérések[],ROW()-ROW(IrodaiEltérések[[#Headers],[Ápr.]]),1),INDEX(IrodaiTervezett[],,1),0),MATCH(IrodaiEltérések[[#Headers],[Ápr.]],IrodaiTervezett[#Headers],0))-INDEX(IrodaiTényleges[],MATCH(INDEX(IrodaiEltérések[],ROW()-ROW(IrodaiEltérések[[#Headers],[Ápr.]]),1),INDEX(IrodaiTervezett[],,1),0),MATCH(IrodaiEltérések[[#Headers],[Ápr.]],IrodaiTényleges[#Headers],0))","v":{"v":1,"d":"1.00 Ft"}},{"$f":"INDEX(IrodaiTervezett[],MATCH(INDEX(IrodaiEltérések[],ROW()-ROW(IrodaiEltérések[[#Headers],[Máj.]]),1),INDEX(IrodaiTervezett[],,1),0),MATCH(IrodaiEltérések[[#Headers],[Máj.]],IrodaiTervezett[#Headers],0))-INDEX(IrodaiTényleges[],MATCH(INDEX(IrodaiEltérések[],ROW()-ROW(IrodaiEltérések[[#Headers],[Máj.]]),1),INDEX(IrodaiTervezett[],,1),0),MATCH(IrodaiEltérések[[#Headers],[Máj.]],IrodaiTényleges[#Headers],0))","v":{"v":-6,"d":"-6.00 Ft"}},{"$f":"INDEX(IrodaiTervezett[],MATCH(INDEX(IrodaiEltérések[],ROW()-ROW(IrodaiEltérések[[#Headers],[Jún.]]),1),INDEX(IrodaiTervezett[],,1),0),MATCH(IrodaiEltérések[[#Headers],[Jún.]],IrodaiTervezett[#Headers],0))-INDEX(IrodaiTényleges[],MATCH(INDEX(IrodaiEltérések[],ROW()-ROW(IrodaiEltérések[[#Headers],[Jún.]]),1),INDEX(IrodaiTervezett[],,1),0),MATCH(IrodaiEltérések[[#Headers],[Jún.]],IrodaiTényleges[#Headers],0))","v":{"v":10,"d":"10.00 Ft"}},{"$f":"INDEX(IrodaiTervezett[],MATCH(INDEX(IrodaiEltérések[],ROW()-ROW(IrodaiEltérések[[#Headers],[Júl.]]),1),INDEX(IrodaiTervezett[],,1),0),MATCH(IrodaiEltérések[[#Headers],[Júl.]],IrodaiTervezett[#Headers],0))-INDEX(IrodaiTényleges[],MATCH(INDEX(IrodaiEltérések[],ROW()-ROW(IrodaiEltérések[[#Headers],[Júl.]]),1),INDEX(IrodaiTervezett[],,1),0),MATCH(IrodaiEltérések[[#Headers],[Júl.]],IrodaiTényleges[#Headers],0))","v":{"v":300,"d":"300.00 Ft"}},{"$f":"INDEX(IrodaiTervezett[],MATCH(INDEX(IrodaiEltérések[],ROW()-ROW(IrodaiEltérések[[#Headers],[Aug.]]),1),INDEX(IrodaiTervezett[],,1),0),MATCH(IrodaiEltérések[[#Headers],[Aug.]],IrodaiTervezett[#Headers],0))-INDEX(IrodaiTényleges[],MATCH(INDEX(IrodaiEltérések[],ROW()-ROW(IrodaiEltérések[[#Headers],[Aug.]]),1),INDEX(IrodaiTervezett[],,1),0),MATCH(IrodaiEltérések[[#Headers],[Aug.]],IrodaiTényleges[#Headers],0))","v":{"v":300,"d":"300.00 Ft"}},{"$f":"INDEX(IrodaiTervezett[],MATCH(INDEX(IrodaiEltérések[],ROW()-ROW(IrodaiEltérések[[#Headers],[Szept.]]),1),INDEX(IrodaiTervezett[],,1),0),MATCH(IrodaiEltérések[[#Headers],[Szept.]],IrodaiTervezett[#Headers],0))-INDEX(IrodaiTényleges[],MATCH(INDEX(IrodaiEltérések[],ROW()-ROW(IrodaiEltérések[[#Headers],[Szept.]]),1),INDEX(IrodaiTervezett[],,1),0),MATCH(IrodaiEltérések[[#Headers],[Szept.]],IrodaiTényleges[#Headers],0))","v":{"v":300,"d":"300.00 Ft"}},{"$f":"INDEX(IrodaiTervezett[],MATCH(INDEX(IrodaiEltérések[],ROW()-ROW(IrodaiEltérések[[#Headers],[Okt.]]),1),INDEX(IrodaiTervezett[],,1),0),MATCH(IrodaiEltérések[[#Headers],[Okt.]],IrodaiTervezett[#Headers],0))-INDEX(IrodaiTényleges[],MATCH(INDEX(IrodaiEltérések[],ROW()-ROW(IrodaiEltérések[[#Headers],[Okt.]]),1),INDEX(IrodaiTervezett[],,1),0),MATCH(IrodaiEltérések[[#Headers],[Okt.]],IrodaiTényleges[#Headers],0))","v":{"v":300,"d":"300.00 Ft"}},{"$f":"INDEX(IrodaiTervezett[],MATCH(INDEX(IrodaiEltérések[],ROW()-ROW(IrodaiEltérések[[#Headers],[Nov.]]),1),INDEX(IrodaiTervezett[],,1),0),MATCH(IrodaiEltérések[[#Headers],[Nov.]],IrodaiTervezett[#Headers],0))-INDEX(IrodaiTényleges[],MATCH(INDEX(IrodaiEltérések[],ROW()-ROW(IrodaiEltérések[[#Headers],[Nov.]]),1),INDEX(IrodaiTervezett[],,1),0),MATCH(IrodaiEltérések[[#Headers],[Nov.]],IrodaiTényleges[#Headers],0))","v":{"v":300,"d":"300.00 Ft"}},{"$f":"INDEX(IrodaiTervezett[],MATCH(INDEX(IrodaiEltérések[],ROW()-ROW(IrodaiEltérések[[#Headers],[Dec.]]),1),INDEX(IrodaiTervezett[],,1),0),MATCH(IrodaiEltérések[[#Headers],[Dec.]],IrodaiTervezett[#Headers],0))-INDEX(IrodaiTényleges[],MATCH(INDEX(IrodaiEltérések[],ROW()-ROW(IrodaiEltérések[[#Headers],[Dec.]]),1),INDEX(IrodaiTervezett[],,1),0),MATCH(IrodaiEltérések[[#Headers],[Dec.]],IrodaiTényleges[#Headers],0))","v":{"v":300,"d":"300.00 Ft"}},{"$f":"SUM(IrodaiEltérések[[#This Row],[Jan.]:[Dec.]])","v":{"v":1871,"d":"1,871.00 Ft"}}]
[null,"Víz",{"$f":"INDEX(IrodaiTervezett[],MATCH(INDEX(IrodaiEltérések[],ROW()-ROW(IrodaiEltérések[[#Headers],[Jan.]]),1),INDEX(IrodaiTervezett[],,1),0),MATCH(IrodaiEltérések[[#Headers],[Jan.]],IrodaiTervezett[#Headers],0))-INDEX(IrodaiTényleges[],MATCH(INDEX(IrodaiEltérések[],ROW()-ROW(IrodaiEltérések[[#Headers],[Jan.]]),1),INDEX(IrodaiTervezett[],,1),0),MATCH(IrodaiEltérések[[#Headers],[Jan.]],IrodaiTényleges[#Headers],0))","v":{"v":5,"d":"5.00 Ft"}},{"$f":"INDEX(IrodaiTervezett[],MATCH(INDEX(IrodaiEltérések[],ROW()-ROW(IrodaiEltérések[[#Headers],[Febr.]]),1),INDEX(IrodaiTervezett[],,1),0),MATCH(IrodaiEltérések[[#Headers],[Febr.]],IrodaiTervezett[#Headers],0))-INDEX(IrodaiTényleges[],MATCH(INDEX(IrodaiEltérések[],ROW()-ROW(IrodaiEltérések[[#Headers],[Febr.]]),1),INDEX(IrodaiTervezett[],,1),0),MATCH(IrodaiEltérések[[#Headers],[Febr.]],IrodaiTényleges[#Headers],0))","v":{"v":7,"d":"7.00 Ft"}},{"$f":"INDEX(IrodaiTervezett[],MATCH(INDEX(IrodaiEltérések[],ROW()-ROW(IrodaiEltérések[[#Headers],[Márc.]]),1),INDEX(IrodaiTervezett[],,1),0),MATCH(IrodaiEltérések[[#Headers],[Márc.]],IrodaiTervezett[#Headers],0))-INDEX(IrodaiTényleges[],MATCH(INDEX(IrodaiEltérések[],ROW()-ROW(IrodaiEltérések[[#Headers],[Márc.]]),1),INDEX(IrodaiTervezett[],,1),0),MATCH(IrodaiEltérések[[#Headers],[Márc.]],IrodaiTényleges[#Headers],0))","v":{"v":6,"d":"6.00 Ft"}},{"$f":"INDEX(IrodaiTervezett[],MATCH(INDEX(IrodaiEltérések[],ROW()-ROW(IrodaiEltérések[[#Headers],[Ápr.]]),1),INDEX(IrodaiTervezett[],,1),0),MATCH(IrodaiEltérések[[#Headers],[Ápr.]],IrodaiTervezett[#Headers],0))-INDEX(IrodaiTényleges[],MATCH(INDEX(IrodaiEltérések[],ROW()-ROW(IrodaiEltérések[[#Headers],[Ápr.]]),1),INDEX(IrodaiTervezett[],,1),0),MATCH(IrodaiEltérések[[#Headers],[Ápr.]],IrodaiTényleges[#Headers],0))","v":{"v":4,"d":"4.00 Ft"}},{"$f":"INDEX(IrodaiTervezett[],MATCH(INDEX(IrodaiEltérések[],ROW()-ROW(IrodaiEltérések[[#Headers],[Máj.]]),1),INDEX(IrodaiTervezett[],,1),0),MATCH(IrodaiEltérések[[#Headers],[Máj.]],IrodaiTervezett[#Headers],0))-INDEX(IrodaiTényleges[],MATCH(INDEX(IrodaiEltérések[],ROW()-ROW(IrodaiEltérések[[#Headers],[Máj.]]),1),INDEX(IrodaiTervezett[],,1),0),MATCH(IrodaiEltérések[[#Headers],[Máj.]],IrodaiTényleges[#Headers],0))","v":{"v":6,"d":"6.00 Ft"}},{"$f":"INDEX(IrodaiTervezett[],MATCH(INDEX(IrodaiEltérések[],ROW()-ROW(IrodaiEltérések[[#Headers],[Jún.]]),1),INDEX(IrodaiTervezett[],,1),0),MATCH(IrodaiEltérések[[#Headers],[Jún.]],IrodaiTervezett[#Headers],0))-INDEX(IrodaiTényleges[],MATCH(INDEX(IrodaiEltérések[],ROW()-ROW(IrodaiEltérések[[#Headers],[Jún.]]),1),INDEX(IrodaiTervezett[],,1),0),MATCH(IrodaiEltérések[[#Headers],[Jún.]],IrodaiTényleges[#Headers],0))","v":{"v":4,"d":"4.00 Ft"}},{"$f":"INDEX(IrodaiTervezett[],MATCH(INDEX(IrodaiEltérések[],ROW()-ROW(IrodaiEltérések[[#Headers],[Júl.]]),1),INDEX(IrodaiTervezett[],,1),0),MATCH(IrodaiEltérések[[#Headers],[Júl.]],IrodaiTervezett[#Headers],0))-INDEX(IrodaiTényleges[],MATCH(INDEX(IrodaiEltérések[],ROW()-ROW(IrodaiEltérések[[#Headers],[Júl.]]),1),INDEX(IrodaiTervezett[],,1),0),MATCH(IrodaiEltérések[[#Headers],[Júl.]],IrodaiTényleges[#Headers],0))","v":{"v":40,"d":"40.00 Ft"}},{"$f":"INDEX(IrodaiTervezett[],MATCH(INDEX(IrodaiEltérések[],ROW()-ROW(IrodaiEltérések[[#Headers],[Aug.]]),1),INDEX(IrodaiTervezett[],,1),0),MATCH(IrodaiEltérések[[#Headers],[Aug.]],IrodaiTervezett[#Headers],0))-INDEX(IrodaiTényleges[],MATCH(INDEX(IrodaiEltérések[],ROW()-ROW(IrodaiEltérések[[#Headers],[Aug.]]),1),INDEX(IrodaiTervezett[],,1),0),MATCH(IrodaiEltérések[[#Headers],[Aug.]],IrodaiTényleges[#Headers],0))","v":{"v":40,"d":"40.00 Ft"}},{"$f":"INDEX(IrodaiTervezett[],MATCH(INDEX(IrodaiEltérések[],ROW()-ROW(IrodaiEltérések[[#Headers],[Szept.]]),1),INDEX(IrodaiTervezett[],,1),0),MATCH(IrodaiEltérések[[#Headers],[Szept.]],IrodaiTervezett[#Headers],0))-INDEX(IrodaiTényleges[],MATCH(INDEX(IrodaiEltérések[],ROW()-ROW(IrodaiEltérések[[#Headers],[Szept.]]),1),INDEX(IrodaiTervezett[],,1),0),MATCH(IrodaiEltérések[[#Headers],[Szept.]],IrodaiTényleges[#Headers],0))","v":{"v":40,"d":"40.00 Ft"}},{"$f":"INDEX(IrodaiTervezett[],MATCH(INDEX(IrodaiEltérések[],ROW()-ROW(IrodaiEltérések[[#Headers],[Okt.]]),1),INDEX(IrodaiTervezett[],,1),0),MATCH(IrodaiEltérések[[#Headers],[Okt.]],IrodaiTervezett[#Headers],0))-INDEX(IrodaiTényleges[],MATCH(INDEX(IrodaiEltérések[],ROW()-ROW(IrodaiEltérések[[#Headers],[Okt.]]),1),INDEX(IrodaiTervezett[],,1),0),MATCH(IrodaiEltérések[[#Headers],[Okt.]],IrodaiTényleges[#Headers],0))","v":{"v":40,"d":"40.00 Ft"}},{"$f":"INDEX(IrodaiTervezett[],MATCH(INDEX(IrodaiEltérések[],ROW()-ROW(IrodaiEltérések[[#Headers],[Nov.]]),1),INDEX(IrodaiTervezett[],,1),0),MATCH(IrodaiEltérések[[#Headers],[Nov.]],IrodaiTervezett[#Headers],0))-INDEX(IrodaiTényleges[],MATCH(INDEX(IrodaiEltérések[],ROW()-ROW(IrodaiEltérések[[#Headers],[Nov.]]),1),INDEX(IrodaiTervezett[],,1),0),MATCH(IrodaiEltérések[[#Headers],[Nov.]],IrodaiTényleges[#Headers],0))","v":{"v":40,"d":"40.00 Ft"}},{"$f":"INDEX(IrodaiTervezett[],MATCH(INDEX(IrodaiEltérések[],ROW()-ROW(IrodaiEltérések[[#Headers],[Dec.]]),1),INDEX(IrodaiTervezett[],,1),0),MATCH(IrodaiEltérések[[#Headers],[Dec.]],IrodaiTervezett[#Headers],0))-INDEX(IrodaiTényleges[],MATCH(INDEX(IrodaiEltérések[],ROW()-ROW(IrodaiEltérések[[#Headers],[Dec.]]),1),INDEX(IrodaiTervezett[],,1),0),MATCH(IrodaiEltérések[[#Headers],[Dec.]],IrodaiTényleges[#Headers],0))","v":{"v":40,"d":"40.00 Ft"}},{"$f":"SUM(IrodaiEltérések[[#This Row],[Jan.]:[Dec.]])","v":{"v":272,"d":"272.00 Ft"}}]
[null,"Telefon",{"$f":"INDEX(IrodaiTervezett[],MATCH(INDEX(IrodaiEltérések[],ROW()-ROW(IrodaiEltérések[[#Headers],[Jan.]]),1),INDEX(IrodaiTervezett[],,1),0),MATCH(IrodaiEltérések[[#Headers],[Jan.]],IrodaiTervezett[#Headers],0))-INDEX(IrodaiTényleges[],MATCH(INDEX(IrodaiEltérések[],ROW()-ROW(IrodaiEltérések[[#Headers],[Jan.]]),1),INDEX(IrodaiTervezett[],,1),0),MATCH(IrodaiEltérések[[#Headers],[Jan.]],IrodaiTényleges[#Headers],0))","v":{"v":26,"d":"26.00 Ft"}},{"$f":"INDEX(IrodaiTervezett[],MATCH(INDEX(IrodaiEltérések[],ROW()-ROW(IrodaiEltérések[[#Headers],[Febr.]]),1),INDEX(IrodaiTervezett[],,1),0),MATCH(IrodaiEltérések[[#Headers],[Febr.]],IrodaiTervezett[#Headers],0))-INDEX(IrodaiTényleges[],MATCH(INDEX(IrodaiEltérések[],ROW()-ROW(IrodaiEltérések[[#Headers],[Febr.]]),1),INDEX(IrodaiTervezett[],,1),0),MATCH(IrodaiEltérések[[#Headers],[Febr.]],IrodaiTényleges[#Headers],0))","v":{"v":15,"d":"15.00 Ft"}},{"$f":"INDEX(IrodaiTervezett[],MATCH(INDEX(IrodaiEltérések[],ROW()-ROW(IrodaiEltérések[[#Headers],[Márc.]]),1),INDEX(IrodaiTervezett[],,1),0),MATCH(IrodaiEltérések[[#Headers],[Márc.]],IrodaiTervezett[#Headers],0))-INDEX(IrodaiTényleges[],MATCH(INDEX(IrodaiEltérések[],ROW()-ROW(IrodaiEltérések[[#Headers],[Márc.]]),1),INDEX(IrodaiTervezett[],,1),0),MATCH(IrodaiEltérések[[#Headers],[Márc.]],IrodaiTényleges[#Headers],0))","v":{"v":-15,"d":"-15.00 Ft"}},{"$f":"INDEX(IrodaiTervezett[],MATCH(INDEX(IrodaiEltérések[],ROW()-ROW(IrodaiEltérések[[#Headers],[Ápr.]]),1),INDEX(IrodaiTervezett[],,1),0),MATCH(IrodaiEltérések[[#Headers],[Ápr.]],IrodaiTervezett[#Headers],0))-INDEX(IrodaiTényleges[],MATCH(INDEX(IrodaiEltérések[],ROW()-ROW(IrodaiEltérések[[#Headers],[Ápr.]]),1),INDEX(IrodaiTervezett[],,1),0),MATCH(IrodaiEltérések[[#Headers],[Ápr.]],IrodaiTényleges[#Headers],0))","v":{"v":5,"d":"5.00 Ft"}},{"$f":"INDEX(IrodaiTervezett[],MATCH(INDEX(IrodaiEltérések[],ROW()-ROW(IrodaiEltérések[[#Headers],[Máj.]]),1),INDEX(IrodaiTervezett[],,1),0),MATCH(IrodaiEltérések[[#Headers],[Máj.]],IrodaiTervezett[#Headers],0))-INDEX(IrodaiTényleges[],MATCH(INDEX(IrodaiEltérések[],ROW()-ROW(IrodaiEltérések[[#Headers],[Máj.]]),1),INDEX(IrodaiTervezett[],,1),0),MATCH(IrodaiEltérések[[#Headers],[Máj.]],IrodaiTényleges[#Headers],0))","v":{"v":5,"d":"5.00 Ft"}},{"$f":"INDEX(IrodaiTervezett[],MATCH(INDEX(IrodaiEltérések[],ROW()-ROW(IrodaiEltérések[[#Headers],[Jún.]]),1),INDEX(IrodaiTervezett[],,1),0),MATCH(IrodaiEltérések[[#Headers],[Jún.]],IrodaiTervezett[#Headers],0))-INDEX(IrodaiTényleges[],MATCH(INDEX(IrodaiEltérések[],ROW()-ROW(IrodaiEltérések[[#Headers],[Jún.]]),1),INDEX(IrodaiTervezett[],,1),0),MATCH(IrodaiEltérések[[#Headers],[Jún.]],IrodaiTényleges[#Headers],0))","v":{"v":30,"d":"30.00 Ft"}},{"$f":"INDEX(IrodaiTervezett[],MATCH(INDEX(IrodaiEltérések[],ROW()-ROW(IrodaiEltérések[[#Headers],[Júl.]]),1),INDEX(IrodaiTervezett[],,1),0),MATCH(IrodaiEltérések[[#Headers],[Júl.]],IrodaiTervezett[#Headers],0))-INDEX(IrodaiTényleges[],MATCH(INDEX(IrodaiEltérések[],ROW()-ROW(IrodaiEltérések[[#Headers],[Júl.]]),1),INDEX(IrodaiTervezett[],,1),0),MATCH(IrodaiEltérések[[#Headers],[Júl.]],IrodaiTényleges[#Headers],0))","v":{"v":250,"d":"250.00 Ft"}},{"$f":"INDEX(IrodaiTervezett[],MATCH(INDEX(IrodaiEltérések[],ROW()-ROW(IrodaiEltérések[[#Headers],[Aug.]]),1),INDEX(IrodaiTervezett[],,1),0),MATCH(IrodaiEltérések[[#Headers],[Aug.]],IrodaiTervezett[#Headers],0))-INDEX(IrodaiTényleges[],MATCH(INDEX(IrodaiEltérések[],ROW()-ROW(IrodaiEltérések[[#Headers],[Aug.]]),1),INDEX(IrodaiTervezett[],,1),0),MATCH(IrodaiEltérések[[#Headers],[Aug.]],IrodaiTényleges[#Headers],0))","v":{"v":250,"d":"250.00 Ft"}},{"$f":"INDEX(IrodaiTervezett[],MATCH(INDEX(IrodaiEltérések[],ROW()-ROW(IrodaiEltérések[[#Headers],[Szept.]]),1),INDEX(IrodaiTervezett[],,1),0),MATCH(IrodaiEltérések[[#Headers],[Szept.]],IrodaiTervezett[#Headers],0))-INDEX(IrodaiTényleges[],MATCH(INDEX(IrodaiEltérések[],ROW()-ROW(IrodaiEltérések[[#Headers],[Szept.]]),1),INDEX(IrodaiTervezett[],,1),0),MATCH(IrodaiEltérések[[#Headers],[Szept.]],IrodaiTényleges[#Headers],0))","v":{"v":250,"d":"250.00 Ft"}},{"$f":"INDEX(IrodaiTervezett[],MATCH(INDEX(IrodaiEltérések[],ROW()-ROW(IrodaiEltérések[[#Headers],[Okt.]]),1),INDEX(IrodaiTervezett[],,1),0),MATCH(IrodaiEltérések[[#Headers],[Okt.]],IrodaiTervezett[#Headers],0))-INDEX(IrodaiTényleges[],MATCH(INDEX(IrodaiEltérések[],ROW()-ROW(IrodaiEltérések[[#Headers],[Okt.]]),1),INDEX(IrodaiTervezett[],,1),0),MATCH(IrodaiEltérések[[#Headers],[Okt.]],IrodaiTényleges[#Headers],0))","v":{"v":250,"d":"250.00 Ft"}},{"$f":"INDEX(IrodaiTervezett[],MATCH(INDEX(IrodaiEltérések[],ROW()-ROW(IrodaiEltérések[[#Headers],[Nov.]]),1),INDEX(IrodaiTervezett[],,1),0),MATCH(IrodaiEltérések[[#Headers],[Nov.]],IrodaiTervezett[#Headers],0))-INDEX(IrodaiTényleges[],MATCH(INDEX(IrodaiEltérések[],ROW()-ROW(IrodaiEltérések[[#Headers],[Nov.]]),1),INDEX(IrodaiTervezett[],,1),0),MATCH(IrodaiEltérések[[#Headers],[Nov.]],IrodaiTényleges[#Headers],0))","v":{"v":250,"d":"250.00 Ft"}},{"$f":"INDEX(IrodaiTervezett[],MATCH(INDEX(IrodaiEltérések[],ROW()-ROW(IrodaiEltérések[[#Headers],[Dec.]]),1),INDEX(IrodaiTervezett[],,1),0),MATCH(IrodaiEltérések[[#Headers],[Dec.]],IrodaiTervezett[#Headers],0))-INDEX(IrodaiTényleges[],MATCH(INDEX(IrodaiEltérések[],ROW()-ROW(IrodaiEltérések[[#Headers],[Dec.]]),1),INDEX(IrodaiTervezett[],,1),0),MATCH(IrodaiEltérések[[#Headers],[Dec.]],IrodaiTényleges[#Headers],0))","v":{"v":250,"d":"250.00 Ft"}},{"$f":"SUM(IrodaiEltérések[[#This Row],[Jan.]:[Dec.]])","v":{"v":1566,"d":"1,566.00 Ft"}}]
[null,"Internetkapcsolat",{"$f":"INDEX(IrodaiTervezett[],MATCH(INDEX(IrodaiEltérések[],ROW()-ROW(IrodaiEltérések[[#Headers],[Jan.]]),1),INDEX(IrodaiTervezett[],,1),0),MATCH(IrodaiEltérések[[#Headers],[Jan.]],IrodaiTervezett[#Headers],0))-INDEX(IrodaiTényleges[],MATCH(INDEX(IrodaiEltérések[],ROW()-ROW(IrodaiEltérések[[#Headers],[Jan.]]),1),INDEX(IrodaiTervezett[],,1),0),MATCH(IrodaiEltérések[[#Headers],[Jan.]],IrodaiTényleges[#Headers],0))","v":{"v":0,"d":"0.00 Ft"}},{"$f":"INDEX(IrodaiTervezett[],MATCH(INDEX(IrodaiEltérések[],ROW()-ROW(IrodaiEltérések[[#Headers],[Febr.]]),1),INDEX(IrodaiTervezett[],,1),0),MATCH(IrodaiEltérések[[#Headers],[Febr.]],IrodaiTervezett[#Headers],0))-INDEX(IrodaiTényleges[],MATCH(INDEX(IrodaiEltérések[],ROW()-ROW(IrodaiEltérések[[#Headers],[Febr.]]),1),INDEX(IrodaiTervezett[],,1),0),MATCH(IrodaiEltérések[[#Headers],[Febr.]],IrodaiTényleges[#Headers],0))","v":{"v":0,"d":"0.00 Ft"}},{"$f":"INDEX(IrodaiTervezett[],MATCH(INDEX(IrodaiEltérések[],ROW()-ROW(IrodaiEltérések[[#Headers],[Márc.]]),1),INDEX(IrodaiTervezett[],,1),0),MATCH(IrodaiEltérések[[#Headers],[Márc.]],IrodaiTervezett[#Headers],0))-INDEX(IrodaiTényleges[],MATCH(INDEX(IrodaiEltérések[],ROW()-ROW(IrodaiEltérések[[#Headers],[Márc.]]),1),INDEX(IrodaiTervezett[],,1),0),MATCH(IrodaiEltérések[[#Headers],[Márc.]],IrodaiTényleges[#Headers],0))","v":{"v":0,"d":"0.00 Ft"}},{"$f":"INDEX(IrodaiTervezett[],MATCH(INDEX(IrodaiEltérések[],ROW()-ROW(IrodaiEltérések[[#Headers],[Ápr.]]),1),INDEX(IrodaiTervezett[],,1),0),MATCH(IrodaiEltérések[[#Headers],[Ápr.]],IrodaiTervezett[#Headers],0))-INDEX(IrodaiTényleges[],MATCH(INDEX(IrodaiEltérések[],ROW()-ROW(IrodaiEltérések[[#Headers],[Ápr.]]),1),INDEX(IrodaiTervezett[],,1),0),MATCH(IrodaiEltérések[[#Headers],[Ápr.]],IrodaiTényleges[#Headers],0))","v":{"v":0,"d":"0.00 Ft"}},{"$f":"INDEX(IrodaiTervezett[],MATCH(INDEX(IrodaiEltérések[],ROW()-ROW(IrodaiEltérések[[#Headers],[Máj.]]),1),INDEX(IrodaiTervezett[],,1),0),MATCH(IrodaiEltérések[[#Headers],[Máj.]],IrodaiTervezett[#Headers],0))-INDEX(IrodaiTényleges[],MATCH(INDEX(IrodaiEltérések[],ROW()-ROW(IrodaiEltérések[[#Headers],[Máj.]]),1),INDEX(IrodaiTervezett[],,1),0),MATCH(IrodaiEltérések[[#Headers],[Máj.]],IrodaiTényleges[#Headers],0))","v":{"v":0,"d":"0.00 Ft"}},{"$f":"INDEX(IrodaiTervezett[],MATCH(INDEX(IrodaiEltérések[],ROW()-ROW(IrodaiEltérések[[#Headers],[Jún.]]),1),INDEX(IrodaiTervezett[],,1),0),MATCH(IrodaiEltérések[[#Headers],[Jún.]],IrodaiTervezett[#Headers],0))-INDEX(IrodaiTényleges[],MATCH(INDEX(IrodaiEltérések[],ROW()-ROW(IrodaiEltérések[[#Headers],[Jún.]]),1),INDEX(IrodaiTervezett[],,1),0),MATCH(IrodaiEltérések[[#Headers],[Jún.]],IrodaiTényleges[#Headers],0))","v":{"v":0,"d":"0.00 Ft"}},{"$f":"INDEX(IrodaiTervezett[],MATCH(INDEX(IrodaiEltérések[],ROW()-ROW(IrodaiEltérések[[#Headers],[Júl.]]),1),INDEX(IrodaiTervezett[],,1),0),MATCH(IrodaiEltérések[[#Headers],[Júl.]],IrodaiTervezett[#Headers],0))-INDEX(IrodaiTényleges[],MATCH(INDEX(IrodaiEltérések[],ROW()-ROW(IrodaiEltérések[[#Headers],[Júl.]]),1),INDEX(IrodaiTervezett[],,1),0),MATCH(IrodaiEltérések[[#Headers],[Júl.]],IrodaiTényleges[#Headers],0))","v":{"v":180,"d":"180.00 Ft"}},{"$f":"INDEX(IrodaiTervezett[],MATCH(INDEX(IrodaiEltérések[],ROW()-ROW(IrodaiEltérések[[#Headers],[Aug.]]),1),INDEX(IrodaiTervezett[],,1),0),MATCH(IrodaiEltérések[[#Headers],[Aug.]],IrodaiTervezett[#Headers],0))-INDEX(IrodaiTényleges[],MATCH(INDEX(IrodaiEltérések[],ROW()-ROW(IrodaiEltérések[[#Headers],[Aug.]]),1),INDEX(IrodaiTervezett[],,1),0),MATCH(IrodaiEltérések[[#Headers],[Aug.]],IrodaiTényleges[#Headers],0))","v":{"v":180,"d":"180.00 Ft"}},{"$f":"INDEX(IrodaiTervezett[],MATCH(INDEX(IrodaiEltérések[],ROW()-ROW(IrodaiEltérések[[#Headers],[Szept.]]),1),INDEX(IrodaiTervezett[],,1),0),MATCH(IrodaiEltérések[[#Headers],[Szept.]],IrodaiTervezett[#Headers],0))-INDEX(IrodaiTényleges[],MATCH(INDEX(IrodaiEltérések[],ROW()-ROW(IrodaiEltérések[[#Headers],[Szept.]]),1),INDEX(IrodaiTervezett[],,1),0),MATCH(IrodaiEltérések[[#Headers],[Szept.]],IrodaiTényleges[#Headers],0))","v":{"v":180,"d":"180.00 Ft"}},{"$f":"INDEX(IrodaiTervezett[],MATCH(INDEX(IrodaiEltérések[],ROW()-ROW(IrodaiEltérések[[#Headers],[Okt.]]),1),INDEX(IrodaiTervezett[],,1),0),MATCH(IrodaiEltérések[[#Headers],[Okt.]],IrodaiTervezett[#Headers],0))-INDEX(IrodaiTényleges[],MATCH(INDEX(IrodaiEltérések[],ROW()-ROW(IrodaiEltérések[[#Headers],[Okt.]]),1),INDEX(IrodaiTervezett[],,1),0),MATCH(IrodaiEltérések[[#Headers],[Okt.]],IrodaiTényleges[#Headers],0))","v":{"v":180,"d":"180.00 Ft"}},{"$f":"INDEX(IrodaiTervezett[],MATCH(INDEX(IrodaiEltérések[],ROW()-ROW(IrodaiEltérések[[#Headers],[Nov.]]),1),INDEX(IrodaiTervezett[],,1),0),MATCH(IrodaiEltérések[[#Headers],[Nov.]],IrodaiTervezett[#Headers],0))-INDEX(IrodaiTényleges[],MATCH(INDEX(IrodaiEltérések[],ROW()-ROW(IrodaiEltérések[[#Headers],[Nov.]]),1),INDEX(IrodaiTervezett[],,1),0),MATCH(IrodaiEltérések[[#Headers],[Nov.]],IrodaiTényleges[#Headers],0))","v":{"v":180,"d":"180.00 Ft"}},{"$f":"INDEX(IrodaiTervezett[],MATCH(INDEX(IrodaiEltérések[],ROW()-ROW(IrodaiEltérések[[#Headers],[Dec.]]),1),INDEX(IrodaiTervezett[],,1),0),MATCH(IrodaiEltérések[[#Headers],[Dec.]],IrodaiTervezett[#Headers],0))-INDEX(IrodaiTényleges[],MATCH(INDEX(IrodaiEltérések[],ROW()-ROW(IrodaiEltérések[[#Headers],[Dec.]]),1),INDEX(IrodaiTervezett[],,1),0),MATCH(IrodaiEltérések[[#Headers],[Dec.]],IrodaiTényleges[#Headers],0))","v":{"v":180,"d":"180.00 Ft"}},{"$f":"SUM(IrodaiEltérések[[#This Row],[Jan.]:[Dec.]])","v":{"v":1080,"d":"1,080.00 Ft"}}]
[null,"Irodai kellékek",{"$f":"INDEX(IrodaiTervezett[],MATCH(INDEX(IrodaiEltérések[],ROW()-ROW(IrodaiEltérések[[#Headers],[Jan.]]),1),INDEX(IrodaiTervezett[],,1),0),MATCH(IrodaiEltérések[[#Headers],[Jan.]],IrodaiTervezett[#Headers],0))-INDEX(IrodaiTényleges[],MATCH(INDEX(IrodaiEltérések[],ROW()-ROW(IrodaiEltérések[[#Headers],[Jan.]]),1),INDEX(IrodaiTervezett[],,1),0),MATCH(IrodaiEltérések[[#Headers],[Jan.]],IrodaiTényleges[#Headers],0))","v":{"v":-56,"d":"-56.00 Ft"}},{"$f":"INDEX(IrodaiTervezett[],MATCH(INDEX(IrodaiEltérések[],ROW()-ROW(IrodaiEltérések[[#Headers],[Febr.]]),1),INDEX(IrodaiTervezett[],,1),0),MATCH(IrodaiEltérések[[#Headers],[Febr.]],IrodaiTervezett[#Headers],0))-INDEX(IrodaiTényleges[],MATCH(INDEX(IrodaiEltérések[],ROW()-ROW(IrodaiEltérések[[#Headers],[Febr.]]),1),INDEX(IrodaiTervezett[],,1),0),MATCH(IrodaiEltérések[[#Headers],[Febr.]],IrodaiTényleges[#Headers],0))","v":{"v":58,"d":"58.00 Ft"}},{"$f":"INDEX(IrodaiTervezett[],MATCH(INDEX(IrodaiEltérések[],ROW()-ROW(IrodaiEltérések[[#Headers],[Márc.]]),1),INDEX(IrodaiTervezett[],,1),0),MATCH(IrodaiEltérések[[#Headers],[Márc.]],IrodaiTervezett[#Headers],0))-INDEX(IrodaiTényleges[],MATCH(INDEX(IrodaiEltérések[],ROW()-ROW(IrodaiEltérések[[#Headers],[Márc.]]),1),INDEX(IrodaiTervezett[],,1),0),MATCH(IrodaiEltérések[[#Headers],[Márc.]],IrodaiTényleges[#Headers],0))","v":{"v":40,"d":"40.00 Ft"}},{"$f":"INDEX(IrodaiTervezett[],MATCH(INDEX(IrodaiEltérések[],ROW()-ROW(IrodaiEltérések[[#Headers],[Ápr.]]),1),INDEX(IrodaiTervezett[],,1),0),MATCH(IrodaiEltérések[[#Headers],[Ápr.]],IrodaiTervezett[#Headers],0))-INDEX(IrodaiTényleges[],MATCH(INDEX(IrodaiEltérések[],ROW()-ROW(IrodaiEltérések[[#Headers],[Ápr.]]),1),INDEX(IrodaiTervezett[],,1),0),MATCH(IrodaiEltérések[[#Headers],[Ápr.]],IrodaiTényleges[#Headers],0))","v":{"v":-21,"d":"-21.00 Ft"}},{"$f":"INDEX(IrodaiTervezett[],MATCH(INDEX(IrodaiEltérések[],ROW()-ROW(IrodaiEltérések[[#Headers],[Máj.]]),1),INDEX(IrodaiTervezett[],,1),0),MATCH(IrodaiEltérések[[#Headers],[Máj.]],IrodaiTervezett[#Headers],0))-INDEX(IrodaiTényleges[],MATCH(INDEX(IrodaiEltérések[],ROW()-ROW(IrodaiEltérések[[#Headers],[Máj.]]),1),INDEX(IrodaiTervezett[],,1),0),MATCH(IrodaiEltérések[[#Headers],[Máj.]],IrodaiTényleges[#Headers],0))","v":{"v":-56,"d":"-56.00 Ft"}},{"$f":"INDEX(IrodaiTervezett[],MATCH(INDEX(IrodaiEltérések[],ROW()-ROW(IrodaiEltérések[[#Headers],[Jún.]]),1),INDEX(IrodaiTervezett[],,1),0),MATCH(IrodaiEltérések[[#Headers],[Jún.]],IrodaiTervezett[#Headers],0))-INDEX(IrodaiTényleges[],MATCH(INDEX(IrodaiEltérések[],ROW()-ROW(IrodaiEltérések[[#Headers],[Jún.]]),1),INDEX(IrodaiTervezett[],,1),0),MATCH(IrodaiEltérések[[#Headers],[Jún.]],IrodaiTényleges[#Headers],0))","v":{"v":-40,"d":"-40.00 Ft"}},{"$f":"INDEX(IrodaiTervezett[],MATCH(INDEX(IrodaiEltérések[],ROW()-ROW(IrodaiEltérések[[#Headers],[Júl.]]),1),INDEX(IrodaiTervezett[],,1),0),MATCH(IrodaiEltérések[[#Headers],[Júl.]],IrodaiTervezett[#Headers],0))-INDEX(IrodaiTényleges[],MATCH(INDEX(IrodaiEltérések[],ROW()-ROW(IrodaiEltérések[[#Headers],[Júl.]]),1),INDEX(IrodaiTervezett[],,1),0),MATCH(IrodaiEltérések[[#Headers],[Júl.]],IrodaiTényleges[#Headers],0))","v":{"v":200,"d":"200.00 Ft"}},{"$f":"INDEX(IrodaiTervezett[],MATCH(INDEX(IrodaiEltérések[],ROW()-ROW(IrodaiEltérések[[#Headers],[Aug.]]),1),INDEX(IrodaiTervezett[],,1),0),MATCH(IrodaiEltérések[[#Headers],[Aug.]],IrodaiTervezett[#Headers],0))-INDEX(IrodaiTényleges[],MATCH(INDEX(IrodaiEltérések[],ROW()-ROW(IrodaiEltérések[[#Headers],[Aug.]]),1),INDEX(IrodaiTervezett[],,1),0),MATCH(IrodaiEltérések[[#Headers],[Aug.]],IrodaiTényleges[#Headers],0))","v":{"v":200,"d":"200.00 Ft"}},{"$f":"INDEX(IrodaiTervezett[],MATCH(INDEX(IrodaiEltérések[],ROW()-ROW(IrodaiEltérések[[#Headers],[Szept.]]),1),INDEX(IrodaiTervezett[],,1),0),MATCH(IrodaiEltérések[[#Headers],[Szept.]],IrodaiTervezett[#Headers],0))-INDEX(IrodaiTényleges[],MATCH(INDEX(IrodaiEltérések[],ROW()-ROW(IrodaiEltérések[[#Headers],[Szept.]]),1),INDEX(IrodaiTervezett[],,1),0),MATCH(IrodaiEltérések[[#Headers],[Szept.]],IrodaiTényleges[#Headers],0))","v":{"v":200,"d":"200.00 Ft"}},{"$f":"INDEX(IrodaiTervezett[],MATCH(INDEX(IrodaiEltérések[],ROW()-ROW(IrodaiEltérések[[#Headers],[Okt.]]),1),INDEX(IrodaiTervezett[],,1),0),MATCH(IrodaiEltérések[[#Headers],[Okt.]],IrodaiTervezett[#Headers],0))-INDEX(IrodaiTényleges[],MATCH(INDEX(IrodaiEltérések[],ROW()-ROW(IrodaiEltérések[[#Headers],[Okt.]]),1),INDEX(IrodaiTervezett[],,1),0),MATCH(IrodaiEltérések[[#Headers],[Okt.]],IrodaiTényleges[#Headers],0))","v":{"v":200,"d":"200.00 Ft"}},{"$f":"INDEX(IrodaiTervezett[],MATCH(INDEX(IrodaiEltérések[],ROW()-ROW(IrodaiEltérések[[#Headers],[Nov.]]),1),INDEX(IrodaiTervezett[],,1),0),MATCH(IrodaiEltérések[[#Headers],[Nov.]],IrodaiTervezett[#Headers],0))-INDEX(IrodaiTényleges[],MATCH(INDEX(IrodaiEltérések[],ROW()-ROW(IrodaiEltérések[[#Headers],[Nov.]]),1),INDEX(IrodaiTervezett[],,1),0),MATCH(IrodaiEltérések[[#Headers],[Nov.]],IrodaiTényleges[#Headers],0))","v":{"v":200,"d":"200.00 Ft"}},{"$f":"INDEX(IrodaiTervezett[],MATCH(INDEX(IrodaiEltérések[],ROW()-ROW(IrodaiEltérések[[#Headers],[Dec.]]),1),INDEX(IrodaiTervezett[],,1),0),MATCH(IrodaiEltérések[[#Headers],[Dec.]],IrodaiTervezett[#Headers],0))-INDEX(IrodaiTényleges[],MATCH(INDEX(IrodaiEltérések[],ROW()-ROW(IrodaiEltérések[[#Headers],[Dec.]]),1),INDEX(IrodaiTervezett[],,1),0),MATCH(IrodaiEltérések[[#Headers],[Dec.]],IrodaiTényleges[#Headers],0))","v":{"v":200,"d":"200.00 Ft"}},{"$f":"SUM(IrodaiEltérések[[#This Row],[Jan.]:[Dec.]])","v":{"v":1125,"d":"1,125.00 Ft"}}]
[null,"Biztonság",{"$f":"INDEX(IrodaiTervezett[],MATCH(INDEX(IrodaiEltérések[],ROW()-ROW(IrodaiEltérések[[#Headers],[Jan.]]),1),INDEX(IrodaiTervezett[],,1),0),MATCH(IrodaiEltérések[[#Headers],[Jan.]],IrodaiTervezett[#Headers],0))-INDEX(IrodaiTényleges[],MATCH(INDEX(IrodaiEltérések[],ROW()-ROW(IrodaiEltérések[[#Headers],[Jan.]]),1),INDEX(IrodaiTervezett[],,1),0),MATCH(IrodaiEltérések[[#Headers],[Jan.]],IrodaiTényleges[#Headers],0))","v":{"v":0,"d":"0.00 Ft"}},{"$f":"INDEX(IrodaiTervezett[],MATCH(INDEX(IrodaiEltérések[],ROW()-ROW(IrodaiEltérések[[#Headers],[Febr.]]),1),INDEX(IrodaiTervezett[],,1),0),MATCH(IrodaiEltérések[[#Headers],[Febr.]],IrodaiTervezett[#Headers],0))-INDEX(IrodaiTényleges[],MATCH(INDEX(IrodaiEltérések[],ROW()-ROW(IrodaiEltérések[[#Headers],[Febr.]]),1),INDEX(IrodaiTervezett[],,1),0),MATCH(IrodaiEltérések[[#Headers],[Febr.]],IrodaiTényleges[#Headers],0))","v":{"v":0,"d":"0.00 Ft"}},{"$f":"INDEX(IrodaiTervezett[],MATCH(INDEX(IrodaiEltérések[],ROW()-ROW(IrodaiEltérések[[#Headers],[Márc.]]),1),INDEX(IrodaiTervezett[],,1),0),MATCH(IrodaiEltérések[[#Headers],[Márc.]],IrodaiTervezett[#Headers],0))-INDEX(IrodaiTényleges[],MATCH(INDEX(IrodaiEltérések[],ROW()-ROW(IrodaiEltérések[[#Headers],[Márc.]]),1),INDEX(IrodaiTervezett[],,1),0),MATCH(IrodaiEltérések[[#Headers],[Márc.]],IrodaiTényleges[#Headers],0))","v":{"v":0,"d":"0.00 Ft"}},{"$f":"INDEX(IrodaiTervezett[],MATCH(INDEX(IrodaiEltérések[],ROW()-ROW(IrodaiEltérések[[#Headers],[Ápr.]]),1),INDEX(IrodaiTervezett[],,1),0),MATCH(IrodaiEltérések[[#Headers],[Ápr.]],IrodaiTervezett[#Headers],0))-INDEX(IrodaiTényleges[],MATCH(INDEX(IrodaiEltérések[],ROW()-ROW(IrodaiEltérések[[#Headers],[Ápr.]]),1),INDEX(IrodaiTervezett[],,1),0),MATCH(IrodaiEltérések[[#Headers],[Ápr.]],IrodaiTényleges[#Headers],0))","v":{"v":0,"d":"0.00 Ft"}},{"$f":"INDEX(IrodaiTervezett[],MATCH(INDEX(IrodaiEltérések[],ROW()-ROW(IrodaiEltérések[[#Headers],[Máj.]]),1),INDEX(IrodaiTervezett[],,1),0),MATCH(IrodaiEltérések[[#Headers],[Máj.]],IrodaiTervezett[#Headers],0))-INDEX(IrodaiTényleges[],MATCH(INDEX(IrodaiEltérések[],ROW()-ROW(IrodaiEltérések[[#Headers],[Máj.]]),1),INDEX(IrodaiTervezett[],,1),0),MATCH(IrodaiEltérések[[#Headers],[Máj.]],IrodaiTényleges[#Headers],0))","v":{"v":0,"d":"0.00 Ft"}},{"$f":"INDEX(IrodaiTervezett[],MATCH(INDEX(IrodaiEltérések[],ROW()-ROW(IrodaiEltérések[[#Headers],[Jún.]]),1),INDEX(IrodaiTervezett[],,1),0),MATCH(IrodaiEltérések[[#Headers],[Jún.]],IrodaiTervezett[#Headers],0))-INDEX(IrodaiTényleges[],MATCH(INDEX(IrodaiEltérések[],ROW()-ROW(IrodaiEltérések[[#Headers],[Jún.]]),1),INDEX(IrodaiTervezett[],,1),0),MATCH(IrodaiEltérések[[#Headers],[Jún.]],IrodaiTényleges[#Headers],0))","v":{"v":0,"d":"0.00 Ft"}},{"$f":"INDEX(IrodaiTervezett[],MATCH(INDEX(IrodaiEltérések[],ROW()-ROW(IrodaiEltérések[[#Headers],[Júl.]]),1),INDEX(IrodaiTervezett[],,1),0),MATCH(IrodaiEltérések[[#Headers],[Júl.]],IrodaiTervezett[#Headers],0))-INDEX(IrodaiTényleges[],MATCH(INDEX(IrodaiEltérések[],ROW()-ROW(IrodaiEltérések[[#Headers],[Júl.]]),1),INDEX(IrodaiTervezett[],,1),0),MATCH(IrodaiEltérések[[#Headers],[Júl.]],IrodaiTényleges[#Headers],0))","v":{"v":600,"d":"600.00 Ft"}},{"$f":"INDEX(IrodaiTervezett[],MATCH(INDEX(IrodaiEltérések[],ROW()-ROW(IrodaiEltérések[[#Headers],[Aug.]]),1),INDEX(IrodaiTervezett[],,1),0),MATCH(IrodaiEltérések[[#Headers],[Aug.]],IrodaiTervezett[#Headers],0))-INDEX(IrodaiTényleges[],MATCH(INDEX(IrodaiEltérések[],ROW()-ROW(IrodaiEltérések[[#Headers],[Aug.]]),1),INDEX(IrodaiTervezett[],,1),0),MATCH(IrodaiEltérések[[#Headers],[Aug.]],IrodaiTényleges[#Headers],0))","v":{"v":600,"d":"600.00 Ft"}},{"$f":"INDEX(IrodaiTervezett[],MATCH(INDEX(IrodaiEltérések[],ROW()-ROW(IrodaiEltérések[[#Headers],[Szept.]]),1),INDEX(IrodaiTervezett[],,1),0),MATCH(IrodaiEltérések[[#Headers],[Szept.]],IrodaiTervezett[#Headers],0))-INDEX(IrodaiTényleges[],MATCH(INDEX(IrodaiEltérések[],ROW()-ROW(IrodaiEltérések[[#Headers],[Szept.]]),1),INDEX(IrodaiTervezett[],,1),0),MATCH(IrodaiEltérések[[#Headers],[Szept.]],IrodaiTényleges[#Headers],0))","v":{"v":600,"d":"600.00 Ft"}},{"$f":"INDEX(IrodaiTervezett[],MATCH(INDEX(IrodaiEltérések[],ROW()-ROW(IrodaiEltérések[[#Headers],[Okt.]]),1),INDEX(IrodaiTervezett[],,1),0),MATCH(IrodaiEltérések[[#Headers],[Okt.]],IrodaiTervezett[#Headers],0))-INDEX(IrodaiTényleges[],MATCH(INDEX(IrodaiEltérések[],ROW()-ROW(IrodaiEltérések[[#Headers],[Okt.]]),1),INDEX(IrodaiTervezett[],,1),0),MATCH(IrodaiEltérések[[#Headers],[Okt.]],IrodaiTényleges[#Headers],0))","v":{"v":600,"d":"600.00 Ft"}},{"$f":"INDEX(IrodaiTervezett[],MATCH(INDEX(IrodaiEltérések[],ROW()-ROW(IrodaiEltérések[[#Headers],[Nov.]]),1),INDEX(IrodaiTervezett[],,1),0),MATCH(IrodaiEltérések[[#Headers],[Nov.]],IrodaiTervezett[#Headers],0))-INDEX(IrodaiTényleges[],MATCH(INDEX(IrodaiEltérések[],ROW()-ROW(IrodaiEltérések[[#Headers],[Nov.]]),1),INDEX(IrodaiTervezett[],,1),0),MATCH(IrodaiEltérések[[#Headers],[Nov.]],IrodaiTényleges[#Headers],0))","v":{"v":600,"d":"600.00 Ft"}},{"$f":"INDEX(IrodaiTervezett[],MATCH(INDEX(IrodaiEltérések[],ROW()-ROW(IrodaiEltérések[[#Headers],[Dec.]]),1),INDEX(IrodaiTervezett[],,1),0),MATCH(IrodaiEltérések[[#Headers],[Dec.]],IrodaiTervezett[#Headers],0))-INDEX(IrodaiTényleges[],MATCH(INDEX(IrodaiEltérések[],ROW()-ROW(IrodaiEltérések[[#Headers],[Dec.]]),1),INDEX(IrodaiTervezett[],,1),0),MATCH(IrodaiEltérések[[#Headers],[Dec.]],IrodaiTényleges[#Headers],0))","v":{"v":600,"d":"600.00 Ft"}},{"$f":"SUM(IrodaiEltérések[[#This Row],[Jan.]:[Dec.]])","v":{"v":3600,"d":"3,600.00 Ft"}}]
[null,"Részösszeg",{"$f":"SUBTOTAL(109,IrodaiEltérések[Jan.])","v":{"v":-17,"d":"-17.00 Ft"}},{"$f":"SUBTOTAL(109,IrodaiEltérések[Febr.])","v":{"v":72,"d":"72.00 Ft"}},{"$f":"SUBTOTAL(109,IrodaiEltérések[Márc.])","v":{"v":78,"d":"78.00 Ft"}},{"$f":"SUBTOTAL(109,IrodaiEltérések[Ápr.])","v":{"v":-141,"d":"-141.00 Ft"}},{"$f":"SUBTOTAL(109,IrodaiEltérések[Máj.])","v":{"v":-38,"d":"-38.00 Ft"}},{"$f":"SUBTOTAL(109,IrodaiEltérések[Jún.])","v":{"v":16,"d":"16.00 Ft"}},{"$f":"SUBTOTAL(109,IrodaiEltérések[Júl.])","v":{"v":11470,"d":"11,470.00 Ft"}},{"$f":"SUBTOTAL(109,IrodaiEltérések[Aug.])","v":{"v":11470,"d":"11,470.00 Ft"}},{"$f":"SUBTOTAL(109,IrodaiEltérések[Szept.])","v":{"v":11470,"d":"11,470.00 Ft"}},{"$f":"SUBTOTAL(109,IrodaiEltérések[Okt.])","v":{"v":11470,"d":"11,470.00 Ft"}},{"$f":"SUBTOTAL(109,IrodaiEltérések[Nov.])","v":{"v":11770,"d":"11,770.00 Ft"}},{"$f":"SUBTOTAL(109,IrodaiEltérések[Dec.])","v":{"v":11770,"d":"11,770.00 Ft"}},{"$f":"SUBTOTAL(109,IrodaiEltérések[ÉV])","v":{"v":69390,"d":"69,390.00 Ft"}}]
[]
["A jobbra lévő cellában kezdődő Marketinges eltérések táblázatban a sablon automatikusan kiszámítja a marketingköltségek eltérését. A következő utasítás az A30 cellában található.","Marketingköltségek","Jan.","Febr.","Márc.","Ápr.","Máj.","Jún.","Júl.","Aug.","Szept.","Okt.","Nov.","Dec.","ÉV"]
[null,"Webhely-üzemeltetés",{"$f":"INDEX(MarketingTervezett[],MATCH(INDEX(MarketingEltérések[],ROW()-ROW(MarketingEltérések[[#Headers],[Jan.]]),1),INDEX(MarketingTervezett[],,1),0),MATCH(MarketingEltérések[[#Headers],[Jan.]],MarketingTervezett[#Headers],0))-INDEX(MarketingTényleges[],MATCH(INDEX(MarketingEltérések[],ROW()-ROW(MarketingEltérések[[#Headers],[Jan.]]),1),INDEX(MarketingTervezett[],,1),0),MATCH(MarketingEltérések[[#Headers],[Jan.]],MarketingTényleges[#Headers],0))","v":{"v":0,"d":"0.00 Ft"}},{"$f":"INDEX(MarketingTervezett[],MATCH(INDEX(MarketingEltérések[],ROW()-ROW(MarketingEltérések[[#Headers],[Febr.]]),1),INDEX(MarketingTervezett[],,1),0),MATCH(MarketingEltérések[[#Headers],[Febr.]],MarketingTervezett[#Headers],0))-INDEX(MarketingTényleges[],MATCH(INDEX(MarketingEltérések[],ROW()-ROW(MarketingEltérések[[#Headers],[Febr.]]),1),INDEX(MarketingTervezett[],,1),0),MATCH(MarketingEltérések[[#Headers],[Febr.]],MarketingTényleges[#Headers],0))","v":{"v":0,"d":"0.00 Ft"}},{"$f":"INDEX(MarketingTervezett[],MATCH(INDEX(MarketingEltérések[],ROW()-ROW(MarketingEltérések[[#Headers],[Márc.]]),1),INDEX(MarketingTervezett[],,1),0),MATCH(MarketingEltérések[[#Headers],[Márc.]],MarketingTervezett[#Headers],0))-INDEX(MarketingTényleges[],MATCH(INDEX(MarketingEltérések[],ROW()-ROW(MarketingEltérések[[#Headers],[Márc.]]),1),INDEX(MarketingTervezett[],,1),0),MATCH(MarketingEltérések[[#Headers],[Márc.]],MarketingTényleges[#Headers],0))","v":{"v":0,"d":"0.00 Ft"}},{"$f":"INDEX(MarketingTervezett[],MATCH(INDEX(MarketingEltérések[],ROW()-ROW(MarketingEltérések[[#Headers],[Ápr.]]),1),INDEX(MarketingTervezett[],,1),0),MATCH(MarketingEltérések[[#Headers],[Ápr.]],MarketingTervezett[#Headers],0))-INDEX(MarketingTényleges[],MATCH(INDEX(MarketingEltérések[],ROW()-ROW(MarketingEltérések[[#Headers],[Ápr.]]),1),INDEX(MarketingTervezett[],,1),0),MATCH(MarketingEltérések[[#Headers],[Ápr.]],MarketingTényleges[#Headers],0))","v":{"v":0,"d":"0.00 Ft"}},{"$f":"INDEX(MarketingTervezett[],MATCH(INDEX(MarketingEltérések[],ROW()-ROW(MarketingEltérések[[#Headers],[Máj.]]),1),INDEX(MarketingTervezett[],,1),0),MATCH(MarketingEltérések[[#Headers],[Máj.]],MarketingTervezett[#Headers],0))-INDEX(MarketingTényleges[],MATCH(INDEX(MarketingEltérések[],ROW()-ROW(MarketingEltérések[[#Headers],[Máj.]]),1),INDEX(MarketingTervezett[],,1),0),MATCH(MarketingEltérések[[#Headers],[Máj.]],MarketingTényleges[#Headers],0))","v":{"v":0,"d":"0.00 Ft"}},{"$f":"INDEX(MarketingTervezett[],MATCH(INDEX(MarketingEltérések[],ROW()-ROW(MarketingEltérések[[#Headers],[Jún.]]),1),INDEX(MarketingTervezett[],,1),0),MATCH(MarketingEltérések[[#Headers],[Jún.]],MarketingTervezett[#Headers],0))-INDEX(MarketingTényleges[],MATCH(INDEX(MarketingEltérések[],ROW()-ROW(MarketingEltérések[[#Headers],[Jún.]]),1),INDEX(MarketingTervezett[],,1),0),MATCH(MarketingEltérések[[#Headers],[Jún.]],MarketingTényleges[#Headers],0))","v":{"v":0,"d":"0.00 Ft"}},{"$f":"INDEX(MarketingTervezett[],MATCH(INDEX(MarketingEltérések[],ROW()-ROW(MarketingEltérések[[#Headers],[Júl.]]),1),INDEX(MarketingTervezett[],,1),0),MATCH(MarketingEltérések[[#Headers],[Júl.]],MarketingTervezett[#Headers],0))-INDEX(MarketingTényleges[],MATCH(INDEX(MarketingEltérések[],ROW()-ROW(MarketingEltérések[[#Headers],[Júl.]]),1),INDEX(MarketingTervezett[],,1),0),MATCH(MarketingEltérések[[#Headers],[Júl.]],MarketingTényleges[#Headers],0))","v":{"v":500,"d":"500.00 Ft"}},{"$f":"INDEX(MarketingTervezett[],MATCH(INDEX(MarketingEltérések[],ROW()-ROW(MarketingEltérések[[#Headers],[Aug.]]),1),INDEX(MarketingTervezett[],,1),0),MATCH(MarketingEltérések[[#Headers],[Aug.]],MarketingTervezett[#Headers],0))-INDEX(MarketingTényleges[],MATCH(INDEX(MarketingEltérések[],ROW()-ROW(MarketingEltérések[[#Headers],[Aug.]]),1),INDEX(MarketingTervezett[],,1),0),MATCH(MarketingEltérések[[#Headers],[Aug.]],MarketingTényleges[#Headers],0))","v":{"v":500,"d":"500.00 Ft"}},{"$f":"INDEX(MarketingTervezett[],MATCH(INDEX(MarketingEltérések[],ROW()-ROW(MarketingEltérések[[#Headers],[Szept.]]),1),INDEX(MarketingTervezett[],,1),0),MATCH(MarketingEltérések[[#Headers],[Szept.]],MarketingTervezett[#Headers],0))-INDEX(MarketingTényleges[],MATCH(INDEX(MarketingEltérések[],ROW()-ROW(MarketingEltérések[[#Headers],[Szept.]]),1),INDEX(MarketingTervezett[],,1),0),MATCH(MarketingEltérések[[#Headers],[Szept.]],MarketingTényleges[#Headers],0))","v":{"v":500,"d":"500.00 Ft"}},{"$f":"INDEX(MarketingTervezett[],MATCH(INDEX(MarketingEltérések[],ROW()-ROW(MarketingEltérések[[#Headers],[Okt.]]),1),INDEX(MarketingTervezett[],,1),0),MATCH(MarketingEltérések[[#Headers],[Okt.]],MarketingTervezett[#Headers],0))-INDEX(MarketingTényleges[],MATCH(INDEX(MarketingEltérések[],ROW()-ROW(MarketingEltérések[[#Headers],[Okt.]]),1),INDEX(MarketingTervezett[],,1),0),MATCH(MarketingEltérések[[#Headers],[Okt.]],MarketingTényleges[#Headers],0))","v":{"v":500,"d":"500.00 Ft"}},{"$f":"INDEX(MarketingTervezett[],MATCH(INDEX(MarketingEltérések[],ROW()-ROW(MarketingEltérések[[#Headers],[Nov.]]),1),INDEX(MarketingTervezett[],,1),0),MATCH(MarketingEltérések[[#Headers],[Nov.]],MarketingTervezett[#Headers],0))-INDEX(MarketingTényleges[],MATCH(INDEX(MarketingEltérések[],ROW()-ROW(MarketingEltérések[[#Headers],[Nov.]]),1),INDEX(MarketingTervezett[],,1),0),MATCH(MarketingEltérések[[#Headers],[Nov.]],MarketingTényleges[#Headers],0))","v":{"v":500,"d":"500.00 Ft"}},{"$f":"INDEX(MarketingTervezett[],MATCH(INDEX(MarketingEltérések[],ROW()-ROW(MarketingEltérések[[#Headers],[Dec.]]),1),INDEX(MarketingTervezett[],,1),0),MATCH(MarketingEltérések[[#Headers],[Dec.]],MarketingTervezett[#Headers],0))-INDEX(MarketingTényleges[],MATCH(INDEX(MarketingEltérések[],ROW()-ROW(MarketingEltérések[[#Headers],[Dec.]]),1),INDEX(MarketingTervezett[],,1),0),MATCH(MarketingEltérések[[#Headers],[Dec.]],MarketingTényleges[#Headers],0))","v":{"v":500,"d":"500.00 Ft"}},{"$f":"SUM(MarketingEltérések[[#This Row],[Jan.]:[Dec.]])","v":{"v":3000,"d":"3,000.00 Ft"}}]
[null,"A webhely frissítései",{"$f":"INDEX(MarketingTervezett[],MATCH(INDEX(MarketingEltérések[],ROW()-ROW(MarketingEltérések[[#Headers],[Jan.]]),1),INDEX(MarketingTervezett[],,1),0),MATCH(MarketingEltérések[[#Headers],[Jan.]],MarketingTervezett[#Headers],0))-INDEX(MarketingTényleges[],MATCH(INDEX(MarketingEltérések[],ROW()-ROW(MarketingEltérések[[#Headers],[Jan.]]),1),INDEX(MarketingTervezett[],,1),0),MATCH(MarketingEltérések[[#Headers],[Jan.]],MarketingTényleges[#Headers],0))","v":{"v":0,"d":"0.00 Ft"}},{"$f":"INDEX(MarketingTervezett[],MATCH(INDEX(MarketingEltérések[],ROW()-ROW(MarketingEltérések[[#Headers],[Febr.]]),1),INDEX(MarketingTervezett[],,1),0),MATCH(MarketingEltérések[[#Headers],[Febr.]],MarketingTervezett[#Headers],0))-INDEX(MarketingTényleges[],MATCH(INDEX(MarketingEltérések[],ROW()-ROW(MarketingEltérések[[#Headers],[Febr.]]),1),INDEX(MarketingTervezett[],,1),0),MATCH(MarketingEltérések[[#Headers],[Febr.]],MarketingTényleges[#Headers],0))","v":{"v":0,"d":"0.00 Ft"}},{"$f":"INDEX(MarketingTervezett[],MATCH(INDEX(MarketingEltérések[],ROW()-ROW(MarketingEltérések[[#Headers],[Márc.]]),1),INDEX(MarketingTervezett[],,1),0),MATCH(MarketingEltérések[[#Headers],[Márc.]],MarketingTervezett[#Headers],0))-INDEX(MarketingTényleges[],MATCH(INDEX(MarketingEltérések[],ROW()-ROW(MarketingEltérések[[#Headers],[Márc.]]),1),INDEX(MarketingTervezett[],,1),0),MATCH(MarketingEltérések[[#Headers],[Márc.]],MarketingTényleges[#Headers],0))","v":{"v":0,"d":"0.00 Ft"}},{"$f":"INDEX(MarketingTervezett[],MATCH(INDEX(MarketingEltérések[],ROW()-ROW(MarketingEltérések[[#Headers],[Ápr.]]),1),INDEX(MarketingTervezett[],,1),0),MATCH(MarketingEltérések[[#Headers],[Ápr.]],MarketingTervezett[#Headers],0))-INDEX(MarketingTényleges[],MATCH(INDEX(MarketingEltérések[],ROW()-ROW(MarketingEltérések[[#Headers],[Ápr.]]),1),INDEX(MarketingTervezett[],,1),0),MATCH(MarketingEltérések[[#Headers],[Ápr.]],MarketingTényleges[#Headers],0))","v":{"v":0,"d":"0.00 Ft"}},{"$f":"INDEX(MarketingTervezett[],MATCH(INDEX(MarketingEltérések[],ROW()-ROW(MarketingEltérések[[#Headers],[Máj.]]),1),INDEX(MarketingTervezett[],,1),0),MATCH(MarketingEltérések[[#Headers],[Máj.]],MarketingTervezett[#Headers],0))-INDEX(MarketingTényleges[],MATCH(INDEX(MarketingEltérések[],ROW()-ROW(MarketingEltérések[[#Headers],[Máj.]]),1),INDEX(MarketingTervezett[],,1),0),MATCH(MarketingEltérések[[#Headers],[Máj.]],MarketingTényleges[#Headers],0))","v":{"v":0,"d":"0.00 Ft"}},{"$f":"INDEX(MarketingTervezett[],MATCH(INDEX(MarketingEltérések[],ROW()-ROW(MarketingEltérések[[#Headers],[Jún.]]),1),INDEX(MarketingTervezett[],,1),0),MATCH(MarketingEltérések[[#Headers],[Jún.]],MarketingTervezett[#Headers],0))-INDEX(MarketingTényleges[],MATCH(INDEX(MarketingEltérések[],ROW()-ROW(MarketingEltérések[[#Headers],[Jún.]]),1),INDEX(MarketingTervezett[],,1),0),MATCH(MarketingEltérések[[#Headers],[Jún.]],MarketingTényleges[#Headers],0))","v":{"v":-500,"d":"-500.00 Ft"}},{"$f":"INDEX(MarketingTervezett[],MATCH(INDEX(MarketingEltérések[],ROW()-ROW(MarketingEltérések[[#Headers],[Júl.]]),1),INDEX(MarketingTervezett[],,1),0),MATCH(MarketingEltérések[[#Headers],[Júl.]],MarketingTervezett[#Headers],0))-INDEX(MarketingTényleges[],MATCH(INDEX(MarketingEltérések[],ROW()-ROW(MarketingEltérések[[#Headers],[Júl.]]),1),INDEX(MarketingTervezett[],,1),0),MATCH(MarketingEltérések[[#Headers],[Júl.]],MarketingTényleges[#Headers],0))","v":{"v":200,"d":"200.00 Ft"}},{"$f":"INDEX(MarketingTervezett[],MATCH(INDEX(MarketingEltérések[],ROW()-ROW(MarketingEltérések[[#Headers],[Aug.]]),1),INDEX(MarketingTervezett[],,1),0),MATCH(MarketingEltérések[[#Headers],[Aug.]],MarketingTervezett[#Headers],0))-INDEX(MarketingTényleges[],MATCH(INDEX(MarketingEltérések[],ROW()-ROW(MarketingEltérések[[#Headers],[Aug.]]),1),INDEX(MarketingTervezett[],,1),0),MATCH(MarketingEltérések[[#Headers],[Aug.]],MarketingTényleges[#Headers],0))","v":{"v":200,"d":"200.00 Ft"}},{"$f":"INDEX(MarketingTervezett[],MATCH(INDEX(MarketingEltérések[],ROW()-ROW(MarketingEltérések[[#Headers],[Szept.]]),1),INDEX(MarketingTervezett[],,1),0),MATCH(MarketingEltérések[[#Headers],[Szept.]],MarketingTervezett[#Headers],0))-INDEX(MarketingTényleges[],MATCH(INDEX(MarketingEltérések[],ROW()-ROW(MarketingEltérések[[#Headers],[Szept.]]),1),INDEX(MarketingTervezett[],,1),0),MATCH(MarketingEltérések[[#Headers],[Szept.]],MarketingTényleges[#Headers],0))","v":{"v":200,"d":"200.00 Ft"}},{"$f":"INDEX(MarketingTervezett[],MATCH(INDEX(MarketingEltérések[],ROW()-ROW(MarketingEltérések[[#Headers],[Okt.]]),1),INDEX(MarketingTervezett[],,1),0),MATCH(MarketingEltérések[[#Headers],[Okt.]],MarketingTervezett[#Headers],0))-INDEX(MarketingTényleges[],MATCH(INDEX(MarketingEltérések[],ROW()-ROW(MarketingEltérések[[#Headers],[Okt.]]),1),INDEX(MarketingTervezett[],,1),0),MATCH(MarketingEltérések[[#Headers],[Okt.]],MarketingTényleges[#Headers],0))","v":{"v":200,"d":"200.00 Ft"}},{"$f":"INDEX(MarketingTervezett[],MATCH(INDEX(MarketingEltérések[],ROW()-ROW(MarketingEltérések[[#Headers],[Nov.]]),1),INDEX(MarketingTervezett[],,1),0),MATCH(MarketingEltérések[[#Headers],[Nov.]],MarketingTervezett[#Headers],0))-INDEX(MarketingTényleges[],MATCH(INDEX(MarketingEltérések[],ROW()-ROW(MarketingEltérések[[#Headers],[Nov.]]),1),INDEX(MarketingTervezett[],,1),0),MATCH(MarketingEltérések[[#Headers],[Nov.]],MarketingTényleges[#Headers],0))","v":{"v":200,"d":"200.00 Ft"}},{"$f":"INDEX(MarketingTervezett[],MATCH(INDEX(MarketingEltérések[],ROW()-ROW(MarketingEltérések[[#Headers],[Dec.]]),1),INDEX(MarketingTervezett[],,1),0),MATCH(MarketingEltérések[[#Headers],[Dec.]],MarketingTervezett[#Headers],0))-INDEX(MarketingTényleges[],MATCH(INDEX(MarketingEltérések[],ROW()-ROW(MarketingEltérések[[#Headers],[Dec.]]),1),INDEX(MarketingTervezett[],,1),0),MATCH(MarketingEltérések[[#Headers],[Dec.]],MarketingTényleges[#Headers],0))","v":{"v":1000,"d":"1,000.00 Ft"}},{"$f":"SUM(MarketingEltérések[[#This Row],[Jan.]:[Dec.]])","v":{"v":1500,"d":"1,500.00 Ft"}}]
[null,"Segédanyagok előkészítése",{"$f":"INDEX(MarketingTervezett[],MATCH(INDEX(MarketingEltérések[],ROW()-ROW(MarketingEltérések[[#Headers],[Jan.]]),1),INDEX(MarketingTervezett[],,1),0),MATCH(MarketingEltérések[[#Headers],[Jan.]],MarketingTervezett[#Headers],0))-INDEX(MarketingTényleges[],MATCH(INDEX(MarketingEltérések[],ROW()-ROW(MarketingEltérések[[#Headers],[Jan.]]),1),INDEX(MarketingTervezett[],,1),0),MATCH(MarketingEltérések[[#Headers],[Jan.]],MarketingTényleges[#Headers],0))","v":{"v":200,"d":"200.00 Ft"}},{"$f":"INDEX(MarketingTervezett[],MATCH(INDEX(MarketingEltérések[],ROW()-ROW(MarketingEltérések[[#Headers],[Febr.]]),1),INDEX(MarketingTervezett[],,1),0),MATCH(MarketingEltérések[[#Headers],[Febr.]],MarketingTervezett[#Headers],0))-INDEX(MarketingTényleges[],MATCH(INDEX(MarketingEltérések[],ROW()-ROW(MarketingEltérések[[#Headers],[Febr.]]),1),INDEX(MarketingTervezett[],,1),0),MATCH(MarketingEltérések[[#Headers],[Febr.]],MarketingTényleges[#Headers],0))","v":{"v":0,"d":"0.00 Ft"}},{"$f":"INDEX(MarketingTervezett[],MATCH(INDEX(MarketingEltérések[],ROW()-ROW(MarketingEltérések[[#Headers],[Márc.]]),1),INDEX(MarketingTervezett[],,1),0),MATCH(MarketingEltérések[[#Headers],[Márc.]],MarketingTervezett[#Headers],0))-INDEX(MarketingTényleges[],MATCH(INDEX(MarketingEltérések[],ROW()-ROW(MarketingEltérések[[#Headers],[Márc.]]),1),INDEX(MarketingTervezett[],,1),0),MATCH(MarketingEltérések[[#Headers],[Márc.]],MarketingTényleges[#Headers],0))","v":{"v":0,"d":"0.00 Ft"}},{"$f":"INDEX(MarketingTervezett[],MATCH(INDEX(MarketingEltérések[],ROW()-ROW(MarketingEltérések[[#Headers],[Ápr.]]),1),INDEX(MarketingTervezett[],,1),0),MATCH(MarketingEltérések[[#Headers],[Ápr.]],MarketingTervezett[#Headers],0))-INDEX(MarketingTényleges[],MATCH(INDEX(MarketingEltérések[],ROW()-ROW(MarketingEltérések[[#Headers],[Ápr.]]),1),INDEX(MarketingTervezett[],,1),0),MATCH(MarketingEltérések[[#Headers],[Ápr.]],MarketingTényleges[#Headers],0))","v":{"v":-500,"d":"-500.00 Ft"}},{"$f":"INDEX(MarketingTervezett[],MATCH(INDEX(MarketingEltérések[],ROW()-ROW(MarketingEltérések[[#Headers],[Máj.]]),1),INDEX(MarketingTervezett[],,1),0),MATCH(MarketingEltérések[[#Headers],[Máj.]],MarketingTervezett[#Headers],0))-INDEX(MarketingTényleges[],MATCH(INDEX(MarketingEltérések[],ROW()-ROW(MarketingEltérések[[#Headers],[Máj.]]),1),INDEX(MarketingTervezett[],,1),0),MATCH(MarketingEltérések[[#Headers],[Máj.]],MarketingTényleges[#Headers],0))","v":{"v":0,"d":"0.00 Ft"}},{"$f":"INDEX(MarketingTervezett[],MATCH(INDEX(MarketingEltérések[],ROW()-ROW(MarketingEltérések[[#Headers],[Jún.]]),1),INDEX(MarketingTervezett[],,1),0),MATCH(MarketingEltérések[[#Headers],[Jún.]],MarketingTervezett[#Headers],0))-INDEX(MarketingTényleges[],MATCH(INDEX(MarketingEltérések[],ROW()-ROW(MarketingEltérések[[#Headers],[Jún.]]),1),INDEX(MarketingTervezett[],,1),0),MATCH(MarketingEltérések[[#Headers],[Jún.]],MarketingTényleges[#Headers],0))","v":{"v":0,"d":"0.00 Ft"}},{"$f":"INDEX(MarketingTervezett[],MATCH(INDEX(MarketingEltérések[],ROW()-ROW(MarketingEltérések[[#Headers],[Júl.]]),1),INDEX(MarketingTervezett[],,1),0),MATCH(MarketingEltérések[[#Headers],[Júl.]],MarketingTervezett[#Headers],0))-INDEX(MarketingTényleges[],MATCH(INDEX(MarketingEltérések[],ROW()-ROW(MarketingEltérések[[#Headers],[Júl.]]),1),INDEX(MarketingTervezett[],,1),0),MATCH(MarketingEltérések[[#Headers],[Júl.]],MarketingTényleges[#Headers],0))","v":{"v":5000,"d":"5,000.00 Ft"}},{"$f":"INDEX(MarketingTervezett[],MATCH(INDEX(MarketingEltérések[],ROW()-ROW(MarketingEltérések[[#Headers],[Aug.]]),1),INDEX(MarketingTervezett[],,1),0),MATCH(MarketingEltérések[[#Headers],[Aug.]],MarketingTervezett[#Headers],0))-INDEX(MarketingTényleges[],MATCH(INDEX(MarketingEltérések[],ROW()-ROW(MarketingEltérések[[#Headers],[Aug.]]),1),INDEX(MarketingTervezett[],,1),0),MATCH(MarketingEltérések[[#Headers],[Aug.]],MarketingTényleges[#Headers],0))","v":{"v":0,"d":"0.00 Ft"}},{"$f":"INDEX(MarketingTervezett[],MATCH(INDEX(MarketingEltérések[],ROW()-ROW(MarketingEltérések[[#Headers],[Szept.]]),1),INDEX(MarketingTervezett[],,1),0),MATCH(MarketingEltérések[[#Headers],[Szept.]],MarketingTervezett[#Headers],0))-INDEX(MarketingTényleges[],MATCH(INDEX(MarketingEltérések[],ROW()-ROW(MarketingEltérések[[#Headers],[Szept.]]),1),INDEX(MarketingTervezett[],,1),0),MATCH(MarketingEltérések[[#Headers],[Szept.]],MarketingTényleges[#Headers],0))","v":{"v":0,"d":"0.00 Ft"}},{"$f":"INDEX(MarketingTervezett[],MATCH(INDEX(MarketingEltérések[],ROW()-ROW(MarketingEltérések[[#Headers],[Okt.]]),1),INDEX(MarketingTervezett[],,1),0),MATCH(MarketingEltérések[[#Headers],[Okt.]],MarketingTervezett[#Headers],0))-INDEX(MarketingTényleges[],MATCH(INDEX(MarketingEltérések[],ROW()-ROW(MarketingEltérések[[#Headers],[Okt.]]),1),INDEX(MarketingTervezett[],,1),0),MATCH(MarketingEltérések[[#Headers],[Okt.]],MarketingTényleges[#Headers],0))","v":{"v":5000,"d":"5,000.00 Ft"}},{"$f":"INDEX(MarketingTervezett[],MATCH(INDEX(MarketingEltérések[],ROW()-ROW(MarketingEltérések[[#Headers],[Nov.]]),1),INDEX(MarketingTervezett[],,1),0),MATCH(MarketingEltérések[[#Headers],[Nov.]],MarketingTervezett[#Headers],0))-INDEX(MarketingTényleges[],MATCH(INDEX(MarketingEltérések[],ROW()-ROW(MarketingEltérések[[#Headers],[Nov.]]),1),INDEX(MarketingTervezett[],,1),0),MATCH(MarketingEltérések[[#Headers],[Nov.]],MarketingTényleges[#Headers],0))","v":{"v":0,"d":"0.00 Ft"}},{"$f":"INDEX(MarketingTervezett[],MATCH(INDEX(MarketingEltérések[],ROW()-ROW(MarketingEltérések[[#Headers],[Dec.]]),1),INDEX(MarketingTervezett[],,1),0),MATCH(MarketingEltérések[[#Headers],[Dec.]],MarketingTervezett[#Headers],0))-INDEX(MarketingTényleges[],MATCH(INDEX(MarketingEltérések[],ROW()-ROW(MarketingEltérések[[#Headers],[Dec.]]),1),INDEX(MarketingTervezett[],,1),0),MATCH(MarketingEltérések[[#Headers],[Dec.]],MarketingTényleges[#Headers],0))","v":{"v":0,"d":"0.00 Ft"}},{"$f":"SUM(MarketingEltérések[[#This Row],[Jan.]:[Dec.]])","v":{"v":9700,"d":"9,700.00 Ft"}}]
[null,"Segédanyagok nyomtatása",{"$f":"INDEX(MarketingTervezett[],MATCH(INDEX(MarketingEltérések[],ROW()-ROW(MarketingEltérések[[#Headers],[Jan.]]),1),INDEX(MarketingTervezett[],,1),0),MATCH(MarketingEltérések[[#Headers],[Jan.]],MarketingTervezett[#Headers],0))-INDEX(MarketingTényleges[],MATCH(INDEX(MarketingEltérések[],ROW()-ROW(MarketingEltérések[[#Headers],[Jan.]]),1),INDEX(MarketingTervezett[],,1),0),MATCH(MarketingEltérések[[#Headers],[Jan.]],MarketingTényleges[#Headers],0))","v":{"v":100,"d":"100.00 Ft"}},{"$f":"INDEX(MarketingTervezett[],MATCH(INDEX(MarketingEltérések[],ROW()-ROW(MarketingEltérések[[#Headers],[Febr.]]),1),INDEX(MarketingTervezett[],,1),0),MATCH(MarketingEltérések[[#Headers],[Febr.]],MarketingTervezett[#Headers],0))-INDEX(MarketingTényleges[],MATCH(INDEX(MarketingEltérések[],ROW()-ROW(MarketingEltérések[[#Headers],[Febr.]]),1),INDEX(MarketingTervezett[],,1),0),MATCH(MarketingEltérések[[#Headers],[Febr.]],MarketingTényleges[#Headers],0))","v":{"v":-300,"d":"-300.00 Ft"}},{"$f":"INDEX(MarketingTervezett[],MATCH(INDEX(MarketingEltérések[],ROW()-ROW(MarketingEltérések[[#Headers],[Márc.]]),1),INDEX(MarketingTervezett[],,1),0),MATCH(MarketingEltérések[[#Headers],[Márc.]],MarketingTervezett[#Headers],0))-INDEX(MarketingTényleges[],MATCH(INDEX(MarketingEltérések[],ROW()-ROW(MarketingEltérések[[#Headers],[Márc.]]),1),INDEX(MarketingTervezett[],,1),0),MATCH(MarketingEltérések[[#Headers],[Márc.]],MarketingTényleges[#Headers],0))","v":{"v":100,"d":"100.00 Ft"}},{"$f":"INDEX(MarketingTervezett[],MATCH(INDEX(MarketingEltérések[],ROW()-ROW(MarketingEltérések[[#Headers],[Ápr.]]),1),INDEX(MarketingTervezett[],,1),0),MATCH(MarketingEltérések[[#Headers],[Ápr.]],MarketingTervezett[#Headers],0))-INDEX(MarketingTényleges[],MATCH(INDEX(MarketingEltérések[],ROW()-ROW(MarketingEltérések[[#Headers],[Ápr.]]),1),INDEX(MarketingTervezett[],,1),0),MATCH(MarketingEltérések[[#Headers],[Ápr.]],MarketingTényleges[#Headers],0))","v":{"v":100,"d":"100.00 Ft"}},{"$f":"INDEX(MarketingTervezett[],MATCH(INDEX(MarketingEltérések[],ROW()-ROW(MarketingEltérések[[#Headers],[Máj.]]),1),INDEX(MarketingTervezett[],,1),0),MATCH(MarketingEltérések[[#Headers],[Máj.]],MarketingTervezett[#Headers],0))-INDEX(MarketingTényleges[],MATCH(INDEX(MarketingEltérések[],ROW()-ROW(MarketingEltérések[[#Headers],[Máj.]]),1),INDEX(MarketingTervezett[],,1),0),MATCH(MarketingEltérések[[#Headers],[Máj.]],MarketingTényleges[#Headers],0))","v":{"v":-400,"d":"-400.00 Ft"}},{"$f":"INDEX(MarketingTervezett[],MATCH(INDEX(MarketingEltérések[],ROW()-ROW(MarketingEltérések[[#Headers],[Jún.]]),1),INDEX(MarketingTervezett[],,1),0),MATCH(MarketingEltérések[[#Headers],[Jún.]],MarketingTervezett[#Headers],0))-INDEX(MarketingTényleges[],MATCH(INDEX(MarketingEltérések[],ROW()-ROW(MarketingEltérések[[#Headers],[Jún.]]),1),INDEX(MarketingTervezett[],,1),0),MATCH(MarketingEltérések[[#Headers],[Jún.]],MarketingTényleges[#Headers],0))","v":{"v":20,"d":"20.00 Ft"}},{"$f":"INDEX(MarketingTervezett[],MATCH(INDEX(MarketingEltérések[],ROW()-ROW(MarketingEltérések[[#Headers],[Júl.]]),1),INDEX(MarketingTervezett[],,1),0),MATCH(MarketingEltérések[[#Headers],[Júl.]],MarketingTervezett[#Headers],0))-INDEX(MarketingTényleges[],MATCH(INDEX(MarketingEltérések[],ROW()-ROW(MarketingEltérések[[#Headers],[Júl.]]),1),INDEX(MarketingTervezett[],,1),0),MATCH(MarketingEltérések[[#Headers],[Júl.]],MarketingTényleges[#Headers],0))","v":{"v":200,"d":"200.00 Ft"}},{"$f":"INDEX(MarketingTervezett[],MATCH(INDEX(MarketingEltérések[],ROW()-ROW(MarketingEltérések[[#Headers],[Aug.]]),1),INDEX(MarketingTervezett[],,1),0),MATCH(MarketingEltérések[[#Headers],[Aug.]],MarketingTervezett[#Headers],0))-INDEX(MarketingTényleges[],MATCH(INDEX(MarketingEltérések[],ROW()-ROW(MarketingEltérések[[#Headers],[Aug.]]),1),INDEX(MarketingTervezett[],,1),0),MATCH(MarketingEltérések[[#Headers],[Aug.]],MarketingTényleges[#Headers],0))","v":{"v":200,"d":"200.00 Ft"}},{"$f":"INDEX(MarketingTervezett[],MATCH(INDEX(MarketingEltérések[],ROW()-ROW(MarketingEltérések[[#Headers],[Szept.]]),1),INDEX(MarketingTervezett[],,1),0),MATCH(MarketingEltérések[[#Headers],[Szept.]],MarketingTervezett[#Headers],0))-INDEX(MarketingTényleges[],MATCH(INDEX(MarketingEltérések[],ROW()-ROW(MarketingEltérések[[#Headers],[Szept.]]),1),INDEX(MarketingTervezett[],,1),0),MATCH(MarketingEltérések[[#Headers],[Szept.]],MarketingTényleges[#Headers],0))","v":{"v":200,"d":"200.00 Ft"}},{"$f":"INDEX(MarketingTervezett[],MATCH(INDEX(MarketingEltérések[],ROW()-ROW(MarketingEltérések[[#Headers],[Okt.]]),1),INDEX(MarketingTervezett[],,1),0),MATCH(MarketingEltérések[[#Headers],[Okt.]],MarketingTervezett[#Headers],0))-INDEX(MarketingTényleges[],MATCH(INDEX(MarketingEltérések[],ROW()-ROW(MarketingEltérések[[#Headers],[Okt.]]),1),INDEX(MarketingTervezett[],,1),0),MATCH(MarketingEltérések[[#Headers],[Okt.]],MarketingTényleges[#Headers],0))","v":{"v":200,"d":"200.00 Ft"}},{"$f":"INDEX(MarketingTervezett[],MATCH(INDEX(MarketingEltérések[],ROW()-ROW(MarketingEltérések[[#Headers],[Nov.]]),1),INDEX(MarketingTervezett[],,1),0),MATCH(MarketingEltérések[[#Headers],[Nov.]],MarketingTervezett[#Headers],0))-INDEX(MarketingTényleges[],MATCH(INDEX(MarketingEltérések[],ROW()-ROW(MarketingEltérések[[#Headers],[Nov.]]),1),INDEX(MarketingTervezett[],,1),0),MATCH(MarketingEltérések[[#Headers],[Nov.]],MarketingTényleges[#Headers],0))","v":{"v":200,"d":"200.00 Ft"}},{"$f":"INDEX(MarketingTervezett[],MATCH(INDEX(MarketingEltérések[],ROW()-ROW(MarketingEltérések[[#Headers],[Dec.]]),1),INDEX(MarketingTervezett[],,1),0),MATCH(MarketingEltérések[[#Headers],[Dec.]],MarketingTervezett[#Headers],0))-INDEX(MarketingTényleges[],MATCH(INDEX(MarketingEltérések[],ROW()-ROW(MarketingEltérések[[#Headers],[Dec.]]),1),INDEX(MarketingTervezett[],,1),0),MATCH(MarketingEltérések[[#Headers],[Dec.]],MarketingTényleges[#Headers],0))","v":{"v":200,"d":"200.00 Ft"}},{"$f":"SUM(MarketingEltérések[[#This Row],[Jan.]:[Dec.]])","v":{"v":820,"d":"820.00 Ft"}}]
[null,"Marketingrendezvények",{"$f":"INDEX(MarketingTervezett[],MATCH(INDEX(MarketingEltérések[],ROW()-ROW(MarketingEltérések[[#Headers],[Jan.]]),1),INDEX(MarketingTervezett[],,1),0),MATCH(MarketingEltérések[[#Headers],[Jan.]],MarketingTervezett[#Headers],0))-INDEX(MarketingTényleges[],MATCH(INDEX(MarketingEltérések[],ROW()-ROW(MarketingEltérések[[#Headers],[Jan.]]),1),INDEX(MarketingTervezett[],,1),0),MATCH(MarketingEltérések[[#Headers],[Jan.]],MarketingTényleges[#Headers],0))","v":{"v":200,"d":"200.00 Ft"}},{"$f":"INDEX(MarketingTervezett[],MATCH(INDEX(MarketingEltérések[],ROW()-ROW(MarketingEltérések[[#Headers],[Febr.]]),1),INDEX(MarketingTervezett[],,1),0),MATCH(MarketingEltérések[[#Headers],[Febr.]],MarketingTervezett[#Headers],0))-INDEX(MarketingTényleges[],MATCH(INDEX(MarketingEltérések[],ROW()-ROW(MarketingEltérések[[#Headers],[Febr.]]),1),INDEX(MarketingTervezett[],,1),0),MATCH(MarketingEltérések[[#Headers],[Febr.]],MarketingTényleges[#Headers],0))","v":{"v":-200,"d":"-200.00 Ft"}},{"$f":"INDEX(MarketingTervezett[],MATCH(INDEX(MarketingEltérések[],ROW()-ROW(MarketingEltérések[[#Headers],[Márc.]]),1),INDEX(MarketingTervezett[],,1),0),MATCH(MarketingEltérések[[#Headers],[Márc.]],MarketingTervezett[#Headers],0))-INDEX(MarketingTényleges[],MATCH(INDEX(MarketingEltérések[],ROW()-ROW(MarketingEltérések[[#Headers],[Márc.]]),1),INDEX(MarketingTervezett[],,1),0),MATCH(MarketingEltérések[[#Headers],[Márc.]],MarketingTényleges[#Headers],0))","v":{"v":-200,"d":"-200.00 Ft"}},{"$f":"INDEX(MarketingTervezett[],MATCH(INDEX(MarketingEltérések[],ROW()-ROW(MarketingEltérések[[#Headers],[Ápr.]]),1),INDEX(MarketingTervezett[],,1),0),MATCH(MarketingEltérések[[#Headers],[Ápr.]],MarketingTervezett[#Headers],0))-INDEX(MarketingTényleges[],MATCH(INDEX(MarketingEltérések[],ROW()-ROW(MarketingEltérések[[#Headers],[Ápr.]]),1),INDEX(MarketingTervezett[],,1),0),MATCH(MarketingEltérések[[#Headers],[Ápr.]],MarketingTényleges[#Headers],0))","v":{"v":300,"d":"300.00 Ft"}},{"$f":"INDEX(MarketingTervezett[],MATCH(INDEX(MarketingEltérések[],ROW()-ROW(MarketingEltérések[[#Headers],[Máj.]]),1),INDEX(MarketingTervezett[],,1),0),MATCH(MarketingEltérések[[#Headers],[Máj.]],MarketingTervezett[#Headers],0))-INDEX(MarketingTényleges[],MATCH(INDEX(MarketingEltérések[],ROW()-ROW(MarketingEltérések[[#Headers],[Máj.]]),1),INDEX(MarketingTervezett[],,1),0),MATCH(MarketingEltérések[[#Headers],[Máj.]],MarketingTényleges[#Headers],0))","v":{"v":500,"d":"500.00 Ft"}},{"$f":"INDEX(MarketingTervezett[],MATCH(INDEX(MarketingEltérések[],ROW()-ROW(MarketingEltérések[[#Headers],[Jún.]]),1),INDEX(MarketingTervezett[],,1),0),MATCH(MarketingEltérések[[#Headers],[Jún.]],MarketingTervezett[#Headers],0))-INDEX(MarketingTényleges[],MATCH(INDEX(MarketingEltérések[],ROW()-ROW(MarketingEltérések[[#Headers],[Jún.]]),1),INDEX(MarketingTervezett[],,1),0),MATCH(MarketingEltérések[[#Headers],[Jún.]],MarketingTényleges[#Headers],0))","v":{"v":-300,"d":"-300.00 Ft"}},{"$f":"INDEX(MarketingTervezett[],MATCH(INDEX(MarketingEltérések[],ROW()-ROW(MarketingEltérések[[#Headers],[Júl.]]),1),INDEX(MarketingTervezett[],,1),0),MATCH(MarketingEltérések[[#Headers],[Júl.]],MarketingTervezett[#Headers],0))-INDEX(MarketingTényleges[],MATCH(INDEX(MarketingEltérések[],ROW()-ROW(MarketingEltérések[[#Headers],[Júl.]]),1),INDEX(MarketingTervezett[],,1),0),MATCH(MarketingEltérések[[#Headers],[Júl.]],MarketingTényleges[#Headers],0))","v":{"v":2000,"d":"2,000.00 Ft"}},{"$f":"INDEX(MarketingTervezett[],MATCH(INDEX(MarketingEltérések[],ROW()-ROW(MarketingEltérések[[#Headers],[Aug.]]),1),INDEX(MarketingTervezett[],,1),0),MATCH(MarketingEltérések[[#Headers],[Aug.]],MarketingTervezett[#Headers],0))-INDEX(MarketingTényleges[],MATCH(INDEX(MarketingEltérések[],ROW()-ROW(MarketingEltérések[[#Headers],[Aug.]]),1),INDEX(MarketingTervezett[],,1),0),MATCH(MarketingEltérések[[#Headers],[Aug.]],MarketingTényleges[#Headers],0))","v":{"v":5000,"d":"5,000.00 Ft"}},{"$f":"INDEX(MarketingTervezett[],MATCH(INDEX(MarketingEltérések[],ROW()-ROW(MarketingEltérések[[#Headers],[Szept.]]),1),INDEX(MarketingTervezett[],,1),0),MATCH(MarketingEltérések[[#Headers],[Szept.]],MarketingTervezett[#Headers],0))-INDEX(MarketingTényleges[],MATCH(INDEX(MarketingEltérések[],ROW()-ROW(MarketingEltérések[[#Headers],[Szept.]]),1),INDEX(MarketingTervezett[],,1),0),MATCH(MarketingEltérések[[#Headers],[Szept.]],MarketingTényleges[#Headers],0))","v":{"v":2000,"d":"2,000.00 Ft"}},{"$f":"INDEX(MarketingTervezett[],MATCH(INDEX(MarketingEltérések[],ROW()-ROW(MarketingEltérések[[#Headers],[Okt.]]),1),INDEX(MarketingTervezett[],,1),0),MATCH(MarketingEltérések[[#Headers],[Okt.]],MarketingTervezett[#Headers],0))-INDEX(MarketingTényleges[],MATCH(INDEX(MarketingEltérések[],ROW()-ROW(MarketingEltérések[[#Headers],[Okt.]]),1),INDEX(MarketingTervezett[],,1),0),MATCH(MarketingEltérések[[#Headers],[Okt.]],MarketingTényleges[#Headers],0))","v":{"v":2000,"d":"2,000.00 Ft"}},{"$f":"INDEX(MarketingTervezett[],MATCH(INDEX(MarketingEltérések[],ROW()-ROW(MarketingEltérések[[#Headers],[Nov.]]),1),INDEX(MarketingTervezett[],,1),0),MATCH(MarketingEltérések[[#Headers],[Nov.]],MarketingTervezett[#Headers],0))-INDEX(MarketingTényleges[],MATCH(INDEX(MarketingEltérések[],ROW()-ROW(MarketingEltérések[[#Headers],[Nov.]]),1),INDEX(MarketingTervezett[],,1),0),MATCH(MarketingEltérések[[#Headers],[Nov.]],MarketingTényleges[#Headers],0))","v":{"v":2000,"d":"2,000.00 Ft"}},{"$f":"INDEX(MarketingTervezett[],MATCH(INDEX(MarketingEltérések[],ROW()-ROW(MarketingEltérések[[#Headers],[Dec.]]),1),INDEX(MarketingTervezett[],,1),0),MATCH(MarketingEltérések[[#Headers],[Dec.]],MarketingTervezett[#Headers],0))-INDEX(MarketingTényleges[],MATCH(INDEX(MarketingEltérések[],ROW()-ROW(MarketingEltérések[[#Headers],[Dec.]]),1),INDEX(MarketingTervezett[],,1),0),MATCH(MarketingEltérések[[#Headers],[Dec.]],MarketingTényleges[#Headers],0))","v":{"v":5000,"d":"5,000.00 Ft"}},{"$f":"SUM(MarketingEltérések[[#This Row],[Jan.]:[Dec.]])","v":{"v":18300,"d":"18,300.00 Ft"}}]
[null,"Vegyes költségek",{"$f":"INDEX(MarketingTervezett[],MATCH(INDEX(MarketingEltérések[],ROW()-ROW(MarketingEltérések[[#Headers],[Jan.]]),1),INDEX(MarketingTervezett[],,1),0),MATCH(MarketingEltérések[[#Headers],[Jan.]],MarketingTervezett[#Headers],0))-INDEX(MarketingTényleges[],MATCH(INDEX(MarketingEltérések[],ROW()-ROW(MarketingEltérések[[#Headers],[Jan.]]),1),INDEX(MarketingTervezett[],,1),0),MATCH(MarketingEltérések[[#Headers],[Jan.]],MarketingTényleges[#Headers],0))","v":{"v":55,"d":"55.00 Ft"}},{"$f":"INDEX(MarketingTervezett[],MATCH(INDEX(MarketingEltérések[],ROW()-ROW(MarketingEltérések[[#Headers],[Febr.]]),1),INDEX(MarketingTervezett[],,1),0),MATCH(MarketingEltérések[[#Headers],[Febr.]],MarketingTervezett[#Headers],0))-INDEX(MarketingTényleges[],MATCH(INDEX(MarketingEltérések[],ROW()-ROW(MarketingEltérések[[#Headers],[Febr.]]),1),INDEX(MarketingTervezett[],,1),0),MATCH(MarketingEltérések[[#Headers],[Febr.]],MarketingTényleges[#Headers],0))","v":{"v":44,"d":"44.00 Ft"}},{"$f":"INDEX(MarketingTervezett[],MATCH(INDEX(MarketingEltérések[],ROW()-ROW(MarketingEltérések[[#Headers],[Márc.]]),1),INDEX(MarketingTervezett[],,1),0),MATCH(MarketingEltérések[[#Headers],[Márc.]],MarketingTervezett[#Headers],0))-INDEX(MarketingTényleges[],MATCH(INDEX(MarketingEltérések[],ROW()-ROW(MarketingEltérések[[#Headers],[Márc.]]),1),INDEX(MarketingTervezett[],,1),0),MATCH(MarketingEltérések[[#Headers],[Márc.]],MarketingTényleges[#Headers],0))","v":{"v":77,"d":"77.00 Ft"}},{"$f":"INDEX(MarketingTervezett[],MATCH(INDEX(MarketingEltérések[],ROW()-ROW(MarketingEltérések[[#Headers],[Ápr.]]),1),INDEX(MarketingTervezett[],,1),0),MATCH(MarketingEltérések[[#Headers],[Ápr.]],MarketingTervezett[#Headers],0))-INDEX(MarketingTényleges[],MATCH(INDEX(MarketingEltérések[],ROW()-ROW(MarketingEltérések[[#Headers],[Ápr.]]),1),INDEX(MarketingTervezett[],,1),0),MATCH(MarketingEltérések[[#Headers],[Ápr.]],MarketingTényleges[#Headers],0))","v":{"v":-23,"d":"-23.00 Ft"}},{"$f":"INDEX(MarketingTervezett[],MATCH(INDEX(MarketingEltérések[],ROW()-ROW(MarketingEltérések[[#Headers],[Máj.]]),1),INDEX(MarketingTervezett[],,1),0),MATCH(MarketingEltérések[[#Headers],[Máj.]],MarketingTervezett[#Headers],0))-INDEX(MarketingTényleges[],MATCH(INDEX(MarketingEltérések[],ROW()-ROW(MarketingEltérések[[#Headers],[Máj.]]),1),INDEX(MarketingTervezett[],,1),0),MATCH(MarketingEltérések[[#Headers],[Máj.]],MarketingTényleges[#Headers],0))","v":{"v":13,"d":"13.00 Ft"}},{"$f":"INDEX(MarketingTervezett[],MATCH(INDEX(MarketingEltérések[],ROW()-ROW(MarketingEltérések[[#Headers],[Jún.]]),1),INDEX(MarketingTervezett[],,1),0),MATCH(MarketingEltérések[[#Headers],[Jún.]],MarketingTervezett[#Headers],0))-INDEX(MarketingTényleges[],MATCH(INDEX(MarketingEltérések[],ROW()-ROW(MarketingEltérések[[#Headers],[Jún.]]),1),INDEX(MarketingTervezett[],,1),0),MATCH(MarketingEltérések[[#Headers],[Jún.]],MarketingTényleges[#Headers],0))","v":{"v":-45,"d":"-45.00 Ft"}},{"$f":"INDEX(MarketingTervezett[],MATCH(INDEX(MarketingEltérések[],ROW()-ROW(MarketingEltérések[[#Headers],[Júl.]]),1),INDEX(MarketingTervezett[],,1),0),MATCH(MarketingEltérések[[#Headers],[Júl.]],MarketingTervezett[#Headers],0))-INDEX(MarketingTényleges[],MATCH(INDEX(MarketingEltérések[],ROW()-ROW(MarketingEltérések[[#Headers],[Júl.]]),1),INDEX(MarketingTervezett[],,1),0),MATCH(MarketingEltérések[[#Headers],[Júl.]],MarketingTényleges[#Headers],0))","v":{"v":200,"d":"200.00 Ft"}},{"$f":"INDEX(MarketingTervezett[],MATCH(INDEX(MarketingEltérések[],ROW()-ROW(MarketingEltérések[[#Headers],[Aug.]]),1),INDEX(MarketingTervezett[],,1),0),MATCH(MarketingEltérések[[#Headers],[Aug.]],MarketingTervezett[#Headers],0))-INDEX(MarketingTényleges[],MATCH(INDEX(MarketingEltérések[],ROW()-ROW(MarketingEltérések[[#Headers],[Aug.]]),1),INDEX(MarketingTervezett[],,1),0),MATCH(MarketingEltérések[[#Headers],[Aug.]],MarketingTényleges[#Headers],0))","v":{"v":200,"d":"200.00 Ft"}},{"$f":"INDEX(MarketingTervezett[],MATCH(INDEX(MarketingEltérések[],ROW()-ROW(MarketingEltérések[[#Headers],[Szept.]]),1),INDEX(MarketingTervezett[],,1),0),MATCH(MarketingEltérések[[#Headers],[Szept.]],MarketingTervezett[#Headers],0))-INDEX(MarketingTényleges[],MATCH(INDEX(MarketingEltérések[],ROW()-ROW(MarketingEltérések[[#Headers],[Szept.]]),1),INDEX(MarketingTervezett[],,1),0),MATCH(MarketingEltérések[[#Headers],[Szept.]],MarketingTényleges[#Headers],0))","v":{"v":200,"d":"200.00 Ft"}},{"$f":"INDEX(MarketingTervezett[],MATCH(INDEX(MarketingEltérések[],ROW()-ROW(MarketingEltérések[[#Headers],[Okt.]]),1),INDEX(MarketingTervezett[],,1),0),MATCH(MarketingEltérések[[#Headers],[Okt.]],MarketingTervezett[#Headers],0))-INDEX(MarketingTényleges[],MATCH(INDEX(MarketingEltérések[],ROW()-ROW(MarketingEltérések[[#Headers],[Okt.]]),1),INDEX(MarketingTervezett[],,1),0),MATCH(MarketingEltérések[[#Headers],[Okt.]],MarketingTényleges[#Headers],0))","v":{"v":200,"d":"200.00 Ft"}},{"$f":"INDEX(MarketingTervezett[],MATCH(INDEX(MarketingEltérések[],ROW()-ROW(MarketingEltérések[[#Headers],[Nov.]]),1),INDEX(MarketingTervezett[],,1),0),MATCH(MarketingEltérések[[#Headers],[Nov.]],MarketingTervezett[#Headers],0))-INDEX(MarketingTényleges[],MATCH(INDEX(MarketingEltérések[],ROW()-ROW(MarketingEltérések[[#Headers],[Nov.]]),1),INDEX(MarketingTervezett[],,1),0),MATCH(MarketingEltérések[[#Headers],[Nov.]],MarketingTényleges[#Headers],0))","v":{"v":200,"d":"200.00 Ft"}},{"$f":"INDEX(MarketingTervezett[],MATCH(INDEX(MarketingEltérések[],ROW()-ROW(MarketingEltérések[[#Headers],[Dec.]]),1),INDEX(MarketingTervezett[],,1),0),MATCH(MarketingEltérések[[#Headers],[Dec.]],MarketingTervezett[#Headers],0))-INDEX(MarketingTényleges[],MATCH(INDEX(MarketingEltérések[],ROW()-ROW(MarketingEltérések[[#Headers],[Dec.]]),1),INDEX(MarketingTervezett[],,1),0),MATCH(MarketingEltérések[[#Headers],[Dec.]],MarketingTényleges[#Headers],0))","v":{"v":200,"d":"200.00 Ft"}},{"$f":"SUM(MarketingEltérések[[#This Row],[Jan.]:[Dec.]])","v":{"v":1321,"d":"1,321.00 Ft"}}]
[null,"Részösszeg",{"$f":"SUBTOTAL(109,MarketingEltérések[Jan.])","v":{"v":555,"d":"555.00 Ft"}},{"$f":"SUBTOTAL(109,MarketingEltérések[Febr.])","v":{"v":-456,"d":"-456.00 Ft"}},{"$f":"SUBTOTAL(109,MarketingEltérések[Márc.])","v":{"v":-23,"d":"-23.00 Ft"}},{"$f":"SUBTOTAL(109,MarketingEltérések[Ápr.])","v":{"v":-123,"d":"-123.00 Ft"}},{"$f":"SUBTOTAL(109,MarketingEltérések[Máj.])","v":{"v":113,"d":"113.00 Ft"}},{"$f":"SUBTOTAL(109,MarketingEltérések[Jún.])","v":{"v":-825,"d":"-825.00 Ft"}},{"$f":"SUBTOTAL(109,MarketingEltérések[Júl.])","v":{"v":8100,"d":"8,100.00 Ft"}},{"$f":"SUBTOTAL(109,MarketingEltérések[Aug.])","v":{"v":6100,"d":"6,100.00 Ft"}},{"$f":"SUBTOTAL(109,MarketingEltérések[Szept.])","v":{"v":3100,"d":"3,100.00 Ft"}},{"$f":"SUBTOTAL(109,MarketingEltérések[Okt.])","v":{"v":8100,"d":"8,100.00 Ft"}},{"$f":"SUBTOTAL(109,MarketingEltérések[Nov.])","v":{"v":3100,"d":"3,100.00 Ft"}},{"$f":"SUBTOTAL(109,MarketingEltérések[Dec.])","v":{"v":6900,"d":"6,900.00 Ft"}},{"$f":"SUBTOTAL(109,MarketingEltérések[ÉV])","v":{"v":34641,"d":"34,641.00 Ft"}}]
[]
["A jobbra lévő cellában kezdődő Képzési és utazási eltérések táblázatban a sablon automatikusan kiszámítja a képzési és utazási költségek eltérését. A következő utasítás az A35 cellában található.","Képzés/utazás","Jan.","Febr.","Márc.","Ápr.","Máj.","Jún.","Júl.","Aug.","Szept.","Okt.","Nov.","Dec.","ÉV"]
[null,"Tanfolyamok",{"$f":"INDEX(KépzésiÉsUtazásiTervezett[],MATCH(INDEX(KépzésiÉsOktatásiEltérések[],ROW()-ROW(KépzésiÉsOktatásiEltérések[[#Headers],[Jan.]]),1),INDEX(KépzésiÉsUtazásiTervezett[],,1),0),MATCH(KépzésiÉsOktatásiEltérések[[#Headers],[Jan.]],KépzésiÉsUtazásiTervezett[#Headers],0))-INDEX(KépzésiÉsUtazásiTényleges[],MATCH(INDEX(KépzésiÉsOktatásiEltérések[],ROW()-ROW(KépzésiÉsOktatásiEltérések[[#Headers],[Jan.]]),1),INDEX(KépzésiÉsUtazásiTervezett[],,1),0),MATCH(KépzésiÉsOktatásiEltérések[[#Headers],[Jan.]],KépzésiÉsUtazásiTényleges[#Headers],0))","v":{"v":400,"d":"400.00 Ft"}},{"$f":"INDEX(KépzésiÉsUtazásiTervezett[],MATCH(INDEX(KépzésiÉsOktatásiEltérések[],ROW()-ROW(KépzésiÉsOktatásiEltérések[[#Headers],[Febr.]]),1),INDEX(KépzésiÉsUtazásiTervezett[],,1),0),MATCH(KépzésiÉsOktatásiEltérések[[#Headers],[Febr.]],KépzésiÉsUtazásiTervezett[#Headers],0))-INDEX(KépzésiÉsUtazásiTényleges[],MATCH(INDEX(KépzésiÉsOktatásiEltérések[],ROW()-ROW(KépzésiÉsOktatásiEltérések[[#Headers],[Febr.]]),1),INDEX(KépzésiÉsUtazásiTervezett[],,1),0),MATCH(KépzésiÉsOktatásiEltérések[[#Headers],[Febr.]],KépzésiÉsUtazásiTényleges[#Headers],0))","v":{"v":-400,"d":"-400.00 Ft"}},{"$f":"INDEX(KépzésiÉsUtazásiTervezett[],MATCH(INDEX(KépzésiÉsOktatásiEltérések[],ROW()-ROW(KépzésiÉsOktatásiEltérések[[#Headers],[Márc.]]),1),INDEX(KépzésiÉsUtazásiTervezett[],,1),0),MATCH(KépzésiÉsOktatásiEltérések[[#Headers],[Márc.]],KépzésiÉsUtazásiTervezett[#Headers],0))-INDEX(KépzésiÉsUtazásiTényleges[],MATCH(INDEX(KépzésiÉsOktatásiEltérések[],ROW()-ROW(KépzésiÉsOktatásiEltérések[[#Headers],[Márc.]]),1),INDEX(KépzésiÉsUtazásiTervezett[],,1),0),MATCH(KépzésiÉsOktatásiEltérések[[#Headers],[Márc.]],KépzésiÉsUtazásiTényleges[#Headers],0))","v":{"v":600,"d":"600.00 Ft"}},{"$f":"INDEX(KépzésiÉsUtazásiTervezett[],MATCH(INDEX(KépzésiÉsOktatásiEltérések[],ROW()-ROW(KépzésiÉsOktatásiEltérések[[#Headers],[Ápr.]]),1),INDEX(KépzésiÉsUtazásiTervezett[],,1),0),MATCH(KépzésiÉsOktatásiEltérések[[#Headers],[Ápr.]],KépzésiÉsUtazásiTervezett[#Headers],0))-INDEX(KépzésiÉsUtazásiTényleges[],MATCH(INDEX(KépzésiÉsOktatásiEltérések[],ROW()-ROW(KépzésiÉsOktatásiEltérések[[#Headers],[Ápr.]]),1),INDEX(KépzésiÉsUtazásiTervezett[],,1),0),MATCH(KépzésiÉsOktatásiEltérések[[#Headers],[Ápr.]],KépzésiÉsUtazásiTényleges[#Headers],0))","v":{"v":400,"d":"400.00 Ft"}},{"$f":"INDEX(KépzésiÉsUtazásiTervezett[],MATCH(INDEX(KépzésiÉsOktatásiEltérések[],ROW()-ROW(KépzésiÉsOktatásiEltérések[[#Headers],[Máj.]]),1),INDEX(KépzésiÉsUtazásiTervezett[],,1),0),MATCH(KépzésiÉsOktatásiEltérések[[#Headers],[Máj.]],KépzésiÉsUtazásiTervezett[#Headers],0))-INDEX(KépzésiÉsUtazásiTényleges[],MATCH(INDEX(KépzésiÉsOktatásiEltérések[],ROW()-ROW(KépzésiÉsOktatásiEltérések[[#Headers],[Máj.]]),1),INDEX(KépzésiÉsUtazásiTervezett[],,1),0),MATCH(KépzésiÉsOktatásiEltérések[[#Headers],[Máj.]],KépzésiÉsUtazásiTényleges[#Headers],0))","v":{"v":800,"d":"800.00 Ft"}},{"$f":"INDEX(KépzésiÉsUtazásiTervezett[],MATCH(INDEX(KépzésiÉsOktatásiEltérések[],ROW()-ROW(KépzésiÉsOktatásiEltérések[[#Headers],[Jún.]]),1),INDEX(KépzésiÉsUtazásiTervezett[],,1),0),MATCH(KépzésiÉsOktatásiEltérések[[#Headers],[Jún.]],KépzésiÉsUtazásiTervezett[#Headers],0))-INDEX(KépzésiÉsUtazásiTényleges[],MATCH(INDEX(KépzésiÉsOktatásiEltérések[],ROW()-ROW(KépzésiÉsOktatásiEltérések[[#Headers],[Jún.]]),1),INDEX(KépzésiÉsUtazásiTervezett[],,1),0),MATCH(KépzésiÉsOktatásiEltérések[[#Headers],[Jún.]],KépzésiÉsUtazásiTényleges[#Headers],0))","v":{"v":-800,"d":"-800.00 Ft"}},{"$f":"INDEX(KépzésiÉsUtazásiTervezett[],MATCH(INDEX(KépzésiÉsOktatásiEltérések[],ROW()-ROW(KépzésiÉsOktatásiEltérések[[#Headers],[Júl.]]),1),INDEX(KépzésiÉsUtazásiTervezett[],,1),0),MATCH(KépzésiÉsOktatásiEltérések[[#Headers],[Júl.]],KépzésiÉsUtazásiTervezett[#Headers],0))-INDEX(KépzésiÉsUtazásiTényleges[],MATCH(INDEX(KépzésiÉsOktatásiEltérések[],ROW()-ROW(KépzésiÉsOktatásiEltérések[[#Headers],[Júl.]]),1),INDEX(KépzésiÉsUtazásiTervezett[],,1),0),MATCH(KépzésiÉsOktatásiEltérések[[#Headers],[Júl.]],KépzésiÉsUtazásiTényleges[#Headers],0))","v":{"v":2000,"d":"2,000.00 Ft"}},{"$f":"INDEX(KépzésiÉsUtazásiTervezett[],MATCH(INDEX(KépzésiÉsOktatásiEltérések[],ROW()-ROW(KépzésiÉsOktatásiEltérések[[#Headers],[Aug.]]),1),INDEX(KépzésiÉsUtazásiTervezett[],,1),0),MATCH(KépzésiÉsOktatásiEltérések[[#Headers],[Aug.]],KépzésiÉsUtazásiTervezett[#Headers],0))-INDEX(KépzésiÉsUtazásiTényleges[],MATCH(INDEX(KépzésiÉsOktatásiEltérések[],ROW()-ROW(KépzésiÉsOktatásiEltérések[[#Headers],[Aug.]]),1),INDEX(KépzésiÉsUtazásiTervezett[],,1),0),MATCH(KépzésiÉsOktatásiEltérések[[#Headers],[Aug.]],KépzésiÉsUtazásiTényleges[#Headers],0))","v":{"v":2000,"d":"2,000.00 Ft"}},{"$f":"INDEX(KépzésiÉsUtazásiTervezett[],MATCH(INDEX(KépzésiÉsOktatásiEltérések[],ROW()-ROW(KépzésiÉsOktatásiEltérések[[#Headers],[Szept.]]),1),INDEX(KépzésiÉsUtazásiTervezett[],,1),0),MATCH(KépzésiÉsOktatásiEltérések[[#Headers],[Szept.]],KépzésiÉsUtazásiTervezett[#Headers],0))-INDEX(KépzésiÉsUtazásiTényleges[],MATCH(INDEX(KépzésiÉsOktatásiEltérések[],ROW()-ROW(KépzésiÉsOktatásiEltérések[[#Headers],[Szept.]]),1),INDEX(KépzésiÉsUtazásiTervezett[],,1),0),MATCH(KépzésiÉsOktatásiEltérések[[#Headers],[Szept.]],KépzésiÉsUtazásiTényleges[#Headers],0))","v":{"v":2000,"d":"2,000.00 Ft"}},{"$f":"INDEX(KépzésiÉsUtazásiTervezett[],MATCH(INDEX(KépzésiÉsOktatásiEltérések[],ROW()-ROW(KépzésiÉsOktatásiEltérések[[#Headers],[Okt.]]),1),INDEX(KépzésiÉsUtazásiTervezett[],,1),0),MATCH(KépzésiÉsOktatásiEltérések[[#Headers],[Okt.]],KépzésiÉsUtazásiTervezett[#Headers],0))-INDEX(KépzésiÉsUtazásiTényleges[],MATCH(INDEX(KépzésiÉsOktatásiEltérések[],ROW()-ROW(KépzésiÉsOktatásiEltérések[[#Headers],[Okt.]]),1),INDEX(KépzésiÉsUtazásiTervezett[],,1),0),MATCH(KépzésiÉsOktatásiEltérések[[#Headers],[Okt.]],KépzésiÉsUtazásiTényleges[#Headers],0))","v":{"v":2000,"d":"2,000.00 Ft"}},{"$f":"INDEX(KépzésiÉsUtazásiTervezett[],MATCH(INDEX(KépzésiÉsOktatásiEltérések[],ROW()-ROW(KépzésiÉsOktatásiEltérések[[#Headers],[Nov.]]),1),INDEX(KépzésiÉsUtazásiTervezett[],,1),0),MATCH(KépzésiÉsOktatásiEltérések[[#Headers],[Nov.]],KépzésiÉsUtazásiTervezett[#Headers],0))-INDEX(KépzésiÉsUtazásiTényleges[],MATCH(INDEX(KépzésiÉsOktatásiEltérések[],ROW()-ROW(KépzésiÉsOktatásiEltérések[[#Headers],[Nov.]]),1),INDEX(KépzésiÉsUtazásiTervezett[],,1),0),MATCH(KépzésiÉsOktatásiEltérések[[#Headers],[Nov.]],KépzésiÉsUtazásiTényleges[#Headers],0))","v":{"v":2000,"d":"2,000.00 Ft"}},{"$f":"INDEX(KépzésiÉsUtazásiTervezett[],MATCH(INDEX(KépzésiÉsOktatásiEltérések[],ROW()-ROW(KépzésiÉsOktatásiEltérések[[#Headers],[Dec.]]),1),INDEX(KépzésiÉsUtazásiTervezett[],,1),0),MATCH(KépzésiÉsOktatásiEltérések[[#Headers],[Dec.]],KépzésiÉsUtazásiTervezett[#Headers],0))-INDEX(KépzésiÉsUtazásiTényleges[],MATCH(INDEX(KépzésiÉsOktatásiEltérések[],ROW()-ROW(KépzésiÉsOktatásiEltérések[[#Headers],[Dec.]]),1),INDEX(KépzésiÉsUtazásiTervezett[],,1),0),MATCH(KépzésiÉsOktatásiEltérések[[#Headers],[Dec.]],KépzésiÉsUtazásiTényleges[#Headers],0))","v":{"v":2000,"d":"2,000.00 Ft"}},{"$f":"SUM(KépzésiÉsOktatásiEltérések[[#This Row],[Jan.]:[Dec.]])","v":{"v":13000,"d":"13,000.00 Ft"}}]
[null,"Képzéshez kapcsolódó utazási költségek",{"$f":"INDEX(KépzésiÉsUtazásiTervezett[],MATCH(INDEX(KépzésiÉsOktatásiEltérések[],ROW()-ROW(KépzésiÉsOktatásiEltérések[[#Headers],[Jan.]]),1),INDEX(KépzésiÉsUtazásiTervezett[],,1),0),MATCH(KépzésiÉsOktatásiEltérések[[#Headers],[Jan.]],KépzésiÉsUtazásiTervezett[#Headers],0))-INDEX(KépzésiÉsUtazásiTényleges[],MATCH(INDEX(KépzésiÉsOktatásiEltérések[],ROW()-ROW(KépzésiÉsOktatásiEltérések[[#Headers],[Jan.]]),1),INDEX(KépzésiÉsUtazásiTervezett[],,1),0),MATCH(KépzésiÉsOktatásiEltérések[[#Headers],[Jan.]],KépzésiÉsUtazásiTényleges[#Headers],0))","v":{"v":800,"d":"800.00 Ft"}},{"$f":"INDEX(KépzésiÉsUtazásiTervezett[],MATCH(INDEX(KépzésiÉsOktatásiEltérések[],ROW()-ROW(KépzésiÉsOktatásiEltérések[[#Headers],[Febr.]]),1),INDEX(KépzésiÉsUtazásiTervezett[],,1),0),MATCH(KépzésiÉsOktatásiEltérések[[#Headers],[Febr.]],KépzésiÉsUtazásiTervezett[#Headers],0))-INDEX(KépzésiÉsUtazásiTényleges[],MATCH(INDEX(KépzésiÉsOktatásiEltérések[],ROW()-ROW(KépzésiÉsOktatásiEltérések[[#Headers],[Febr.]]),1),INDEX(KépzésiÉsUtazásiTervezett[],,1),0),MATCH(KépzésiÉsOktatásiEltérések[[#Headers],[Febr.]],KépzésiÉsUtazásiTényleges[#Headers],0))","v":{"v":-200,"d":"-200.00 Ft"}},{"$f":"INDEX(KépzésiÉsUtazásiTervezett[],MATCH(INDEX(KépzésiÉsOktatásiEltérések[],ROW()-ROW(KépzésiÉsOktatásiEltérések[[#Headers],[Márc.]]),1),INDEX(KépzésiÉsUtazásiTervezett[],,1),0),MATCH(KépzésiÉsOktatásiEltérések[[#Headers],[Márc.]],KépzésiÉsUtazásiTervezett[#Headers],0))-INDEX(KépzésiÉsUtazásiTényleges[],MATCH(INDEX(KépzésiÉsOktatásiEltérések[],ROW()-ROW(KépzésiÉsOktatásiEltérések[[#Headers],[Márc.]]),1),INDEX(KépzésiÉsUtazásiTervezett[],,1),0),MATCH(KépzésiÉsOktatásiEltérések[[#Headers],[Márc.]],KépzésiÉsUtazásiTényleges[#Headers],0))","v":{"v":600,"d":"600.00 Ft"}},{"$f":"INDEX(KépzésiÉsUtazásiTervezett[],MATCH(INDEX(KépzésiÉsOktatásiEltérések[],ROW()-ROW(KépzésiÉsOktatásiEltérések[[#Headers],[Ápr.]]),1),INDEX(KépzésiÉsUtazásiTervezett[],,1),0),MATCH(KépzésiÉsOktatásiEltérések[[#Headers],[Ápr.]],KépzésiÉsUtazásiTervezett[#Headers],0))-INDEX(KépzésiÉsUtazásiTényleges[],MATCH(INDEX(KépzésiÉsOktatásiEltérések[],ROW()-ROW(KépzésiÉsOktatásiEltérések[[#Headers],[Ápr.]]),1),INDEX(KépzésiÉsUtazásiTervezett[],,1),0),MATCH(KépzésiÉsOktatásiEltérések[[#Headers],[Ápr.]],KépzésiÉsUtazásiTényleges[#Headers],0))","v":{"v":800,"d":"800.00 Ft"}},{"$f":"INDEX(KépzésiÉsUtazásiTervezett[],MATCH(INDEX(KépzésiÉsOktatásiEltérések[],ROW()-ROW(KépzésiÉsOktatásiEltérések[[#Headers],[Máj.]]),1),INDEX(KépzésiÉsUtazásiTervezett[],,1),0),MATCH(KépzésiÉsOktatásiEltérések[[#Headers],[Máj.]],KépzésiÉsUtazásiTervezett[#Headers],0))-INDEX(KépzésiÉsUtazásiTényleges[],MATCH(INDEX(KépzésiÉsOktatásiEltérések[],ROW()-ROW(KépzésiÉsOktatásiEltérések[[#Headers],[Máj.]]),1),INDEX(KépzésiÉsUtazásiTervezett[],,1),0),MATCH(KépzésiÉsOktatásiEltérések[[#Headers],[Máj.]],KépzésiÉsUtazásiTényleges[#Headers],0))","v":{"v":1200,"d":"1,200.00 Ft"}},{"$f":"INDEX(KépzésiÉsUtazásiTervezett[],MATCH(INDEX(KépzésiÉsOktatásiEltérések[],ROW()-ROW(KépzésiÉsOktatásiEltérések[[#Headers],[Jún.]]),1),INDEX(KépzésiÉsUtazásiTervezett[],,1),0),MATCH(KépzésiÉsOktatásiEltérések[[#Headers],[Jún.]],KépzésiÉsUtazásiTervezett[#Headers],0))-INDEX(KépzésiÉsUtazásiTényleges[],MATCH(INDEX(KépzésiÉsOktatásiEltérések[],ROW()-ROW(KépzésiÉsOktatásiEltérések[[#Headers],[Jún.]]),1),INDEX(KépzésiÉsUtazásiTervezett[],,1),0),MATCH(KépzésiÉsOktatásiEltérések[[#Headers],[Jún.]],KépzésiÉsUtazásiTényleges[#Headers],0))","v":{"v":-1500,"d":"-1,500.00 Ft"}},{"$f":"INDEX(KépzésiÉsUtazásiTervezett[],MATCH(INDEX(KépzésiÉsOktatásiEltérések[],ROW()-ROW(KépzésiÉsOktatásiEltérések[[#Headers],[Júl.]]),1),INDEX(KépzésiÉsUtazásiTervezett[],,1),0),MATCH(KépzésiÉsOktatásiEltérések[[#Headers],[Júl.]],KépzésiÉsUtazásiTervezett[#Headers],0))-INDEX(KépzésiÉsUtazásiTényleges[],MATCH(INDEX(KépzésiÉsOktatásiEltérések[],ROW()-ROW(KépzésiÉsOktatásiEltérések[[#Headers],[Júl.]]),1),INDEX(KépzésiÉsUtazásiTervezett[],,1),0),MATCH(KépzésiÉsOktatásiEltérések[[#Headers],[Júl.]],KépzésiÉsUtazásiTényleges[#Headers],0))","v":{"v":2000,"d":"2,000.00 Ft"}},{"$f":"INDEX(KépzésiÉsUtazásiTervezett[],MATCH(INDEX(KépzésiÉsOktatásiEltérések[],ROW()-ROW(KépzésiÉsOktatásiEltérések[[#Headers],[Aug.]]),1),INDEX(KépzésiÉsUtazásiTervezett[],,1),0),MATCH(KépzésiÉsOktatásiEltérések[[#Headers],[Aug.]],KépzésiÉsUtazásiTervezett[#Headers],0))-INDEX(KépzésiÉsUtazásiTényleges[],MATCH(INDEX(KépzésiÉsOktatásiEltérések[],ROW()-ROW(KépzésiÉsOktatásiEltérések[[#Headers],[Aug.]]),1),INDEX(KépzésiÉsUtazásiTervezett[],,1),0),MATCH(KépzésiÉsOktatásiEltérések[[#Headers],[Aug.]],KépzésiÉsUtazásiTényleges[#Headers],0))","v":{"v":2000,"d":"2,000.00 Ft"}},{"$f":"INDEX(KépzésiÉsUtazásiTervezett[],MATCH(INDEX(KépzésiÉsOktatásiEltérések[],ROW()-ROW(KépzésiÉsOktatásiEltérések[[#Headers],[Szept.]]),1),INDEX(KépzésiÉsUtazásiTervezett[],,1),0),MATCH(KépzésiÉsOktatásiEltérések[[#Headers],[Szept.]],KépzésiÉsUtazásiTervezett[#Headers],0))-INDEX(KépzésiÉsUtazásiTényleges[],MATCH(INDEX(KépzésiÉsOktatásiEltérések[],ROW()-ROW(KépzésiÉsOktatásiEltérések[[#Headers],[Szept.]]),1),INDEX(KépzésiÉsUtazásiTervezett[],,1),0),MATCH(KépzésiÉsOktatásiEltérések[[#Headers],[Szept.]],KépzésiÉsUtazásiTényleges[#Headers],0))","v":{"v":2000,"d":"2,000.00 Ft"}},{"$f":"INDEX(KépzésiÉsUtazásiTervezett[],MATCH(INDEX(KépzésiÉsOktatásiEltérések[],ROW()-ROW(KépzésiÉsOktatásiEltérések[[#Headers],[Okt.]]),1),INDEX(KépzésiÉsUtazásiTervezett[],,1),0),MATCH(KépzésiÉsOktatásiEltérések[[#Headers],[Okt.]],KépzésiÉsUtazásiTervezett[#Headers],0))-INDEX(KépzésiÉsUtazásiTényleges[],MATCH(INDEX(KépzésiÉsOktatásiEltérések[],ROW()-ROW(KépzésiÉsOktatásiEltérések[[#Headers],[Okt.]]),1),INDEX(KépzésiÉsUtazásiTervezett[],,1),0),MATCH(KépzésiÉsOktatásiEltérések[[#Headers],[Okt.]],KépzésiÉsUtazásiTényleges[#Headers],0))","v":{"v":2000,"d":"2,000.00 Ft"}},{"$f":"INDEX(KépzésiÉsUtazásiTervezett[],MATCH(INDEX(KépzésiÉsOktatásiEltérések[],ROW()-ROW(KépzésiÉsOktatásiEltérések[[#Headers],[Nov.]]),1),INDEX(KépzésiÉsUtazásiTervezett[],,1),0),MATCH(KépzésiÉsOktatásiEltérések[[#Headers],[Nov.]],KépzésiÉsUtazásiTervezett[#Headers],0))-INDEX(KépzésiÉsUtazásiTényleges[],MATCH(INDEX(KépzésiÉsOktatásiEltérések[],ROW()-ROW(KépzésiÉsOktatásiEltérések[[#Headers],[Nov.]]),1),INDEX(KépzésiÉsUtazásiTervezett[],,1),0),MATCH(KépzésiÉsOktatásiEltérések[[#Headers],[Nov.]],KépzésiÉsUtazásiTényleges[#Headers],0))","v":{"v":2000,"d":"2,000.00 Ft"}},{"$f":"INDEX(KépzésiÉsUtazásiTervezett[],MATCH(INDEX(KépzésiÉsOktatásiEltérések[],ROW()-ROW(KépzésiÉsOktatásiEltérések[[#Headers],[Dec.]]),1),INDEX(KépzésiÉsUtazásiTervezett[],,1),0),MATCH(KépzésiÉsOktatásiEltérések[[#Headers],[Dec.]],KépzésiÉsUtazásiTervezett[#Headers],0))-INDEX(KépzésiÉsUtazásiTényleges[],MATCH(INDEX(KépzésiÉsOktatásiEltérések[],ROW()-ROW(KépzésiÉsOktatásiEltérések[[#Headers],[Dec.]]),1),INDEX(KépzésiÉsUtazásiTervezett[],,1),0),MATCH(KépzésiÉsOktatásiEltérések[[#Headers],[Dec.]],KépzésiÉsUtazásiTényleges[#Headers],0))","v":{"v":2000,"d":"2,000.00 Ft"}},{"$f":"SUM(KépzésiÉsOktatásiEltérések[[#This Row],[Jan.]:[Dec.]])","v":{"v":13700,"d":"13,700.00 Ft"}}]
[null,"Részösszeg",{"$f":"SUBTOTAL(109,KépzésiÉsOktatásiEltérések[Jan.])","v":{"v":1200,"d":"1,200.00 Ft"}},{"$f":"SUBTOTAL(109,KépzésiÉsOktatásiEltérések[Febr.])","v":{"v":-600,"d":"-600.00 Ft"}},{"$f":"SUBTOTAL(109,KépzésiÉsOktatásiEltérések[Márc.])","v":{"v":1200,"d":"1,200.00 Ft"}},{"$f":"SUBTOTAL(109,KépzésiÉsOktatásiEltérések[Ápr.])","v":{"v":1200,"d":"1,200.00 Ft"}},{"$f":"SUBTOTAL(109,KépzésiÉsOktatásiEltérések[Máj.])","v":{"v":2000,"d":"2,000.00 Ft"}},{"$f":"SUBTOTAL(109,KépzésiÉsOktatásiEltérések[Jún.])","v":{"v":-2300,"d":"-2,300.00 Ft"}},{"$f":"SUBTOTAL(109,KépzésiÉsOktatásiEltérések[Júl.])","v":{"v":4000,"d":"4,000.00 Ft"}},{"$f":"SUBTOTAL(109,KépzésiÉsOktatásiEltérések[Aug.])","v":{"v":4000,"d":"4,000.00 Ft"}},{"$f":"SUBTOTAL(109,KépzésiÉsOktatásiEltérések[Szept.])","v":{"v":4000,"d":"4,000.00 Ft"}},{"$f":"SUBTOTAL(109,KépzésiÉsOktatásiEltérések[Okt.])","v":{"v":4000,"d":"4,000.00 Ft"}},{"$f":"SUBTOTAL(109,KépzésiÉsOktatásiEltérések[Nov.])","v":{"v":4000,"d":"4,000.00 Ft"}},{"$f":"SUBTOTAL(109,KépzésiÉsOktatásiEltérések[Dec.])","v":{"v":4000,"d":"4,000.00 Ft"}},{"$f":"SUBTOTAL(109,KépzésiÉsOktatásiEltérések[ÉV])","v":{"v":26700,"d":"26,700.00 Ft"}}]
[]
["A jobbra lévő cellában költségek eltérései összes eltérés táblázatban a sablon automatikusan összesíti a költségeltéréseket.","ÖSSZESEN","Jan.","Febr.","Márc.","Ápr.","Máj.","Jún.","Júl.","Aug.","Szept.","Okt.","Nov.","Dec.","Év"]
[null,"Tényleges havi költség",{"$f":"KépzésiÉsOktatásiEltérések[[#Totals],[Jan.]]+MarketingEltérések[[#Totals],[Jan.]]+IrodaiEltérések[[#Totals],[Jan.]]+AlkalmazottiEltérés[[#Totals],[Jan.]]","v":{"v":1738,"d":"1,738.00 Ft"}},{"$f":"KépzésiÉsOktatásiEltérések[[#Totals],[Febr.]]+MarketingEltérések[[#Totals],[Febr.]]+IrodaiEltérések[[#Totals],[Febr.]]+AlkalmazottiEltérés[[#Totals],[Febr.]]","v":{"v":-984,"d":"-984.00 Ft"}},{"$f":"KépzésiÉsOktatásiEltérések[[#Totals],[Márc.]]+MarketingEltérések[[#Totals],[Márc.]]+IrodaiEltérések[[#Totals],[Márc.]]+AlkalmazottiEltérés[[#Totals],[Márc.]]","v":{"v":1255,"d":"1,255.00 Ft"}},{"$f":"KépzésiÉsOktatásiEltérések[[#Totals],[Ápr.]]+MarketingEltérések[[#Totals],[Ápr.]]+IrodaiEltérések[[#Totals],[Ápr.]]+AlkalmazottiEltérés[[#Totals],[Ápr.]]","v":{"v":301,"d":"301.00 Ft"}},{"$f":"KépzésiÉsOktatásiEltérések[[#Totals],[Máj.]]+MarketingEltérések[[#Totals],[Máj.]]+IrodaiEltérések[[#Totals],[Máj.]]+AlkalmazottiEltérés[[#Totals],[Máj.]]","v":{"v":1440,"d":"1,440.00 Ft"}},{"$f":"KépzésiÉsOktatásiEltérések[[#Totals],[Jún.]]+MarketingEltérések[[#Totals],[Jún.]]+IrodaiEltérések[[#Totals],[Jún.]]+AlkalmazottiEltérés[[#Totals],[Jún.]]","v":{"v":-3744,"d":"-3,744.00 Ft"}},{"$f":"KépzésiÉsOktatásiEltérések[[#Totals],[Júl.]]+MarketingEltérések[[#Totals],[Júl.]]+IrodaiEltérések[[#Totals],[Júl.]]+AlkalmazottiEltérés[[#Totals],[Júl.]]","v":{"v":134695,"d":"134,695.00 Ft"}},{"$f":"KépzésiÉsOktatásiEltérések[[#Totals],[Aug.]]+MarketingEltérések[[#Totals],[Aug.]]+IrodaiEltérések[[#Totals],[Aug.]]+AlkalmazottiEltérés[[#Totals],[Aug.]]","v":{"v":138918,"d":"138,918.00 Ft"}},{"$f":"KépzésiÉsOktatásiEltérések[[#Totals],[Szept.]]+MarketingEltérések[[#Totals],[Szept.]]+IrodaiEltérések[[#Totals],[Szept.]]+AlkalmazottiEltérés[[#Totals],[Szept.]]","v":{"v":135918,"d":"135,918.00 Ft"}},{"$f":"KépzésiÉsOktatásiEltérések[[#Totals],[Okt.]]+MarketingEltérések[[#Totals],[Okt.]]+IrodaiEltérések[[#Totals],[Okt.]]+AlkalmazottiEltérés[[#Totals],[Okt.]]","v":{"v":140918,"d":"140,918.00 Ft"}},{"$f":"KépzésiÉsOktatásiEltérések[[#Totals],[Nov.]]+MarketingEltérések[[#Totals],[Nov.]]+IrodaiEltérések[[#Totals],[Nov.]]+AlkalmazottiEltérés[[#Totals],[Nov.]]","v":{"v":136218,"d":"136,218.00 Ft"}},{"$f":"KépzésiÉsOktatásiEltérések[[#Totals],[Dec.]]+MarketingEltérések[[#Totals],[Dec.]]+IrodaiEltérések[[#Totals],[Dec.]]+AlkalmazottiEltérés[[#Totals],[Dec.]]","v":{"v":140018,"d":"140,018.00 Ft"}},{"$f":"KépzésiÉsOktatásiEltérések[[#Totals],[ÉV]]+MarketingEltérések[[#Totals],[ÉV]]+IrodaiEltérések[[#Totals],[ÉV]]+AlkalmazottiEltérés[[#Totals],[ÉV]]","v":{"v":826691,"d":"826,691.00 Ft"}}]
[null,"ÖSSZES Tényleges költség",{"$f":"SUM($C$36:C36)","v":{"v":1738,"d":"1,738.00 Ft"}},{"$f":"SUM($C$36:D36)","v":{"v":754,"d":"754.00 Ft"}},{"$f":"SUM($C$36:E36)","v":{"v":2009,"d":"2,009.00 Ft"}},{"$f":"SUM($C$36:F36)","v":{"v":2310,"d":"2,310.00 Ft"}},{"$f":"SUM($C$36:G36)","v":{"v":3750,"d":"3,750.00 Ft"}},{"$f":"SUM($C$36:H36)","v":{"v":6,"d":"6.00 Ft"}},{"$f":"SUM($C$36:I36)","v":{"v":134701,"d":"134,701.00 Ft"}},{"$f":"SUM($C$36:J36)","v":{"v":273619,"d":"273,619.00 Ft"}},{"$f":"SUM($C$36:K36)","v":{"v":409537,"d":"409,537.00 Ft"}},{"$f":"SUM($C$36:L36)","v":{"v":550455,"d":"550,455.00 Ft"}},{"$f":"SUM($C$36:M36)","v":{"v":686673,"d":"686,673.00 Ft"}},{"$f":"SUM($C$36:N36)","v":{"v":826691,"d":"826,691.00 Ft"}}]

{"sheet":"KÖLTSÉGEK ELEMZÉSE","index":4,"n_rows":14,"n_cols":16,"rows_kept":14,"merged":[[1,1,2,3],[1,5,1,6],[2,4,2,6],[11,1,11,2],[11,3,11,5],[13,1,36,5]]}
["Az ezen a munkalapon látható költségkategóriákban automatikusan frissül az éves tervezett és tényleges költségek, a Költségek eltérései és az eltérés százaléka értéke. Ennek az oszlopnak a celláiban a munkalap használatát megkönnyítő útmutatás olvasható. Első lépésként nyomja le a lefelé nyilat. ",{"$nulls":5}," ",{"$nulls":8}," "]
["A jobbra lévő cellában automatikusan frissül a cég neve. Szúrja be az emblémát az F2 cellába.",{"$f":"'TERVEZETT KÖLTSÉGEK'!B2:D3","v":"Cég neve"},{"$nulls":3},"Ebben a cellában az embléma helyőrzője található."]
["A munkalap címe az E3 cellában található. A következő utasítás az A5 cellában található.",{"$nulls":3},{"$f":"munkalap_címe","v":"Részletes költségbecslés"}]
[]
["A sablon automatikusan kiszámítja a jobbra lévő cellában látható Elemzés táblázatban feltüntetett tervezett költségek, tényleges költségek, költségek eltérései és eltérés százaléka. A következő utasítás az A12 cellában található.","Költségkategória","Tervezett költségek","Tényleges költségek","Költségek eltérései","Eltérés százaléka"]
[null,"Alkalmazotti költségek",{"$f":"AlkalmazottiTervezett[[#Totals],[ÉV]]","v":{"v":1355090,"d":"1,355,090.00 Ft"}},{"$f":"AlkalmazottiTényleges[[#Totals],[ÉV]]","v":{"v":659130,"d":"659,130.00 Ft"}},{"$f":"C6-D6","v":{"v":695960,"d":"695,960.00 Ft"}},{"$f":"E6/C6","v":{"v":0.5135895032802249,"d":"51%"}}]
[null,{"$f":"'TERVEZETT KÖLTSÉGEK'!B10","v":"Irodaköltségek"},{"$f":"IrodaiTervezett[[#Totals],[ÉV]]","v":{"v":138740,"d":"138,740.00 Ft"}},{"$f":"IrodaiTényleges[[#Totals],[ÉV]]","v":{"v":69350,"d":"69,350.00 Ft"}},{"$f":"C7-D7","v":{"v":69390,"d":"69,390.00 Ft"}},{"$f":"E7/C7","v":{"v":0.5001441545336601,"d":"50%"}}]
[null,{"$f":"'TERVEZETT KÖLTSÉGEK'!B21","v":"Marketingköltségek"},{"$f":"MarketingTervezett[[#Totals],[ÉV]]","v":{"v":67800,"d":"67,800.00 Ft"}},{"$f":"MarketingTényleges[[#Totals],[ÉV]]","v":{"v":33159,"d":"33,159.00 Ft"}},{"$f":"C8-D8","v":{"v":34641,"d":"34,641.00 Ft"}},{"$f":"E8/C8","v":{"v":0.510929203539823,"d":"51%"}}]
[null,{"$f":"'TERVEZETT KÖLTSÉGEK'!B30","v":"Képzés/utazás"},{"$f":"KépzésiÉsUtazásiTervezett[[#Totals],[ÉV]]","v":{"v":48000,"d":"48,000.00 Ft"}},{"$f":"KépzésiÉsUtazásiTényleges[[#Totals],[ÉV]]","v":{"v":21300,"d":"21,300.00 Ft"}},{"$f":"C9-D9","v":{"v":26700,"d":"26,700.00 Ft"}},{"$f":"E9/C9","v":{"v":0.55625,"d":"56%"}}]
[null,{"$f":"'TERVEZETT KÖLTSÉGEK'!B35","v":"ÖSSZESEN"},{"$f":"'TERVEZETT KÖLTSÉGEK'!O36","v":{"v":1609630,"d":"1,609,630.00 Ft"}},{"$f":"'TÉNYLEGES KÖLTSÉGEK'!O36","v":{"v":782939,"d":"782,939.00 Ft"}},{"$f":"C10-D10","v":{"v":826691,"d":"826,691.00 Ft"}},{"$f":"E10/C10","v":{"v":0.5135907009685455,"d":"51%"}}]
[]
["A jobbra lévő cellában a Tervezett költségek kördiagram, a D12 cellában a Tényleges költségek kördiagram található. A következő utasítás az A14 cellában található.","Ebben a cellában a különféle kategóriák tervezett költségeit ábrázoló diagram látható.",null,"Ebben a cellában a különféle kategóriák tényleges költségeit ábrázoló diagram látható."]
[]
["A jobbra lévő cellában található diagramon a havi költségek bontásban láthatók a tervezett és a tényleges költségek, illetve az különbség."]